DIRECTORATE,SECTION,DIVISON,VENDOR_NAME,VENDOR_SITE_ID,PAYMENT_DATE,VOUCHER_NO,AMOUNT,IRRECOVERABLE VATE,PURPOSE_OF_SPEND,PROCUREMENT_CLASSIFICATION
Children and Young People,Capital,Capital,21ST CENTURY PASSENGER SYSTEMS LIMITED,1101478,04/02/2020,3397191,"1,968.00",0.00,N/A,N/A
Adults Health and Housing,Capital,Capital,A M PROPERTY SERVICES LTD,121,04/02/2020,3401912,"2,280.00",0.00,Healthy Housing Assistance,Building and Construction and Maintenanc
Traffic & Transportation,Traffic & Transportation (inc Integrated Pass Transport),"Strategic Partnerships, Planning & Streetpride",A2B CARS,218432,04/02/2020,3399743,"1,221.24",0.00,N/A,N/A
Traffic & Transportation,Traffic & Transportation (inc Integrated Pass Transport),"Strategic Partnerships, Planning & Streetpride",A2B CARS,218432,04/02/2020,3399757,"1,221.24",0.00,N/A,N/A
Learning Disability Support,Transitions and Ordinary Lives - Learning Disability Support,Transitions and Ordinary Lives,ACACIA LODGE,564447,04/02/2020,3398561,"2,500.00",0.00,N/A,N/A
Traffic & Transportation,Traffic & Transportation (inc Integrated Pass Transport),"Strategic Partnerships, Planning & Streetpride",ACE CARS,125638,04/02/2020,3399760,"3,067.50",0.00,N/A,N/A
Traffic & Transportation,Traffic & Transportation (inc Integrated Pass Transport),"Strategic Partnerships, Planning & Streetpride",ACE CARS,125638,04/02/2020,3399791,"3,142.50",0.00,N/A,N/A
Traffic & Transportation,Traffic & Transportation (inc Integrated Pass Transport),"Strategic Partnerships, Planning & Streetpride",ACE CARS,125638,04/02/2020,3399792,"2,842.50",0.00,N/A,N/A
Non Delegated Schools Budget,Non Delegated School Expenditure,Schools Block,ACE NURSERY,553444,04/02/2020,3401653,"22,796.28",0.00,N/A,N/A
Non Delegated Schools Budget,Non Delegated School Expenditure,Schools Block,ACE NURSERY,553444,04/02/2020,3402169,"1,872.00",0.00,N/A,N/A
Non Delegated Schools Budget,Non Delegated School Expenditure,Schools Block,ACTION FOR CHILDREN,932535,04/02/2020,3401547,"22,048.38",0.00,N/A,N/A
Non Delegated Schools Budget,Non Delegated School Expenditure,Schools Block,ACTION FOR CHILDREN,932535,04/02/2020,3401569,"11,050.59",0.00,N/A,N/A
Non Delegated Schools Budget,Non Delegated School Expenditure,Schools Block,ACTION FOR CHILDREN,932535,04/02/2020,3402178,"3,997.41",0.00,N/A,N/A
Non Delegated Schools Budget,Non Delegated School Expenditure,Schools Block,ACTION FOR CHILDREN,932535,04/02/2020,3402101,780.00,0.00,N/A,N/A
Non Delegated Schools Budget,Non Delegated School Expenditure,Schools Block,ACTION FOR CHILDREN,932535,04/02/2020,3402139,"5,569.20",0.00,N/A,N/A
Non Delegated Schools Budget,Non Delegated School Expenditure,Schools Block,ACTION FOR CHILDREN,932535,04/02/2020,3402152,"1,778.40",0.00,N/A,N/A
Highways & Engineering,Highways Maintenance & Street Lighting,"Strategic Partnerships, Planning & Streetpride",AGGREGATE INDUSTRIES UK LTD,117850,04/02/2020,3398777,507.08,0.00,Communities & Place,Building and Construction Machinery and
Highways & Engineering,Highways Maintenance & Street Lighting,"Strategic Partnerships, Planning & Streetpride",AGGREGATE INDUSTRIES UK LTD,117850,04/02/2020,3398780,881.31,0.00,Communities & Place,Building and Construction Machinery and
Highways & Engineering,Highways Maintenance & Street Lighting,"Strategic Partnerships, Planning & Streetpride",AGGREGATE INDUSTRIES UK LTD,117850,04/02/2020,3398784,566.91,0.00,Communities & Place,Building and Construction Machinery and
Highways & Engineering,Highways Maintenance & Street Lighting,"Strategic Partnerships, Planning & Streetpride",AGGREGATE INDUSTRIES UK LTD,117850,04/02/2020,3401767,"2,091.21",0.00,Communities & Place,Building and Construction Machinery and
Highways & Engineering,Highways Maintenance & Street Lighting,"Strategic Partnerships, Planning & Streetpride",AGGREGATE INDUSTRIES UK LTD,117850,04/02/2020,3401770,957.14,0.00,Communities & Place,Building and Construction Machinery and
Highways & Engineering,Highways Maintenance & Street Lighting,"Strategic Partnerships, Planning & Streetpride",AGGREGATE INDUSTRIES UK LTD,117850,04/02/2020,3401773,866.69,0.00,Communities & Place,Building and Construction Machinery and
Traffic & Transportation,Traffic & Transportation (inc Integrated Pass Transport),"Strategic Partnerships, Planning & Streetpride",ALBATROSS CARS DERBY LTD,878453,04/02/2020,3399755,720.00,0.00,N/A,N/A
Non Delegated Schools Budget,Non Delegated School Expenditure,Schools Block,ALVASTON ACHIEVERS DAY NURSERY LIMITED,937504,04/02/2020,3401637,"6,511.14",0.00,N/A,N/A
Non Delegated Schools Budget,Non Delegated School Expenditure,Schools Block,ALVASTON ACHIEVERS DAY NURSERY LIMITED,937504,04/02/2020,3402153,"6,302.40",0.00,N/A,N/A
Social Care Activities,Home First - Social Care Activities,Home First,APS GROUP,1006473,04/02/2020,3401883,"1,046.68",0.00,N/A,N/A
Public Health,Drugs and Alcohol,Public Health,AQUARIUS ACTION PROJECTS,860449,04/02/2020,3398645,"62,250.00",0.00,N/A,N/A
Libraries,Libraries,"Leisure, Culture and Tourism",ARROW SPECIALISED TRANSPORT LIMITED,1141493,04/02/2020,3398826,"3,282.40",0.00,N/A,N/A
Learning & Inclusion,Inclusion & Intervention,Non-Schools,ARTCORE,81349,04/02/2020,3398862,"12,468.50",0.00,N/A,N/A
Non Delegated Schools Budget,Non Delegated School Expenditure,Schools Block,ASHWOOD SPENCER ACADEMY (INTERFACE),942473,04/02/2020,3401537,"12,300.66",0.00,N/A,N/A
Libraries,Libraries,"Leisure, Culture and Tourism",ASKEWS AND HOLTS LIBRARY SERVICES LTD,876447,04/02/2020,3398647,979.56,0.00,N/A,N/A
Libraries,Libraries,"Leisure, Culture and Tourism",ASKEWS AND HOLTS LIBRARY SERVICES LTD,876447,04/02/2020,3398648,710.63,0.00,N/A,N/A
Libraries,Libraries,"Leisure, Culture and Tourism",ASKEWS AND HOLTS LIBRARY SERVICES LTD,876447,04/02/2020,3398652,"2,970.25",0.00,N/A,N/A
Libraries,Libraries,"Leisure, Culture and Tourism",ASKEWS AND HOLTS LIBRARY SERVICES LTD,876447,04/02/2020,3398654,"2,323.55",0.00,N/A,N/A
Community Safety and Integration,Partnerships,"Communities, Environment & Regulatory Services",ATLAS ENFORCEMENT LTD,904472,04/02/2020,3398729,"4,560.00",0.00,N/A,N/A
Community Safety and Integration,Partnerships,"Communities, Environment & Regulatory Services",ATLAS ENFORCEMENT LTD,904472,04/02/2020,3398730,"1,696.00",0.00,N/A,N/A
Community Safety and Integration,Partnerships,"Communities, Environment & Regulatory Services",ATLAS ENFORCEMENT LTD,904472,04/02/2020,3398731,"2,736.00",0.00,N/A,N/A
Community Safety and Integration,Partnerships,"Communities, Environment & Regulatory Services",ATLAS ENFORCEMENT LTD,904472,04/02/2020,3398732,"2,144.00",0.00,N/A,N/A
Community Safety and Integration,Partnerships,"Communities, Environment & Regulatory Services",ATLAS ENFORCEMENT LTD,904472,04/02/2020,3398733,"1,152.00",0.00,N/A,N/A
Non Delegated Schools Budget,Non Delegated School Expenditure,Schools Block,AUTISM DERBY BY JULIE FEARN,1192487,04/02/2020,3397651,"2,700.00",0.00,N/A,N/A
Neighbourhoods,Capital,Capital,BAMFORDS AUCTIONEERS AND VALUERS,1234468,04/02/2020,3380358,"2,178.00",0.00,N/A,N/A
Support to Carers,Community Support - Support to Carers,Community Support,BARRINGTON ANGLIN,266458,04/02/2020,3399909,828.64,0.00,N/A,N/A
Non Delegated Schools Budget,Non Delegated School Expenditure,Schools Block,BISHOP LONSDALE CE AIDED PRIMARY SCHOOL AND NURSERY,932526,04/02/2020,3401594,"9,506.16",0.00,N/A,N/A
Non Delegated Schools Budget,Non Delegated School Expenditure,Schools Block,BIZZY KIDZ,933490,04/02/2020,3401638,"23,970.09",0.00,N/A,N/A
Non Delegated Schools Budget,Non Delegated School Expenditure,Schools Block,BIZZY KIDZ,933490,04/02/2020,3402109,"10,639.20",0.00,N/A,N/A
Non Delegated Schools Budget,Non Delegated School Expenditure,Schools Block,BOLADALE  AINA OGUNWOLE,936477,04/02/2020,3401609,913.68,0.00,N/A,N/A
Non Delegated Schools Budget,Non Delegated School Expenditure,Schools Block,BOULTON LANE PRE-SCHOOL PLAYGROUP,932483,04/02/2020,3402129,"1,404.00",0.00,N/A,N/A
Non Delegated Schools Budget,Non Delegated School Expenditure,Schools Block,BRAMBLEBROOK PRE SCHOOL PLAYGROUP,932518,04/02/2020,3401639,"9,266.19",0.00,N/A,N/A
Non Delegated Schools Budget,Non Delegated School Expenditure,Schools Block,BRAMBLEBROOK PRE SCHOOL PLAYGROUP,932518,04/02/2020,3402156,936.00,0.00,N/A,N/A
Non Delegated Schools Budget,Non Delegated School Expenditure,Schools Block,BREADSALL HILLTOP PRIMARY SCHOOL,937484,04/02/2020,3401669,"15,557.76",0.00,N/A,N/A
Early Help & Children�s Safeguarding,Integrated and Safeguarding Services Locality 1/5,Non-Schools,BRITISH DYSLEXIA ASSOCIATION,1234472,04/02/2020,3398851,720.00,0.00,N/A,N/A
Communities & Place Obsolete Codes,Communities & Place Obsolete Codes,Communities & Place Obsolete Codes,BRITISH GAS TRADING LTD,992487,04/02/2020,3395718,"1,208.24",0.00,N/A,N/A
Strategic Asset Management and Estates,Strategic Asset Management and Estates,"Regeneration, Property & Housing",BRITISH GAS TRADING LTD,992487,04/02/2020,3395718,"1,000.00",0.00,N/A,N/A
Learning & Inclusion - Schools Block,STEPS - Schools Block,Schools Block,BT BUSINESS DIRECT LTD,1016484,04/02/2020,3401838,696.06,0.00,N/A,N/A
Traffic & Transportation,Network Mgmnt & Highway Dev Control,"Strategic Partnerships, Planning & Streetpride",BT PLC,1025473,04/02/2020,3397674,"3,147.10",0.00,N/A,N/A
Highways & Engineering,Highways Maintenance & Street Lighting,"Strategic Partnerships, Planning & Streetpride",BUILDBASE LTD,424,04/02/2020,3390217,912.80,0.00,Communities & Place,Structures and Building and Construction
Highways & Engineering,Highways Maintenance & Street Lighting,"Strategic Partnerships, Planning & Streetpride",BUILDBASE LTD,424,04/02/2020,3390217,"4,260.20",0.00,Communities & Place,Structures and Building and Construction
Economic Regeneration,DEGF,"Regeneration, Property & Housing",BUREAU VAN DIJK ELECTRONIC PUBLISHING LTD,1206482,04/02/2020,3398666,"6,760.00",0.00,N/A,N/A
Non Delegated Schools Budget,Non Delegated School Expenditure,Schools Block,BUSY BEES,1201475,04/02/2020,3402181,"12,107.21",0.00,N/A,N/A
Non Delegated Schools Budget,Non Delegated School Expenditure,Schools Block,BUSY BEES,1201475,04/02/2020,3402119,"1,123.20",0.00,N/A,N/A
Non Delegated Schools Budget,Non Delegated School Expenditure,Schools Block,BUSY BEES PLAYGROUP,932529,04/02/2020,3401671,"18,433.49",0.00,N/A,N/A
Non Delegated Schools Budget,Non Delegated School Expenditure,Schools Block,BUSY BEES PLAYGROUP,932529,04/02/2020,3402103,"1,104.48",0.00,N/A,N/A
Physical Support,Community Support - Physical Support,Community Support,BWA HEALTH AND CARE SERVICE LTD,1089474,04/02/2020,3399652,537.40,0.00,N/A,N/A
Physical Support,Community Support - Physical Support,Community Support,BWA HEALTH AND CARE SERVICE LTD,1089474,04/02/2020,3399184,537.40,0.00,N/A,N/A
Physical Support,Community Support - Physical Support,Community Support,BWA HEALTH AND CARE SERVICE LTD,1089474,04/02/2020,3399369,567.78,0.00,N/A,N/A
Physical Support,Community Support - Physical Support,Community Support,BWA HEALTH AND CARE SERVICE LTD,1089474,04/02/2020,3399543,537.40,0.00,N/A,N/A
Physical Support,Community Support - Physical Support,Community Support,BWA HEALTH AND CARE SERVICE LTD,1089474,04/02/2020,3399546,537.40,0.00,N/A,N/A
Mental Health Support,Mental Health - Mental Health Support,Mental Health,BWA HEALTH AND CARE SERVICE LTD,1089474,04/02/2020,3398987,697.00,0.00,N/A,N/A
Mental Health Support,Mental Health - Mental Health Support,Mental Health,BWA HEALTH AND CARE SERVICE LTD,1089474,04/02/2020,3398988,697.00,0.00,N/A,N/A
Mental Health Support,Mental Health - Mental Health Support,Mental Health,BWA HEALTH AND CARE SERVICE LTD,1089474,04/02/2020,3399086,697.00,0.00,N/A,N/A
Mental Health Support,Mental Health - Mental Health Support,Mental Health,BWA HEALTH AND CARE SERVICE LTD,1089474,04/02/2020,3399368,697.00,0.00,N/A,N/A
Mental Health Support,Mental Health - Mental Health Support,Mental Health,BWA HEALTH AND CARE SERVICE LTD,1089474,04/02/2020,3399545,522.75,0.00,N/A,N/A
Mental Health Support,Mental Health - Mental Health Support,Mental Health,BWA HEALTH AND CARE SERVICE LTD,1089474,04/02/2020,3399547,697.00,0.00,N/A,N/A
Mental Health Support,Mental Health - Mental Health Support,Mental Health,BY DESIGN GROUP LTD,153476,04/02/2020,3398857,"12,259.00",0.00,N/A,N/A
Mental Health Support,Mental Health - Mental Health Support,Mental Health,BY DESIGN GROUP LTD,153476,04/02/2020,3398859,"12,299.50",0.00,N/A,N/A
Mental Health Support,Mental Health - Mental Health Support,Mental Health,BY DESIGN GROUP LTD,153476,04/02/2020,3398861,"12,453.00",0.00,N/A,N/A
Physical Support,Community Support - Physical Support,Community Support,CARING LINKS LTD,1154493,04/02/2020,3398992,"1,103.24",0.00,N/A,N/A
Physical Support,Community Support - Physical Support,Community Support,CARING LINKS LTD,1154493,04/02/2020,3398993,"1,103.24",0.00,N/A,N/A
Physical Support,Community Support - Physical Support,Community Support,CARING LINKS LTD,1154493,04/02/2020,3398994,804.64,0.00,N/A,N/A
Physical Support,Community Support - Physical Support,Community Support,CARING LINKS LTD,1154493,04/02/2020,3399089,780.12,0.00,N/A,N/A
Physical Support,Community Support - Physical Support,Community Support,CARING LINKS LTD,1154493,04/02/2020,3399188,780.12,0.00,N/A,N/A
Non Delegated Schools Budget,Non Delegated School Expenditure,Schools Block,CARLTON PRIVATE DAY NURSERY,932481,04/02/2020,3402175,"6,023.11",0.00,N/A,N/A
Libraries,Libraries,"Leisure, Culture and Tourism",CDW LTD,465403,04/02/2020,3390227,"2,930.50",0.00,Communities & Place,Information Technology Broadcasting and
Libraries,Libraries,"Leisure, Culture and Tourism",CDW LTD,465403,04/02/2020,3393888,"1,465.25",0.00,Communities & Place,Information Technology Broadcasting and
Mental Health Support,Community Support - Mental Health Support,Community Support,CEDAR HOUSE EXTRA CARE DCS,537474,04/02/2020,3399253,698.90,0.00,N/A,N/A
Physical Support,Community Support - Physical Support,Community Support,CEDAR HOUSE EXTRA CARE DCS,537474,04/02/2020,3399049,"1,073.65",0.00,N/A,N/A
Physical Support,Community Support - Physical Support,Community Support,CEDAR HOUSE EXTRA CARE DCS,537474,04/02/2020,3398940,776.12,0.00,N/A,N/A
Physical Support,Community Support - Physical Support,Community Support,CEDAR HOUSE EXTRA CARE DCS,537474,04/02/2020,3398941,859.16,0.00,N/A,N/A
Physical Support,Community Support - Physical Support,Community Support,CEDAR HOUSE EXTRA CARE DCS,537474,04/02/2020,3398942,"1,211.72",0.00,N/A,N/A
Physical Support,Community Support - Physical Support,Community Support,CEDAR HOUSE EXTRA CARE DCS,537474,04/02/2020,3399508,522.93,0.00,N/A,N/A
Physical Support,Community Support - Physical Support,Community Support,CEDAR HOUSE EXTRA CARE DCS,537474,04/02/2020,3399509,979.48,0.00,N/A,N/A
Physical Support,Community Support - Physical Support,Community Support,CEDAR HOUSE EXTRA CARE DCS,537474,04/02/2020,3399510,"1,100.96",0.00,N/A,N/A
Physical Support,Community Support - Physical Support,Community Support,CEDAR HOUSE EXTRA CARE DCS,537474,04/02/2020,3399336,"1,095.88",0.00,N/A,N/A
Physical Support,Community Support - Physical Support,Community Support,CEDAR HOUSE EXTRA CARE DCS,537474,04/02/2020,3399337,"1,184.44",0.00,N/A,N/A
Physical Support,Community Support - Physical Support,Community Support,CEDAR HOUSE EXTRA CARE DCS,537474,04/02/2020,3399251,"1,091.08",0.00,N/A,N/A
Physical Support,Community Support - Physical Support,Community Support,CEDAR HOUSE EXTRA CARE DCS,537474,04/02/2020,3399252,"1,124.28",0.00,N/A,N/A
Physical Support,Community Support - Physical Support,Community Support,CEDAR HOUSE EXTRA CARE DCS,537474,04/02/2020,3399435,"1,000.59",0.00,N/A,N/A
Physical Support,Community Support - Physical Support,Community Support,CEDAR HOUSE EXTRA CARE DCS,537474,04/02/2020,3399436,"1,023.36",0.00,N/A,N/A
Physical Support,Community Support - Physical Support,Community Support,CEDAR HOUSE EXTRA CARE DCS,537474,04/02/2020,3399437,"1,293.48",0.00,N/A,N/A
Physical Support,Community Support - Physical Support,Community Support,CEDAR HOUSE EXTRA CARE DCS,537474,04/02/2020,3399438,"1,053.08",0.00,N/A,N/A
Physical Support,Community Support - Physical Support,Community Support,CEDAR HOUSE EXTRA CARE DCS,537474,04/02/2020,3399150,757.28,0.00,N/A,N/A
Physical Support,Community Support - Physical Support,Community Support,CEDAR HOUSE EXTRA CARE DCS,537474,04/02/2020,3399151,"1,008.76",0.00,N/A,N/A
Physical Support,Community Support - Physical Support,Community Support,CEDAR HOUSE EXTRA CARE DCS,537474,04/02/2020,3399152,"1,124.08",0.00,N/A,N/A
Sensory Support,Community Support - Sensory Support,Community Support,CEDAR HOUSE EXTRA CARE DCS,537474,04/02/2020,3398943,959.12,0.00,N/A,N/A
Sensory Support,Community Support - Sensory Support,Community Support,CEDAR HOUSE EXTRA CARE DCS,537474,04/02/2020,3399338,562.14,0.00,N/A,N/A
Sensory Support,Community Support - Sensory Support,Community Support,CEDAR HOUSE EXTRA CARE DCS,537474,04/02/2020,3399339,959.12,0.00,N/A,N/A
Mental Health Support,Mental Health - Mental Health Support,Mental Health,CEDAR HOUSE EXTRA CARE DCS,537474,04/02/2020,3399154,716.84,0.00,N/A,N/A
Non Delegated Schools Budget,Non Delegated School Expenditure,Schools Block,CHADDESDEN PARK PRIMARY SCHOOL,937517,04/02/2020,3401553,"7,711.98",0.00,N/A,N/A
Community Safety and Integration,Partnerships,"Communities, Environment & Regulatory Services",CHILDREN FIRST DERBY,794,04/02/2020,3398850,"4,181.33",0.00,Communities & Place,Healthcare Services
Physical Support,Community Support - Physical Support,Community Support,CHOICE SUPPORT AND CARE SERVICES LTD,1154494,04/02/2020,3398990,568.38,0.00,N/A,N/A
Physical Support,Community Support - Physical Support,Community Support,CHOICE SUPPORT AND CARE SERVICES LTD,1154494,04/02/2020,3399654,568.38,0.00,N/A,N/A
Non Delegated Schools Budget,Non Delegated School Expenditure,Schools Block,CHUCKLES PLAYGROUP,932503,04/02/2020,3401673,696.24,0.00,N/A,N/A
Non Delegated Schools Budget,Non Delegated School Expenditure,Schools Block,CHUCKLES PLAYGROUP,932503,04/02/2020,3402157,842.40,0.00,N/A,N/A
Grounds Maintenance & Cleansing,Cleansing (inc public conveniences & gullies),"Strategic Partnerships, Planning & Streetpride",CIWM,1236471,04/02/2020,3401828,"1,052.00",0.00,N/A,N/A
Grounds Maintenance & Cleansing,Cleansing (inc public conveniences & gullies),"Strategic Partnerships, Planning & Streetpride",CIWM,1236471,04/02/2020,3401828,526.00,0.00,N/A,N/A
Grounds Maintenance & Cleansing,Cleansing (inc public conveniences & gullies),"Strategic Partnerships, Planning & Streetpride",CIWM,1236471,04/02/2020,3401842,555.00,0.00,N/A,N/A
Integrated Services,Workforce Learning & Development,Non-Schools,COMM FOR LOCAL ADMINISTRATION IN ENGLAND,733449,04/02/2020,3397588,"1,200.00",0.00,N/A,N/A
Learning Disability Support,Community Support - Learning Disability Support,Community Support,COMMUNITY LINKS DERBY CIC,868453,04/02/2020,3399500,"1,859.55",0.00,N/A,N/A
Learning Disability Support,Community Support - Learning Disability Support,Community Support,COMMUNITY LINKS DERBY CIC,868453,04/02/2020,3399241,"1,859.55",0.00,N/A,N/A
Learning Disability Support,Community Support - Learning Disability Support,Community Support,COMMUNITY LINKS DERBY CIC,868453,04/02/2020,3399136,"1,859.55",0.00,N/A,N/A
Learning Disability Support,Community Support - Learning Disability Support,Community Support,COMMUNITY LINKS DERBY CIC,868453,04/02/2020,3399604,"1,859.55",0.00,N/A,N/A
Learning Disability Support,Community Support - Learning Disability Support,Community Support,COMMUNITY LINKS DERBY CIC,868453,04/02/2020,3399605,"1,859.55",0.00,N/A,N/A
Learning Disability Support,Community Support - Learning Disability Support,Community Support,COMMUNITY LINKS DERBY CIC,868453,04/02/2020,3399606,"1,859.55",0.00,N/A,N/A
Physical Support,Community Support - Physical Support,Community Support,COMMUNITY LINKS DERBY CIC,868453,04/02/2020,3399034,"1,487.64",0.00,N/A,N/A
Learning Disability Support,Transitions and Ordinary Lives - Learning Disability Support,Transitions and Ordinary Lives,COMMUNITY LINKS DERBY CIC,868453,04/02/2020,3399333,"1,718.25",0.00,N/A,N/A
"Information, Computing & Technology","Information, Computing & Technology",Digital Services,COMPASS COMPUTER CONSULTANTS LTD,821447,04/02/2020,3398813,"1,350.00",0.00,N/A,N/A
Non Delegated Schools Budget,Non Delegated School Expenditure,Schools Block,COTTAGE PRIVATE  DAY NURSERY,932497,04/02/2020,3401548,"9,925.03",0.00,N/A,N/A
Non Delegated Schools Budget,Non Delegated School Expenditure,Schools Block,COTTAGE PRIVATE  DAY NURSERY,932497,04/02/2020,3402104,"1,778.40",0.00,N/A,N/A
Non Delegated Schools Budget,Non Delegated School Expenditure,Schools Block,COTTAGE PRIVATE DAY NURSERY DE3 9AX (INTERFACE),943468,04/02/2020,3401573,"19,237.00",0.00,N/A,N/A
Learning Disability Support,Transitions and Ordinary Lives - Learning Disability Support,Transitions and Ordinary Lives,CREATIVE SUPPORT LTD,1026475,04/02/2020,3398989,"6,525.80",0.00,N/A,N/A
Learning Disability Support,Transitions and Ordinary Lives - Learning Disability Support,Transitions and Ordinary Lives,CREATIVE SUPPORT LTD,1026475,04/02/2020,3399656,"6,708.52",0.00,N/A,N/A
Learning Disability Support,Transitions and Ordinary Lives - Learning Disability Support,Transitions and Ordinary Lives,CREATIVE SUPPORT LTD,1026475,04/02/2020,3399374,"6,708.52",0.00,N/A,N/A
Learning Disability Support,Transitions and Ordinary Lives - Learning Disability Support,Transitions and Ordinary Lives,CREATIVE SUPPORT LTD,1026475,04/02/2020,3399375,"1,883.16",0.00,N/A,N/A
Learning Disability Support,Transitions and Ordinary Lives - Learning Disability Support,Transitions and Ordinary Lives,CREATIVE SUPPORT LTD,1026475,04/02/2020,3399096,"6,708.52",0.00,N/A,N/A
Learning Disability Support,Transitions and Ordinary Lives - Learning Disability Support,Transitions and Ordinary Lives,CREATIVE SUPPORT LTD,1026475,04/02/2020,3399557,"6,708.52",0.00,N/A,N/A
Learning Disability Support,Transitions and Ordinary Lives - Learning Disability Support,Transitions and Ordinary Lives,CREATIVE SUPPORT LTD,1026475,04/02/2020,3399549,"6,525.80",0.00,N/A,N/A
Learning Disability Support,Transitions and Ordinary Lives - Learning Disability Support,Transitions and Ordinary Lives,CREATIVE SUPPORT LTD,1026475,04/02/2020,3399294,919.12,0.00,N/A,N/A
Learning Disability Support,Transitions and Ordinary Lives - Learning Disability Support,Transitions and Ordinary Lives,CREATIVE SUPPORT LTD,1026475,04/02/2020,3399469,"6,708.52",0.00,N/A,N/A
Refuse & Waste Management,Refuse Collection,"Strategic Partnerships, Planning & Streetpride",CROMWELL POLYTHENE LTD,1153482,04/02/2020,3401886,"1,168.80",0.00,N/A,N/A
"Environmental Protection, Licensing, Housing",Environmental Protection,"Communities, Environment & Regulatory Services",CROWFOOT KENNELS LTD,134352,04/02/2020,3401806,"5,420.00",0.00,Communities & Place,Farming Fishing Forestry and Wildlife Co
Traffic & Transportation,Traffic & Transportation (inc Integrated Pass Transport),"Strategic Partnerships, Planning & Streetpride",CROWN CARS Derby LTD,112999,04/02/2020,3399756,"1,198.50",0.00,N/A,N/A
Integrated Services,Integrated Disabled Children's Service,Non-Schools,CURRYS PC WORLD BUSINESS,1091469,04/02/2020,3401896,"1,374.99",0.00,N/A,N/A
Adults Health and Housing,Capital,Capital,DEERAY CONTRACTS LTD,14161,04/02/2020,3397438,700.00,0.00,Estates Pride - General,Building and Construction and Maintenanc
Adults Health and Housing,Capital,Capital,DEERAY CONTRACTS LTD,14161,04/02/2020,3397438,"1,180.00",0.00,Estates Pride - General,Building and Construction and Maintenanc
Adults Health and Housing,Capital,Capital,DEERAY CONTRACTS LTD,14161,04/02/2020,3397561,"3,000.00",0.00,Estates Pride - General,Building and Construction and Maintenanc
Adults Health and Housing,Capital,Capital,DEERAY CONTRACTS LTD,14161,04/02/2020,3397561,"5,076.00",0.00,Estates Pride - General,Building and Construction and Maintenanc
Adults Health and Housing,Capital,Capital,DEERAY CONTRACTS LTD,14161,04/02/2020,3397864,"1,500.00",0.00,Estates Pride - General,Building and Construction and Maintenanc
Adults Health and Housing,Capital,Capital,DEERAY CONTRACTS LTD,14161,04/02/2020,3397864,868.00,0.00,Estates Pride - General,Building and Construction and Maintenanc
Adults Health and Housing,Capital,Capital,DEERAY CONTRACTS LTD,14161,04/02/2020,3397864,"1,280.00",0.00,Estates Pride - General,Building and Construction and Maintenanc
Adults Health and Housing,Capital,Capital,DEERAY CONTRACTS LTD,14161,04/02/2020,3397871,"1,500.00",0.00,Estates Pride - General,Building and Construction and Maintenanc
Adults Health and Housing,Capital,Capital,DEERAY CONTRACTS LTD,14161,04/02/2020,3397871,"2,004.00",0.00,Estates Pride - General,Building and Construction and Maintenanc
Traffic & Transportation,Traffic & Transportation (inc Integrated Pass Transport),"Strategic Partnerships, Planning & Streetpride",DERBY COMMUNITY TRANSPORT,113043,04/02/2020,3399762,"2,732.85",0.00,N/A,N/A
Traffic & Transportation,Traffic & Transportation (inc Integrated Pass Transport),"Strategic Partnerships, Planning & Streetpride",DERBY COMMUNITY TRANSPORT,113043,04/02/2020,3399772,"2,929.80",0.00,N/A,N/A
Traffic & Transportation,Traffic & Transportation (inc Integrated Pass Transport),"Strategic Partnerships, Planning & Streetpride",DERBY COMMUNITY TRANSPORT,113043,04/02/2020,3399781,"2,292.75",0.00,N/A,N/A
Traffic & Transportation,Traffic & Transportation (inc Integrated Pass Transport),"Strategic Partnerships, Planning & Streetpride",DERBY COMMUNITY TRANSPORT,113043,04/02/2020,3399782,"2,963.70",0.00,N/A,N/A
Traffic & Transportation,Traffic & Transportation (inc Integrated Pass Transport),"Strategic Partnerships, Planning & Streetpride",DERBY COMMUNITY TRANSPORT,113043,04/02/2020,3399786,"2,963.70",0.00,N/A,N/A
Traffic & Transportation,Traffic & Transportation (inc Integrated Pass Transport),"Strategic Partnerships, Planning & Streetpride",DERBY COMMUNITY TRANSPORT,113043,04/02/2020,3399787,"2,929.80",0.00,N/A,N/A
Learning & Inclusion,Inclusion & Intervention,Non-Schools,DERBY COUNTY COMMUNITY TRUST,178343,04/02/2020,3398860,"12,500.00",0.00,N/A,N/A
Non Delegated Schools Budget,Non Delegated School Expenditure,Schools Block,DERBY DIOCESAN ACADEMY TRUST 2,996478,04/02/2020,3401654,"27,340.56",0.00,N/A,N/A
Non Delegated Schools Budget,Non Delegated School Expenditure,Schools Block,DERBY DIOCESAN ACADEMY TRUST 2,996478,04/02/2020,3402107,"5,787.60",0.00,N/A,N/A
Non Delegated Schools Budget,Non Delegated School Expenditure,Schools Block,DERBY EDUCATION GROUP,932533,04/02/2020,3401592,"3,436.20",0.00,N/A,N/A
Non Delegated Schools Budget,Non Delegated School Expenditure,Schools Block,DERBY EDUCATION GROUP,932533,04/02/2020,3402154,"4,867.20",0.00,N/A,N/A
Non Delegated Schools Budget,Non Delegated School Expenditure,Schools Block,DERBY HIGH SCHOOL,932478,04/02/2020,3401580,"10,609.06",0.00,N/A,N/A
Adults Health and Housing,Capital,Capital,DERBY HOMES LTD,1078471,04/02/2020,3393446,"14,933.11",0.00,N/A,N/A
Adults Health and Housing,Capital,Capital,DERBY HOMES LTD,1078471,04/02/2020,3393447,"2,446.01",0.00,N/A,N/A
Adults Health and Housing,Capital,Capital,DERBY HOMES LTD,1078471,04/02/2020,3393469,"16,542.80",0.00,N/A,N/A
Non Delegated Schools Budget,Non Delegated School Expenditure,Schools Block,DERBY MONTESSORI SCHOOL,932513,04/02/2020,3401556,"3,153.07",0.00,N/A,N/A
Non Delegated Schools Budget,Non Delegated School Expenditure,Schools Block,DERBY MONTESSORI SCHOOL,932513,04/02/2020,3402142,"1,712.88",0.00,N/A,N/A
Learning & Inclusion,Inclusion & Intervention,Non-Schools,DERBY MUSEUMS,127016,04/02/2020,3401918,"12,007.00",0.00,N/A,N/A
Learning & Inclusion,Inclusion & Intervention,Non-Schools,DERBY PRIDE ACADEMY,144370,04/02/2020,3398856,"11,739.00",0.00,N/A,N/A
Learning Disability Support,Community Support - Learning Disability Support,Community Support,DERBYSHIRE CARE SERVICES,388459,04/02/2020,3399075,763.40,0.00,N/A,N/A
Mental Health Support,Community Support - Mental Health Support,Community Support,DERBYSHIRE CARE SERVICES,388459,04/02/2020,3399076,553.68,0.00,N/A,N/A
Mental Health Support,Community Support - Mental Health Support,Community Support,DERBYSHIRE CARE SERVICES,388459,04/02/2020,3399461,"1,039.12",0.00,N/A,N/A
Physical Support,Community Support - Physical Support,Community Support,DERBYSHIRE CARE SERVICES,388459,04/02/2020,3398963,620.20,0.00,N/A,N/A
Physical Support,Community Support - Physical Support,Community Support,DERBYSHIRE CARE SERVICES,388459,04/02/2020,3398964,634.28,0.00,N/A,N/A
Physical Support,Community Support - Physical Support,Community Support,DERBYSHIRE CARE SERVICES,388459,04/02/2020,3398965,687.44,0.00,N/A,N/A
Physical Support,Community Support - Physical Support,Community Support,DERBYSHIRE CARE SERVICES,388459,04/02/2020,3398966,762.28,0.00,N/A,N/A
Physical Support,Community Support - Physical Support,Community Support,DERBYSHIRE CARE SERVICES,388459,04/02/2020,3398967,863.04,0.00,N/A,N/A
Physical Support,Community Support - Physical Support,Community Support,DERBYSHIRE CARE SERVICES,388459,04/02/2020,3398968,990.36,0.00,N/A,N/A
Physical Support,Community Support - Physical Support,Community Support,DERBYSHIRE CARE SERVICES,388459,04/02/2020,3398972,713.28,0.00,N/A,N/A
Physical Support,Community Support - Physical Support,Community Support,DERBYSHIRE CARE SERVICES,388459,04/02/2020,3399073,797.76,0.00,N/A,N/A
Physical Support,Community Support - Physical Support,Community Support,DERBYSHIRE CARE SERVICES,388459,04/02/2020,3399074,"1,063.82",0.00,N/A,N/A
Physical Support,Community Support - Physical Support,Community Support,DERBYSHIRE CARE SERVICES,388459,04/02/2020,3398911,703.44,0.00,N/A,N/A
Physical Support,Community Support - Physical Support,Community Support,DERBYSHIRE CARE SERVICES,388459,04/02/2020,3399021,659.20,0.00,N/A,N/A
Physical Support,Community Support - Physical Support,Community Support,DERBYSHIRE CARE SERVICES,388459,04/02/2020,3399023,539.96,0.00,N/A,N/A
Physical Support,Community Support - Physical Support,Community Support,DERBYSHIRE CARE SERVICES,388459,04/02/2020,3399058,539.96,0.00,N/A,N/A
Physical Support,Community Support - Physical Support,Community Support,DERBYSHIRE CARE SERVICES,388459,04/02/2020,3399059,948.48,0.00,N/A,N/A
Physical Support,Community Support - Physical Support,Community Support,DERBYSHIRE CARE SERVICES,388459,04/02/2020,3399060,948.48,0.00,N/A,N/A
Physical Support,Community Support - Physical Support,Community Support,DERBYSHIRE CARE SERVICES,388459,04/02/2020,3399061,"1,008.92",0.00,N/A,N/A
Physical Support,Community Support - Physical Support,Community Support,DERBYSHIRE CARE SERVICES,388459,04/02/2020,3399637,543.68,0.00,N/A,N/A
Physical Support,Community Support - Physical Support,Community Support,DERBYSHIRE CARE SERVICES,388459,04/02/2020,3399166,775.92,0.00,N/A,N/A
Physical Support,Community Support - Physical Support,Community Support,DERBYSHIRE CARE SERVICES,388459,04/02/2020,3399167,"1,103.24",0.00,N/A,N/A
Physical Support,Community Support - Physical Support,Community Support,DERBYSHIRE CARE SERVICES,388459,04/02/2020,3399494,"1,028.36",0.00,N/A,N/A
Physical Support,Community Support - Physical Support,Community Support,DERBYSHIRE CARE SERVICES,388459,04/02/2020,3399175,762.28,0.00,N/A,N/A
Physical Support,Community Support - Physical Support,Community Support,DERBYSHIRE CARE SERVICES,388459,04/02/2020,3399176,771.88,0.00,N/A,N/A
Physical Support,Community Support - Physical Support,Community Support,DERBYSHIRE CARE SERVICES,388459,04/02/2020,3399180,"1,113.62",0.00,N/A,N/A
Physical Support,Community Support - Physical Support,Community Support,DERBYSHIRE CARE SERVICES,388459,04/02/2020,3399345,539.96,0.00,N/A,N/A
Physical Support,Community Support - Physical Support,Community Support,DERBYSHIRE CARE SERVICES,388459,04/02/2020,3399346,908.04,0.00,N/A,N/A
Physical Support,Community Support - Physical Support,Community Support,DERBYSHIRE CARE SERVICES,388459,04/02/2020,3399347,931.48,0.00,N/A,N/A
Physical Support,Community Support - Physical Support,Community Support,DERBYSHIRE CARE SERVICES,388459,04/02/2020,3399348,"1,008.92",0.00,N/A,N/A
Physical Support,Community Support - Physical Support,Community Support,DERBYSHIRE CARE SERVICES,388459,04/02/2020,3399522,611.48,0.00,N/A,N/A
Physical Support,Community Support - Physical Support,Community Support,DERBYSHIRE CARE SERVICES,388459,04/02/2020,3399533,"1,161.08",0.00,N/A,N/A
Physical Support,Community Support - Physical Support,Community Support,DERBYSHIRE CARE SERVICES,388459,04/02/2020,3399534,"1,726.06",0.00,N/A,N/A
Physical Support,Community Support - Physical Support,Community Support,DERBYSHIRE CARE SERVICES,388459,04/02/2020,3399359,"1,726.06",0.00,N/A,N/A
Physical Support,Community Support - Physical Support,Community Support,DERBYSHIRE CARE SERVICES,388459,04/02/2020,3399360,"1,103.24",0.00,N/A,N/A
Physical Support,Community Support - Physical Support,Community Support,DERBYSHIRE CARE SERVICES,388459,04/02/2020,3399356,508.53,0.00,N/A,N/A
Physical Support,Community Support - Physical Support,Community Support,DERBYSHIRE CARE SERVICES,388459,04/02/2020,3399357,512.73,0.00,N/A,N/A
Physical Support,Community Support - Physical Support,Community Support,DERBYSHIRE CARE SERVICES,388459,04/02/2020,3399218,703.44,0.00,N/A,N/A
Physical Support,Community Support - Physical Support,Community Support,DERBYSHIRE CARE SERVICES,388459,04/02/2020,3399219,539.96,0.00,N/A,N/A
Physical Support,Community Support - Physical Support,Community Support,DERBYSHIRE CARE SERVICES,388459,04/02/2020,3399119,659.20,0.00,N/A,N/A
Physical Support,Community Support - Physical Support,Community Support,DERBYSHIRE CARE SERVICES,388459,04/02/2020,3399586,714.04,0.00,N/A,N/A
Physical Support,Community Support - Physical Support,Community Support,DERBYSHIRE CARE SERVICES,388459,04/02/2020,3399265,863.04,0.00,N/A,N/A
Physical Support,Community Support - Physical Support,Community Support,DERBYSHIRE CARE SERVICES,388459,04/02/2020,3399271,762.28,0.00,N/A,N/A
Physical Support,Community Support - Physical Support,Community Support,DERBYSHIRE CARE SERVICES,388459,04/02/2020,3399275,"1,103.24",0.00,N/A,N/A
Physical Support,Community Support - Physical Support,Community Support,DERBYSHIRE CARE SERVICES,388459,04/02/2020,3399446,553.68,0.00,N/A,N/A
Physical Support,Community Support - Physical Support,Community Support,DERBYSHIRE CARE SERVICES,388459,04/02/2020,3399447,641.28,0.00,N/A,N/A
Physical Support,Community Support - Physical Support,Community Support,DERBYSHIRE CARE SERVICES,388459,04/02/2020,3399454,543.68,0.00,N/A,N/A
Physical Support,Community Support - Physical Support,Community Support,DERBYSHIRE CARE SERVICES,388459,04/02/2020,3399459,"1,168.44",0.00,N/A,N/A
Physical Support,Community Support - Physical Support,Community Support,DERBYSHIRE CARE SERVICES,388459,04/02/2020,3399626,762.28,0.00,N/A,N/A
Physical Support,Community Support - Physical Support,Community Support,DERBYSHIRE CARE SERVICES,388459,04/02/2020,3399627,908.04,0.00,N/A,N/A
Physical Support,Community Support - Physical Support,Community Support,DERBYSHIRE CARE SERVICES,388459,04/02/2020,3399311,659.20,0.00,N/A,N/A
Physical Support,Community Support - Physical Support,Community Support,DERBYSHIRE CARE SERVICES,388459,04/02/2020,3399312,577.05,0.00,N/A,N/A
Sensory Support,Community Support - Sensory Support,Community Support,DERBYSHIRE CARE SERVICES,388459,04/02/2020,3399641,703.44,0.00,N/A,N/A
Sensory Support,Community Support - Sensory Support,Community Support,DERBYSHIRE CARE SERVICES,388459,04/02/2020,3399642,"1,119.60",0.00,N/A,N/A
Integrated Commissioning,Integrated Commissioning,Commissioning,DERBYSHIRE CARE SERVICES,1207,04/02/2020,3394292,"4,308.72",0.00,N/A,N/A
Integrated Commissioning,Integrated Commissioning,Commissioning,DERBYSHIRE CARE SERVICES,1207,04/02/2020,3394345,"2,099.12",0.00,N/A,N/A
Mental Health Support,Mental Health - Mental Health Support,Mental Health,DERBYSHIRE CARE SERVICES,388459,04/02/2020,3399644,598.84,0.00,N/A,N/A
Mental Health Support,Mental Health - Mental Health Support,Mental Health,DERBYSHIRE CARE SERVICES,388459,04/02/2020,3399460,729.14,0.00,N/A,N/A
Integrated Services,Fostering,Non-Schools,DERBYSHIRE COUNTY COUNCIL,1042479,04/02/2020,3391737,"4,562.46",0.00,N/A,N/A
Integrated Services,Fostering,Non-Schools,DERBYSHIRE COUNTY COUNCIL,1042479,04/02/2020,3391729,734.83,0.00,N/A,N/A
Traffic & Transportation,Traffic & Transportation (inc Integrated Pass Transport),"Strategic Partnerships, Planning & Streetpride",DERBYSHIRE COUNTY COUNCIL,1042479,04/02/2020,3398723,"1,506.60",0.00,N/A,N/A
Integrated Services,Workforce Learning & Development,Non-Schools,DERBYSHIRE COUNTY COUNCIL,1042479,04/02/2020,3390279,"34,532.88",0.00,N/A,N/A
Learning & Inclusion,Inclusion & Intervention,Non-Schools,DERBYSHIRE COUNTY COUNCIL,9786,04/02/2020,3401926,"10,065.50",0.00,N/A,N/A
General,Stores Road Depot & Fleet Management,"Strategic Partnerships, Planning & Streetpride",DERBYSHIRE COUNTY CRICKET CLUB LTD,1177473,04/02/2020,3397679,"3,200.00",0.00,N/A,N/A
Non Delegated Schools Budget,Non Delegated School Expenditure,Schools Block,DERWENT PRIMARY SCHOOL,937483,04/02/2020,3401620,"10,599.48",0.00,N/A,N/A
Non Delegated Schools Budget,Non Delegated School Expenditure,Schools Block,DERWENT PRIMARY SCHOOL,937483,04/02/2020,3402113,"2,901.60",0.00,N/A,N/A
Non Delegated Schools Budget,Non Delegated School Expenditure,Schools Block,DERWENT STEPPING STONES NURSERY,932496,04/02/2020,3401601,"11,756.38",0.00,N/A,N/A
Non Delegated Schools Budget,Non Delegated School Expenditure,Schools Block,DERWENT STEPPING STONES NURSERY,932496,04/02/2020,3401621,"22,215.02",0.00,N/A,N/A
Non Delegated Schools Budget,Non Delegated School Expenditure,Schools Block,DERWENT STEPPING STONES NURSERY,932496,04/02/2020,3401622,"6,648.84",0.00,N/A,N/A
Non Delegated Schools Budget,Non Delegated School Expenditure,Schools Block,DERWENT STEPPING STONES NURSERY,932496,04/02/2020,3401581,"9,131.94",0.00,N/A,N/A
Non Delegated Schools Budget,Non Delegated School Expenditure,Schools Block,DERWENT STEPPING STONES NURSERY,932496,04/02/2020,3402092,"4,305.60",0.00,N/A,N/A
Non Delegated Schools Budget,Non Delegated School Expenditure,Schools Block,DERWENT STEPPING STONES NURSERY,932496,04/02/2020,3402120,"11,980.80",0.00,N/A,N/A
Non Delegated Schools Budget,Non Delegated School Expenditure,Schools Block,DERWENT STEPPING STONES NURSERY,932496,04/02/2020,3402121,"9,060.48",0.00,N/A,N/A
Early Help & Children�s Safeguarding,Integrated and Safeguarding Services Locality 1/5,Non-Schools,DIAMOND DAY NURSERY,127198,04/02/2020,3398700,"1,539.00",0.00,N/A,N/A
Non Delegated Schools Budget,Non Delegated School Expenditure,Schools Block,DIAMOND DAY NURSERY,933489,04/02/2020,3402176,"16,126.20",0.00,N/A,N/A
Learning Disability Support,Community Support - Learning Disability Support,Community Support,DIMENSIONS UK LTD,388489,04/02/2020,3398961,"2,100.96",0.00,N/A,N/A
Learning Disability Support,Community Support - Learning Disability Support,Community Support,DIMENSIONS UK LTD,388489,04/02/2020,3399054,"1,870.72",0.00,N/A,N/A
Learning Disability Support,Community Support - Learning Disability Support,Community Support,DIMENSIONS UK LTD,388489,04/02/2020,3399262,921.08,0.00,N/A,N/A
Learning Disability Support,Community Support - Learning Disability Support,Community Support,DIMENSIONS UK LTD,388489,04/02/2020,3399159,"1,036.24",0.00,N/A,N/A
Learning Disability Support,Community Support - Learning Disability Support,Community Support,DIMENSIONS UK LTD,388489,04/02/2020,3399160,"1,064.88",0.00,N/A,N/A
Learning Disability Support,Community Support - Learning Disability Support,Community Support,DIMENSIONS UK LTD,388489,04/02/2020,3399161,"7,596.16",0.00,N/A,N/A
Learning Disability Support,Community Support - Learning Disability Support,Community Support,DIMENSIONS UK LTD,388489,04/02/2020,3399162,"1,093.80",0.00,N/A,N/A
Learning Disability Support,Community Support - Learning Disability Support,Community Support,DIMENSIONS UK LTD,388489,04/02/2020,3399624,"3,223.80",0.00,N/A,N/A
Learning Disability Support,Transitions and Ordinary Lives - Learning Disability Support,Transitions and Ordinary Lives,DIMENSIONS UK LTD,388489,04/02/2020,3399445,"4,334.12",0.00,N/A,N/A
Learning Disability Support,Transitions and Ordinary Lives - Learning Disability Support,Transitions and Ordinary Lives,DIMENSIONS UK LTD,388489,04/02/2020,3399163,"4,882.84",0.00,N/A,N/A
Early Help & Children�s Safeguarding,Integrated and Safeguarding Services Locality 3/4,Non-Schools,DMR SERVICES,235403,04/02/2020,3397397,"3,544.20",0.00,People Services - Children & Young People,Healthcare Services
General,Stores Road Depot & Fleet Management,"Strategic Partnerships, Planning & Streetpride",ELIS UK LTD,1231476,04/02/2020,3390800,584.10,0.00,N/A,N/A
Non Delegated Schools Budget,Non Delegated School Expenditure,Schools Block,EMMANUEL SCHOOL,932506,04/02/2020,3401674,"4,607.21",0.00,N/A,N/A
Obsolete Codes,Capital,Capital,ENVIRONMENT AGENCY,1093468,04/02/2020,3396535,557.50,0.00,N/A,N/A
"Occupational Health, Safety, Markets & Bereavement Services",Bereavement Services,"Communities, Environment & Regulatory Services",FACULTATIEVE TECHNOLOGIES,1528,04/02/2020,3398757,642.36,0.00,Communities & Place,Politics and Civic Affairs Services
Non Delegated Schools Budget,Non Delegated School Expenditure,Schools Block,FIELD LANE PLAYGROUP,932489,04/02/2020,3402184,"6,925.75",0.00,N/A,N/A
Non Delegated Schools Budget,Non Delegated School Expenditure,Schools Block,FIELD LANE PLAYGROUP,932489,04/02/2020,3402122,"4,118.40",0.00,N/A,N/A
Non Delegated Schools Budget,Non Delegated School Expenditure,Schools Block,FIRS PRIMARY SCHOOL,937511,04/02/2020,3402177,"4,901.85",0.00,N/A,N/A
Non Delegated Schools Budget,Non Delegated School Expenditure,Schools Block,FIRST FRIENDS PRIVATE DAY NURSERY,932504,04/02/2020,3401558,"6,517.12",0.00,N/A,N/A
Non Delegated Schools Budget,Non Delegated School Expenditure,Schools Block,FIRST FRIENDS PRIVATE DAY NURSERY,932504,04/02/2020,3402159,"3,941.60",0.00,N/A,N/A
Integrated Services,Agency Placements,Non-Schools,FOOTSTEPS TO FUTURES,1117478,04/02/2020,3397593,"24,188.99",0.00,N/A,N/A
Physical Support,Community Support - Physical Support,Community Support,FOSSE HEALTHCARE LTD,448402,04/02/2020,3398982,931.48,0.00,N/A,N/A
Physical Support,Community Support - Physical Support,Community Support,FOSSE HEALTHCARE LTD,448402,04/02/2020,3399646,931.48,0.00,N/A,N/A
Physical Support,Community Support - Physical Support,Community Support,FOSSE HEALTHCARE LTD,448402,04/02/2020,3399657,745.13,0.00,N/A,N/A
Physical Support,Community Support - Physical Support,Community Support,FOSSE HEALTHCARE LTD,448402,04/02/2020,3399098,810.90,0.00,N/A,N/A
Physical Support,Community Support - Physical Support,Community Support,FOSSE HEALTHCARE LTD,448402,04/02/2020,3399471,745.13,0.00,N/A,N/A
Economic Regeneration,DEGF,"Regeneration, Property & Housing",FREETHS LLP,821453,04/02/2020,3398665,988.00,0.00,N/A,N/A
Non Delegated Schools Budget,Non Delegated School Expenditure,Schools Block,FUN TIME NURSERY LTD,936504,04/02/2020,3401623,"10,264.52",0.00,N/A,N/A
Non Delegated Schools Budget,Non Delegated School Expenditure,Schools Block,FUN TIME NURSERY LTD,936504,04/02/2020,3402114,"5,241.60",0.00,N/A,N/A
Strategic Asset Management and Estates,Strategic Asset Management and Estates,"Regeneration, Property & Housing",GERALD EVE LLP,1165472,04/02/2020,3390351,686.72,0.00,N/A,N/A
Non Delegated Schools Budget,Non Delegated School Expenditure,Schools Block,GRAMPIAN PRIMARY ACADEMY,936484,04/02/2020,3401675,"15,676.20",0.00,N/A,N/A
Learning Disability Support,Community Support - Learning Disability Support,Community Support,GREENWICH GARDENS EXTRA CAS DCS,537476,04/02/2020,3399044,"1,124.03",0.00,N/A,N/A
Learning Disability Support,Community Support - Learning Disability Support,Community Support,GREENWICH GARDENS EXTRA CAS DCS,537476,04/02/2020,3399148,646.20,0.00,N/A,N/A
Mental Health Support,Community Support - Mental Health Support,Community Support,GREENWICH GARDENS EXTRA CAS DCS,537476,04/02/2020,3399047,"1,015.08",0.00,N/A,N/A
Mental Health Support,Community Support - Mental Health Support,Community Support,GREENWICH GARDENS EXTRA CAS DCS,537476,04/02/2020,3399149,837.16,0.00,N/A,N/A
Physical Support,Community Support - Physical Support,Community Support,GREENWICH GARDENS EXTRA CAS DCS,537476,04/02/2020,3399037,"1,028.04",0.00,N/A,N/A
Physical Support,Community Support - Physical Support,Community Support,GREENWICH GARDENS EXTRA CAS DCS,537476,04/02/2020,3399040,527.80,0.00,N/A,N/A
Physical Support,Community Support - Physical Support,Community Support,GREENWICH GARDENS EXTRA CAS DCS,537476,04/02/2020,3399041,"1,174.24",0.00,N/A,N/A
Physical Support,Community Support - Physical Support,Community Support,GREENWICH GARDENS EXTRA CAS DCS,537476,04/02/2020,3399029,"1,077.65",0.00,N/A,N/A
Physical Support,Community Support - Physical Support,Community Support,GREENWICH GARDENS EXTRA CAS DCS,537476,04/02/2020,3398930,"1,429.40",0.00,N/A,N/A
Physical Support,Community Support - Physical Support,Community Support,GREENWICH GARDENS EXTRA CAS DCS,537476,04/02/2020,3399501,796.78,0.00,N/A,N/A
Physical Support,Community Support - Physical Support,Community Support,GREENWICH GARDENS EXTRA CAS DCS,537476,04/02/2020,3399506,898.18,0.00,N/A,N/A
Physical Support,Community Support - Physical Support,Community Support,GREENWICH GARDENS EXTRA CAS DCS,537476,04/02/2020,3399334,661.56,0.00,N/A,N/A
Physical Support,Community Support - Physical Support,Community Support,GREENWICH GARDENS EXTRA CAS DCS,537476,04/02/2020,3399335,"1,433.40",0.00,N/A,N/A
Physical Support,Community Support - Physical Support,Community Support,GREENWICH GARDENS EXTRA CAS DCS,537476,04/02/2020,3399244,983.88,0.00,N/A,N/A
Physical Support,Community Support - Physical Support,Community Support,GREENWICH GARDENS EXTRA CAS DCS,537476,04/02/2020,3399245,957.66,0.00,N/A,N/A
Physical Support,Community Support - Physical Support,Community Support,GREENWICH GARDENS EXTRA CAS DCS,537476,04/02/2020,3399249,"1,001.56",0.00,N/A,N/A
Physical Support,Community Support - Physical Support,Community Support,GREENWICH GARDENS EXTRA CAS DCS,537476,04/02/2020,3399411,"1,077.65",0.00,N/A,N/A
Physical Support,Community Support - Physical Support,Community Support,GREENWICH GARDENS EXTRA CAS DCS,537476,04/02/2020,3399426,600.23,0.00,N/A,N/A
Physical Support,Community Support - Physical Support,Community Support,GREENWICH GARDENS EXTRA CAS DCS,537476,04/02/2020,3399430,840.56,0.00,N/A,N/A
Physical Support,Community Support - Physical Support,Community Support,GREENWICH GARDENS EXTRA CAS DCS,537476,04/02/2020,3399431,939.76,0.00,N/A,N/A
Physical Support,Community Support - Physical Support,Community Support,GREENWICH GARDENS EXTRA CAS DCS,537476,04/02/2020,3399607,"1,467.56",0.00,N/A,N/A
Physical Support,Community Support - Physical Support,Community Support,GREENWICH GARDENS EXTRA CAS DCS,537476,04/02/2020,3399610,815.08,0.00,N/A,N/A
Physical Support,Community Support - Physical Support,Community Support,GREENWICH GARDENS EXTRA CAS DCS,537476,04/02/2020,3399139,796.78,0.00,N/A,N/A
Physical Support,Community Support - Physical Support,Community Support,GREENWICH GARDENS EXTRA CAS DCS,537476,04/02/2020,3399140,859.16,0.00,N/A,N/A
Physical Support,Community Support - Physical Support,Community Support,GREENWICH GARDENS EXTRA CAS DCS,537476,04/02/2020,3399141,"1,493.98",0.00,N/A,N/A
Physical Support,Community Support - Physical Support,Community Support,GREENWICH GARDENS EXTRA CAS DCS,537476,04/02/2020,3399147,796.33,0.00,N/A,N/A
Sensory Support,Community Support - Sensory Support,Community Support,GREENWICH GARDENS EXTRA CAS DCS,537476,04/02/2020,3399042,537.40,0.00,N/A,N/A
Sensory Support,Community Support - Sensory Support,Community Support,GREENWICH GARDENS EXTRA CAS DCS,537476,04/02/2020,3399043,"1,103.24",0.00,N/A,N/A
Support with Memory and Cognition,Community Support - Support with Memory and Cognition,Community Support,GREENWICH GARDENS EXTRA CAS DCS,537476,04/02/2020,3399046,"1,250.68",0.00,N/A,N/A
Support with Memory and Cognition,Community Support - Support with Memory and Cognition,Community Support,GREENWICH GARDENS EXTRA CAS DCS,537476,04/02/2020,3398936,"1,250.68",0.00,N/A,N/A
Mental Health Support,Mental Health - Mental Health Support,Mental Health,GREENWICH GARDENS EXTRA CAS DCS,537476,04/02/2020,3399045,576.80,0.00,N/A,N/A
Mental Health Support,Mental Health - Mental Health Support,Mental Health,GREENWICH GARDENS EXTRA CAS DCS,537476,04/02/2020,3399434,616.16,0.00,N/A,N/A
Non Delegated Schools Budget,Non Delegated School Expenditure,Schools Block,GRIFFE FIELD PRIMARY SCHOOL,946488,04/02/2020,3401604,"11,432.16",0.00,N/A,N/A
Non Delegated Schools Budget,Non Delegated School Expenditure,Schools Block,HARDWICK PRIMARY SCHOOL,937512,04/02/2020,3401560,"18,578.79",0.00,N/A,N/A
Strategic Asset Management and Estates,Strategic Asset Management and Estates,"Regeneration, Property & Housing",HAYS SPECIALIST RECRUITMENT LTD,1852,04/02/2020,3397181,"3,524.98",0.00,N/A,N/A
Grounds Maintenance & Cleansing,Grounds Maintenance,"Strategic Partnerships, Planning & Streetpride",HEALTHMATIC LTD,1863,04/02/2020,3401746,"1,150.42",0.00,Communities & Place,Structures and Building and Construction
Non Delegated Schools Budget,Non Delegated School Expenditure,Schools Block,HEATHERTON PRE SCHOOL,933476,04/02/2020,3401676,"5,709.33",0.00,N/A,N/A
Non Delegated Schools Budget,Non Delegated School Expenditure,Schools Block,HEATHERTON PRE SCHOOL,933476,04/02/2020,3399714,"1,404.00",0.00,N/A,N/A
Strategic Housing,Housing and Advice,"Regeneration, Property & Housing",HILBROKE HOUSE LTD,1002472,04/02/2020,3401730,521.50,0.00,N/A,N/A
Strategic Housing,Housing and Advice,"Regeneration, Property & Housing",HILBROKE HOUSE LTD,1002472,04/02/2020,3401732,521.50,0.00,N/A,N/A
Early Help & Children�s Safeguarding,Integrated Services Locality 3/4,Non-Schools,HILBROKE HOUSE LTD,1002472,04/02/2020,3401802,525.00,0.00,N/A,N/A
Physical Support,Community Support - Physical Support,Community Support,HOME FROM HOME CARE SERVICES,388466,04/02/2020,3398954,970.78,0.00,N/A,N/A
Physical Support,Community Support - Physical Support,Community Support,HOME FROM HOME CARE SERVICES,388466,04/02/2020,3398955,"1,095.88",0.00,N/A,N/A
Physical Support,Community Support - Physical Support,Community Support,HOME FROM HOME CARE SERVICES,388466,04/02/2020,3398956,"1,095.88",0.00,N/A,N/A
Physical Support,Community Support - Physical Support,Community Support,HOME FROM HOME CARE SERVICES,388466,04/02/2020,3398957,"1,185.52",0.00,N/A,N/A
Physical Support,Community Support - Physical Support,Community Support,HOME FROM HOME CARE SERVICES,388466,04/02/2020,3399053,716.34,0.00,N/A,N/A
Physical Support,Community Support - Physical Support,Community Support,HOME FROM HOME CARE SERVICES,388466,04/02/2020,3398952,654.76,0.00,N/A,N/A
Physical Support,Community Support - Physical Support,Community Support,HOME FROM HOME CARE SERVICES,388466,04/02/2020,3398953,708.98,0.00,N/A,N/A
Physical Support,Community Support - Physical Support,Community Support,HOME FROM HOME CARE SERVICES,388466,04/02/2020,3399520,"2,198.70",0.00,N/A,N/A
Physical Support,Community Support - Physical Support,Community Support,HOME FROM HOME CARE SERVICES,388466,04/02/2020,3399521,793.88,0.00,N/A,N/A
Physical Support,Community Support - Physical Support,Community Support,HOME FROM HOME CARE SERVICES,388466,04/02/2020,3399623,"2,994.68",0.00,N/A,N/A
Mental Health Support,Community Support - Mental Health Support,Community Support,HOME SUPPORT SERVICES,1120475,04/02/2020,3399223,502.58,0.00,N/A,N/A
Physical Support,Community Support - Physical Support,Community Support,HOME SUPPORT SERVICES,1120475,04/02/2020,3398916,564.35,0.00,N/A,N/A
Physical Support,Community Support - Physical Support,Community Support,HOME SUPPORT SERVICES,1120475,04/02/2020,3398917,544.26,0.00,N/A,N/A
Physical Support,Community Support - Physical Support,Community Support,HOME SUPPORT SERVICES,1120475,04/02/2020,3399026,"1,101.96",0.00,N/A,N/A
Physical Support,Community Support - Physical Support,Community Support,HOME SUPPORT SERVICES,1120475,04/02/2020,3399495,774.44,0.00,N/A,N/A
Physical Support,Community Support - Physical Support,Community Support,HOME SUPPORT SERVICES,1120475,04/02/2020,3399220,774.44,0.00,N/A,N/A
Physical Support,Community Support - Physical Support,Community Support,HOME SUPPORT SERVICES,1120475,04/02/2020,3399221,774.44,0.00,N/A,N/A
Physical Support,Community Support - Physical Support,Community Support,HOME SUPPORT SERVICES,1120475,04/02/2020,3399400,564.35,0.00,N/A,N/A
Physical Support,Community Support - Physical Support,Community Support,HOME SUPPORT SERVICES,1120475,04/02/2020,3399401,544.26,0.00,N/A,N/A
Physical Support,Community Support - Physical Support,Community Support,HOME SUPPORT SERVICES,1120475,04/02/2020,3399589,774.44,0.00,N/A,N/A
Physical Support,Community Support - Physical Support,Community Support,HOME SUPPORT SERVICES,1120475,04/02/2020,3399590,774.44,0.00,N/A,N/A
Physical Support,Community Support - Physical Support,Community Support,HOME SUPPORT SERVICES,1120475,04/02/2020,3399315,774.44,0.00,N/A,N/A
Integrated Commissioning,Integrated Commissioning,Commissioning,HOUSING 21,1030469,04/02/2020,3396410,"2,146.24",0.00,N/A,N/A
Non Delegated Schools Budget,Non Delegated School Expenditure,Schools Block,INCREDIBLE KIDS DERBY LTD,936501,04/02/2020,3401624,"20,154.14",0.00,N/A,N/A
Non Delegated Schools Budget,Non Delegated School Expenditure,Schools Block,INCREDIBLE KIDS DERBY LTD,936501,04/02/2020,3402123,"4,446.00",0.00,N/A,N/A
Non Delegated Schools Budget,Non Delegated School Expenditure,Schools Block,KING GEORGE V PRE-SCHOOL PLAYGROUP,553443,04/02/2020,3401644,"12,947.63",0.00,N/A,N/A
Non Delegated Schools Budget,Non Delegated School Expenditure,Schools Block,KINGFISHER DAY NURSERY DUFFIELD RD,936472,04/02/2020,3401564,"13,249.06",0.00,N/A,N/A
Non Delegated Schools Budget,Non Delegated School Expenditure,Schools Block,KINGFISHER DAY NURSERY DUFFIELD RD,936472,04/02/2020,3402115,"1,404.00",0.00,N/A,N/A
Non Delegated Schools Budget,Non Delegated School Expenditure,Schools Block,KINGFISHER DAY NURSERY SPONDON,932491,04/02/2020,3401678,"29,287.51",0.00,N/A,N/A
Non Delegated Schools Budget,Non Delegated School Expenditure,Schools Block,KINGFISHER DAY NURSERY SPONDON,932491,04/02/2020,3402146,"4,867.20",0.00,N/A,N/A
Non Delegated Schools Budget,Non Delegated School Expenditure,Schools Block,LA PETITE ACADEMY,932492,04/02/2020,3401658,"17,867.58",0.00,N/A,N/A
Non Delegated Schools Budget,Non Delegated School Expenditure,Schools Block,LA PETITE ACADEMY,932492,04/02/2020,3399716,"3,712.80",0.00,N/A,N/A
Non Delegated Schools Budget,Non Delegated School Expenditure,Schools Block,LEAPFROG DAY NURSERIES DE23 3TZ (INTERFACE),943470,04/02/2020,3401670,"23,464.39",0.00,N/A,N/A
Non Delegated Schools Budget,Non Delegated School Expenditure,Schools Block,LEAPFROG DAY NURSERIES DE23 3TZ (INTERFACE),943470,04/02/2020,3402141,"2,901.60",0.00,N/A,N/A
Non Delegated Schools Budget,Non Delegated School Expenditure,Schools Block,LEAPFROGS PRE SCHOOL TRUST,932495,04/02/2020,3402182,"5,219.96",0.00,N/A,N/A
Non Delegated Schools Budget,Non Delegated School Expenditure,Schools Block,LEAPFROGS PRE SCHOOL TRUST,932495,04/02/2020,3402090,"1,291.68",0.00,N/A,N/A
Non Delegated Schools Budget,Non Delegated School Expenditure,Schools Block,LEARNERS TRUST,1123469,04/02/2020,3401539,"12,144.67",0.00,N/A,N/A
Legal Services,Legal Services,Governance and Assurance,LEXIS NEXIS UK,2385,04/02/2020,3379813,958.00,0.00,Organisation & Governance,Published Products
Learning & Inclusion,Adult Learning - SFA,Non-Schools,LINK ICT SERVICES LTD,154331,04/02/2020,3402273,"3,200.00",0.00,N/A,N/A
Non Delegated Schools Budget,Non Delegated School Expenditure,Schools Block,LITTLE ANGELS DAY NURSERY,937481,04/02/2020,3401679,"20,248.56",0.00,N/A,N/A
Non Delegated Schools Budget,Non Delegated School Expenditure,Schools Block,LITTLE ANGELS DAY NURSERY,937481,04/02/2020,3402166,"3,572.40",0.00,N/A,N/A
Non Delegated Schools Budget,Non Delegated School Expenditure,Schools Block,LITTLE ANGELS PLAYSCHOOL,936489,04/02/2020,3401626,"19,338.21",0.00,N/A,N/A
Non Delegated Schools Budget,Non Delegated School Expenditure,Schools Block,LITTLE ANGELS PLAYSCHOOL,936489,04/02/2020,3402164,"1,778.40",0.00,N/A,N/A
Non Delegated Schools Budget,Non Delegated School Expenditure,Schools Block,LITTLE OWLS PLAYGROUP,936524,04/02/2020,3401540,"17,058.60",0.00,N/A,N/A
Non Delegated Schools Budget,Non Delegated School Expenditure,Schools Block,LITTLE OWLS PLAYGROUP,936524,04/02/2020,3402165,"3,260.40",0.00,N/A,N/A
Non Delegated Schools Budget,Non Delegated School Expenditure,Schools Block,LITTLE POPPIES PLAYGROUP,932494,04/02/2020,3401659,"6,332.65",0.00,N/A,N/A
Non Delegated Schools Budget,Non Delegated School Expenditure,Schools Block,LITTLE POPPIES PLAYGROUP,932494,04/02/2020,3402148,"1,003.60",0.00,N/A,N/A
Non Delegated Schools Budget,Non Delegated School Expenditure,Schools Block,LITTLE SCHOLARS LTD,936475,04/02/2020,3402173,"11,908.45",0.00,N/A,N/A
Non Delegated Schools Budget,Non Delegated School Expenditure,Schools Block,LITTLE SCHOLARS LTD,936475,04/02/2020,3402105,936.00,0.00,N/A,N/A
Non Delegated Schools Budget,Non Delegated School Expenditure,Schools Block,LITTLESTEPS PRESCHOOL LTD,932490,04/02/2020,3401607,"6,238.68",0.00,N/A,N/A
Performance and Intelligence,Performance and Intelligence,Strategic Services and Organisational Development,LOCAL GOVERNMENT INFORMATION UNIT,2479,04/02/2020,3397175,"7,200.00",0.00,Organisation & Governance,Organizations and Clubs
Grounds Maintenance & Cleansing,Cleansing (inc public conveniences & gullies),"Strategic Partnerships, Planning & Streetpride",MAGFERN RECYCLING 2018 LTD,956474,04/02/2020,3398788,"1,865.78",0.00,N/A,N/A
Grounds Maintenance & Cleansing,Cleansing (inc public conveniences & gullies),"Strategic Partnerships, Planning & Streetpride",MAGFERN RECYCLING 2018 LTD,956474,04/02/2020,3398789,"2,177.58",0.00,N/A,N/A
Grounds Maintenance & Cleansing,Cleansing (inc public conveniences & gullies),"Strategic Partnerships, Planning & Streetpride",MAGFERN RECYCLING 2018 LTD,956474,04/02/2020,3398790,"3,537.30",0.00,N/A,N/A
Grounds Maintenance & Cleansing,Grounds Maintenance,"Strategic Partnerships, Planning & Streetpride",MAGFERN RECYCLING 2018 LTD,956474,04/02/2020,3398791,686.73,0.00,N/A,N/A
Regeneration Projects,Regeneration Projects,"Regeneration, Property & Housing",MARKET PLACE MANAGEMENT LTD,464410,04/02/2020,3384289,"1,136.92",0.00,Communities & Place,Management and Business Professionals an
Non Delegated Schools Budget,Non Delegated School Expenditure,Schools Block,MARY POPPINS NURSERY,932482,04/02/2020,3401627,"18,340.01",0.00,N/A,N/A
Community Safety and Integration,Partnerships,"Communities, Environment & Regulatory Services",MASH UP DERBY LTD,426400,04/02/2020,3398852,"3,750.00",0.00,Communities & Place,Editorial and Design and Graphic and Fin
Traffic & Transportation,Network Mgmnt & Highway Dev Control,"Strategic Partnerships, Planning & Streetpride",MCCONNELLS (MIDLANDS) LTD,2917,04/02/2020,3389871,742.39,0.00,Communities & Place,Editorial and Design and Graphic and Fin
Physical Support,Community Support - Physical Support,Community Support,MEARS CARE LIMITED,1052472,04/02/2020,3399254,926.92,0.00,N/A,N/A
Adults Health and Housing,Capital,Capital,MEDEQUIP ASSISTIVE TECH LTD,117887,04/02/2020,3397621,"1,627.40",0.00,Disabled Facilities Grant 96 Act,Medical Equipment and Accessories and Su
Adults Health and Housing,Capital,Capital,MEDEQUIP ASSISTIVE TECH LTD,117887,04/02/2020,3397626,"1,377.00",0.00,Disabled Facilities Grant 96 Act,Medical Equipment and Accessories and Su
Learning Disability Support,Community Support - Learning Disability Support,Community Support,MEDILINE NURSES AND CARERS LTD,388469,04/02/2020,3399329,"1,347.92",0.00,N/A,N/A
Mental Health Support,Community Support - Mental Health Support,Community Support,MEDILINE NURSES AND CARERS LTD,388469,04/02/2020,3399238,950.00,0.00,N/A,N/A
Physical Support,Community Support - Physical Support,Community Support,MEDILINE NURSES AND CARERS LTD,388469,04/02/2020,3398962,670.33,0.00,N/A,N/A
Physical Support,Community Support - Physical Support,Community Support,MEDILINE NURSES AND CARERS LTD,388469,04/02/2020,3398969,827.56,0.00,N/A,N/A
Physical Support,Community Support - Physical Support,Community Support,MEDILINE NURSES AND CARERS LTD,388469,04/02/2020,3398970,"1,034.40",0.00,N/A,N/A
Physical Support,Community Support - Physical Support,Community Support,MEDILINE NURSES AND CARERS LTD,388469,04/02/2020,3398977,994.20,0.00,N/A,N/A
Physical Support,Community Support - Physical Support,Community Support,MEDILINE NURSES AND CARERS LTD,388469,04/02/2020,3398978,994.20,0.00,N/A,N/A
Physical Support,Community Support - Physical Support,Community Support,MEDILINE NURSES AND CARERS LTD,388469,04/02/2020,3398984,"1,103.24",0.00,N/A,N/A
Physical Support,Community Support - Physical Support,Community Support,MEDILINE NURSES AND CARERS LTD,388469,04/02/2020,3398985,"1,896.95",0.00,N/A,N/A
Physical Support,Community Support - Physical Support,Community Support,MEDILINE NURSES AND CARERS LTD,388469,04/02/2020,3399064,732.70,0.00,N/A,N/A
Physical Support,Community Support - Physical Support,Community Support,MEDILINE NURSES AND CARERS LTD,388469,04/02/2020,3399004,504.46,0.00,N/A,N/A
Physical Support,Community Support - Physical Support,Community Support,MEDILINE NURSES AND CARERS LTD,388469,04/02/2020,3399005,505.50,0.00,N/A,N/A
Physical Support,Community Support - Physical Support,Community Support,MEDILINE NURSES AND CARERS LTD,388469,04/02/2020,3399032,741.97,0.00,N/A,N/A
Physical Support,Community Support - Physical Support,Community Support,MEDILINE NURSES AND CARERS LTD,388469,04/02/2020,3399080,875.14,0.00,N/A,N/A
Physical Support,Community Support - Physical Support,Community Support,MEDILINE NURSES AND CARERS LTD,388469,04/02/2020,3399081,"1,103.24",0.00,N/A,N/A
Physical Support,Community Support - Physical Support,Community Support,MEDILINE NURSES AND CARERS LTD,388469,04/02/2020,3399006,762.28,0.00,N/A,N/A
Physical Support,Community Support - Physical Support,Community Support,MEDILINE NURSES AND CARERS LTD,388469,04/02/2020,3399010,795.68,0.00,N/A,N/A
Physical Support,Community Support - Physical Support,Community Support,MEDILINE NURSES AND CARERS LTD,388469,04/02/2020,3399011,900.63,0.00,N/A,N/A
Physical Support,Community Support - Physical Support,Community Support,MEDILINE NURSES AND CARERS LTD,388469,04/02/2020,3399012,"1,029.90",0.00,N/A,N/A
Physical Support,Community Support - Physical Support,Community Support,MEDILINE NURSES AND CARERS LTD,388469,04/02/2020,3399017,"1,144.84",0.00,N/A,N/A
Physical Support,Community Support - Physical Support,Community Support,MEDILINE NURSES AND CARERS LTD,388469,04/02/2020,3399031,732.17,0.00,N/A,N/A
Physical Support,Community Support - Physical Support,Community Support,MEDILINE NURSES AND CARERS LTD,388469,04/02/2020,3398921,827.43,0.00,N/A,N/A
Physical Support,Community Support - Physical Support,Community Support,MEDILINE NURSES AND CARERS LTD,388469,04/02/2020,3398922,837.16,0.00,N/A,N/A
Physical Support,Community Support - Physical Support,Community Support,MEDILINE NURSES AND CARERS LTD,388469,04/02/2020,3398923,"1,008.92",0.00,N/A,N/A
Physical Support,Community Support - Physical Support,Community Support,MEDILINE NURSES AND CARERS LTD,388469,04/02/2020,3398924,"1,015.18",0.00,N/A,N/A
Physical Support,Community Support - Physical Support,Community Support,MEDILINE NURSES AND CARERS LTD,388469,04/02/2020,3399056,681.24,0.00,N/A,N/A
Physical Support,Community Support - Physical Support,Community Support,MEDILINE NURSES AND CARERS LTD,388469,04/02/2020,3399639,774.01,0.00,N/A,N/A
Physical Support,Community Support - Physical Support,Community Support,MEDILINE NURSES AND CARERS LTD,388469,04/02/2020,3399168,574.60,0.00,N/A,N/A
Physical Support,Community Support - Physical Support,Community Support,MEDILINE NURSES AND CARERS LTD,388469,04/02/2020,3399172,832.59,0.00,N/A,N/A
Physical Support,Community Support - Physical Support,Community Support,MEDILINE NURSES AND CARERS LTD,388469,04/02/2020,3399323,536.32,0.00,N/A,N/A
Physical Support,Community Support - Physical Support,Community Support,MEDILINE NURSES AND CARERS LTD,388469,04/02/2020,3399324,608.84,0.00,N/A,N/A
Physical Support,Community Support - Physical Support,Community Support,MEDILINE NURSES AND CARERS LTD,388469,04/02/2020,3399325,713.28,0.00,N/A,N/A
Physical Support,Community Support - Physical Support,Community Support,MEDILINE NURSES AND CARERS LTD,388469,04/02/2020,3399326,"1,103.24",0.00,N/A,N/A
Physical Support,Community Support - Physical Support,Community Support,MEDILINE NURSES AND CARERS LTD,388469,04/02/2020,3399327,"1,103.24",0.00,N/A,N/A
Physical Support,Community Support - Physical Support,Community Support,MEDILINE NURSES AND CARERS LTD,388469,04/02/2020,3399328,"1,199.16",0.00,N/A,N/A
Physical Support,Community Support - Physical Support,Community Support,MEDILINE NURSES AND CARERS LTD,388469,04/02/2020,3399483,882.48,0.00,N/A,N/A
Physical Support,Community Support - Physical Support,Community Support,MEDILINE NURSES AND CARERS LTD,388469,04/02/2020,3399484,"1,103.24",0.00,N/A,N/A
Physical Support,Community Support - Physical Support,Community Support,MEDILINE NURSES AND CARERS LTD,388469,04/02/2020,3399485,"1,103.24",0.00,N/A,N/A
Physical Support,Community Support - Physical Support,Community Support,MEDILINE NURSES AND CARERS LTD,388469,04/02/2020,3399486,"1,103.24",0.00,N/A,N/A
Physical Support,Community Support - Physical Support,Community Support,MEDILINE NURSES AND CARERS LTD,388469,04/02/2020,3399489,"1,261.50",0.00,N/A,N/A
Physical Support,Community Support - Physical Support,Community Support,MEDILINE NURSES AND CARERS LTD,388469,04/02/2020,3399178,571.71,0.00,N/A,N/A
Physical Support,Community Support - Physical Support,Community Support,MEDILINE NURSES AND CARERS LTD,388469,04/02/2020,3399499,"1,103.24",0.00,N/A,N/A
Physical Support,Community Support - Physical Support,Community Support,MEDILINE NURSES AND CARERS LTD,388469,04/02/2020,3399669,527.80,0.00,N/A,N/A
Physical Support,Community Support - Physical Support,Community Support,MEDILINE NURSES AND CARERS LTD,388469,04/02/2020,3399670,746.24,0.00,N/A,N/A
Physical Support,Community Support - Physical Support,Community Support,MEDILINE NURSES AND CARERS LTD,388469,04/02/2020,3399678,957.36,0.00,N/A,N/A
Physical Support,Community Support - Physical Support,Community Support,MEDILINE NURSES AND CARERS LTD,388469,04/02/2020,3399679,"1,029.90",0.00,N/A,N/A
Physical Support,Community Support - Physical Support,Community Support,MEDILINE NURSES AND CARERS LTD,388469,04/02/2020,3399203,568.36,0.00,N/A,N/A
Physical Support,Community Support - Physical Support,Community Support,MEDILINE NURSES AND CARERS LTD,388469,04/02/2020,3399523,783.46,0.00,N/A,N/A
Physical Support,Community Support - Physical Support,Community Support,MEDILINE NURSES AND CARERS LTD,388469,04/02/2020,3399524,"1,106.92",0.00,N/A,N/A
Physical Support,Community Support - Physical Support,Community Support,MEDILINE NURSES AND CARERS LTD,388469,04/02/2020,3399525,"1,106.92",0.00,N/A,N/A
Physical Support,Community Support - Physical Support,Community Support,MEDILINE NURSES AND CARERS LTD,388469,04/02/2020,3399686,"1,103.24",0.00,N/A,N/A
Physical Support,Community Support - Physical Support,Community Support,MEDILINE NURSES AND CARERS LTD,388469,04/02/2020,3399687,"1,144.84",0.00,N/A,N/A
Physical Support,Community Support - Physical Support,Community Support,MEDILINE NURSES AND CARERS LTD,388469,04/02/2020,3399688,"1,398.00",0.00,N/A,N/A
Physical Support,Community Support - Physical Support,Community Support,MEDILINE NURSES AND CARERS LTD,388469,04/02/2020,3399689,"1,460.32",0.00,N/A,N/A
Physical Support,Community Support - Physical Support,Community Support,MEDILINE NURSES AND CARERS LTD,388469,04/02/2020,3399691,879.49,0.00,N/A,N/A
Physical Support,Community Support - Physical Support,Community Support,MEDILINE NURSES AND CARERS LTD,388469,04/02/2020,3399204,611.05,0.00,N/A,N/A
Physical Support,Community Support - Physical Support,Community Support,MEDILINE NURSES AND CARERS LTD,388469,04/02/2020,3399205,724.15,0.00,N/A,N/A
Physical Support,Community Support - Physical Support,Community Support,MEDILINE NURSES AND CARERS LTD,388469,04/02/2020,3399207,797.76,0.00,N/A,N/A
Physical Support,Community Support - Physical Support,Community Support,MEDILINE NURSES AND CARERS LTD,388469,04/02/2020,3399208,896.01,0.00,N/A,N/A
Physical Support,Community Support - Physical Support,Community Support,MEDILINE NURSES AND CARERS LTD,388469,04/02/2020,3399209,896.01,0.00,N/A,N/A
Physical Support,Community Support - Physical Support,Community Support,MEDILINE NURSES AND CARERS LTD,388469,04/02/2020,3399210,"1,048.30",0.00,N/A,N/A
Physical Support,Community Support - Physical Support,Community Support,MEDILINE NURSES AND CARERS LTD,388469,04/02/2020,3399211,"1,066.57",0.00,N/A,N/A
Physical Support,Community Support - Physical Support,Community Support,MEDILINE NURSES AND CARERS LTD,388469,04/02/2020,3399351,607.42,0.00,N/A,N/A
Physical Support,Community Support - Physical Support,Community Support,MEDILINE NURSES AND CARERS LTD,388469,04/02/2020,3399229,539.96,0.00,N/A,N/A
Physical Support,Community Support - Physical Support,Community Support,MEDILINE NURSES AND CARERS LTD,388469,04/02/2020,3399230,555.92,0.00,N/A,N/A
Physical Support,Community Support - Physical Support,Community Support,MEDILINE NURSES AND CARERS LTD,388469,04/02/2020,3399363,"1,896.95",0.00,N/A,N/A
Physical Support,Community Support - Physical Support,Community Support,MEDILINE NURSES AND CARERS LTD,388469,04/02/2020,3399231,827.43,0.00,N/A,N/A
Physical Support,Community Support - Physical Support,Community Support,MEDILINE NURSES AND CARERS LTD,388469,04/02/2020,3399232,"1,103.24",0.00,N/A,N/A
Physical Support,Community Support - Physical Support,Community Support,MEDILINE NURSES AND CARERS LTD,388469,04/02/2020,3399381,521.69,0.00,N/A,N/A
Physical Support,Community Support - Physical Support,Community Support,MEDILINE NURSES AND CARERS LTD,388469,04/02/2020,3399382,531.06,0.00,N/A,N/A
Physical Support,Community Support - Physical Support,Community Support,MEDILINE NURSES AND CARERS LTD,388469,04/02/2020,3399383,671.19,0.00,N/A,N/A
Physical Support,Community Support - Physical Support,Community Support,MEDILINE NURSES AND CARERS LTD,388469,04/02/2020,3399233,"1,103.24",0.00,N/A,N/A
Physical Support,Community Support - Physical Support,Community Support,MEDILINE NURSES AND CARERS LTD,388469,04/02/2020,3399234,"1,199.16",0.00,N/A,N/A
Physical Support,Community Support - Physical Support,Community Support,MEDILINE NURSES AND CARERS LTD,388469,04/02/2020,3399386,937.64,0.00,N/A,N/A
Physical Support,Community Support - Physical Support,Community Support,MEDILINE NURSES AND CARERS LTD,388469,04/02/2020,3399101,503.42,0.00,N/A,N/A
Physical Support,Community Support - Physical Support,Community Support,MEDILINE NURSES AND CARERS LTD,388469,04/02/2020,3399102,634.28,0.00,N/A,N/A
Physical Support,Community Support - Physical Support,Community Support,MEDILINE NURSES AND CARERS LTD,388469,04/02/2020,3399103,762.28,0.00,N/A,N/A
Physical Support,Community Support - Physical Support,Community Support,MEDILINE NURSES AND CARERS LTD,388469,04/02/2020,3399104,763.53,0.00,N/A,N/A
Physical Support,Community Support - Physical Support,Community Support,MEDILINE NURSES AND CARERS LTD,388469,04/02/2020,3399110,942.94,0.00,N/A,N/A
Physical Support,Community Support - Physical Support,Community Support,MEDILINE NURSES AND CARERS LTD,388469,04/02/2020,3399111,961.21,0.00,N/A,N/A
Physical Support,Community Support - Physical Support,Community Support,MEDILINE NURSES AND CARERS LTD,388469,04/02/2020,3399112,"1,032.24",0.00,N/A,N/A
Physical Support,Community Support - Physical Support,Community Support,MEDILINE NURSES AND CARERS LTD,388469,04/02/2020,3399113,"1,032.24",0.00,N/A,N/A
Physical Support,Community Support - Physical Support,Community Support,MEDILINE NURSES AND CARERS LTD,388469,04/02/2020,3399114,"1,103.24",0.00,N/A,N/A
Physical Support,Community Support - Physical Support,Community Support,MEDILINE NURSES AND CARERS LTD,388469,04/02/2020,3399392,"1,398.00",0.00,N/A,N/A
Physical Support,Community Support - Physical Support,Community Support,MEDILINE NURSES AND CARERS LTD,388469,04/02/2020,3399567,634.28,0.00,N/A,N/A
Physical Support,Community Support - Physical Support,Community Support,MEDILINE NURSES AND CARERS LTD,388469,04/02/2020,3399568,772.64,0.00,N/A,N/A
Physical Support,Community Support - Physical Support,Community Support,MEDILINE NURSES AND CARERS LTD,388469,04/02/2020,3399412,529.05,0.00,N/A,N/A
Physical Support,Community Support - Physical Support,Community Support,MEDILINE NURSES AND CARERS LTD,388469,04/02/2020,3399413,539.96,0.00,N/A,N/A
Physical Support,Community Support - Physical Support,Community Support,MEDILINE NURSES AND CARERS LTD,388469,04/02/2020,3399414,623.84,0.00,N/A,N/A
Physical Support,Community Support - Physical Support,Community Support,MEDILINE NURSES AND CARERS LTD,388469,04/02/2020,3399415,771.88,0.00,N/A,N/A
Physical Support,Community Support - Physical Support,Community Support,MEDILINE NURSES AND CARERS LTD,388469,04/02/2020,3399416,827.43,0.00,N/A,N/A
Physical Support,Community Support - Physical Support,Community Support,MEDILINE NURSES AND CARERS LTD,388469,04/02/2020,3399417,827.43,0.00,N/A,N/A
Physical Support,Community Support - Physical Support,Community Support,MEDILINE NURSES AND CARERS LTD,388469,04/02/2020,3399418,935.58,0.00,N/A,N/A
Physical Support,Community Support - Physical Support,Community Support,MEDILINE NURSES AND CARERS LTD,388469,04/02/2020,3399573,882.48,0.00,N/A,N/A
Physical Support,Community Support - Physical Support,Community Support,MEDILINE NURSES AND CARERS LTD,388469,04/02/2020,3399574,900.63,0.00,N/A,N/A
Physical Support,Community Support - Physical Support,Community Support,MEDILINE NURSES AND CARERS LTD,388469,04/02/2020,3399575,942.94,0.00,N/A,N/A
Physical Support,Community Support - Physical Support,Community Support,MEDILINE NURSES AND CARERS LTD,388469,04/02/2020,3399576,952.38,0.00,N/A,N/A
Physical Support,Community Support - Physical Support,Community Support,MEDILINE NURSES AND CARERS LTD,388469,04/02/2020,3399577,"1,008.92",0.00,N/A,N/A
Physical Support,Community Support - Physical Support,Community Support,MEDILINE NURSES AND CARERS LTD,388469,04/02/2020,3399126,539.96,0.00,N/A,N/A
Physical Support,Community Support - Physical Support,Community Support,MEDILINE NURSES AND CARERS LTD,388469,04/02/2020,3399127,601.48,0.00,N/A,N/A
Physical Support,Community Support - Physical Support,Community Support,MEDILINE NURSES AND CARERS LTD,388469,04/02/2020,3399128,837.16,0.00,N/A,N/A
Physical Support,Community Support - Physical Support,Community Support,MEDILINE NURSES AND CARERS LTD,388469,04/02/2020,3399129,"1,103.24",0.00,N/A,N/A
Physical Support,Community Support - Physical Support,Community Support,MEDILINE NURSES AND CARERS LTD,388469,04/02/2020,3399581,"1,103.24",0.00,N/A,N/A
Physical Support,Community Support - Physical Support,Community Support,MEDILINE NURSES AND CARERS LTD,388469,04/02/2020,3399582,"1,103.24",0.00,N/A,N/A
Physical Support,Community Support - Physical Support,Community Support,MEDILINE NURSES AND CARERS LTD,388469,04/02/2020,3399583,"1,191.56",0.00,N/A,N/A
Physical Support,Community Support - Physical Support,Community Support,MEDILINE NURSES AND CARERS LTD,388469,04/02/2020,3399596,563.28,0.00,N/A,N/A
Physical Support,Community Support - Physical Support,Community Support,MEDILINE NURSES AND CARERS LTD,388469,04/02/2020,3399597,625.86,0.00,N/A,N/A
Physical Support,Community Support - Physical Support,Community Support,MEDILINE NURSES AND CARERS LTD,388469,04/02/2020,3399598,638.24,0.00,N/A,N/A
Physical Support,Community Support - Physical Support,Community Support,MEDILINE NURSES AND CARERS LTD,388469,04/02/2020,3399599,648.00,0.00,N/A,N/A
Physical Support,Community Support - Physical Support,Community Support,MEDILINE NURSES AND CARERS LTD,388469,04/02/2020,3399600,871.60,0.00,N/A,N/A
Physical Support,Community Support - Physical Support,Community Support,MEDILINE NURSES AND CARERS LTD,388469,04/02/2020,3399601,879.49,0.00,N/A,N/A
Physical Support,Community Support - Physical Support,Community Support,MEDILINE NURSES AND CARERS LTD,388469,04/02/2020,3399602,"1,008.92",0.00,N/A,N/A
Physical Support,Community Support - Physical Support,Community Support,MEDILINE NURSES AND CARERS LTD,388469,04/02/2020,3399281,"1,103.24",0.00,N/A,N/A
Physical Support,Community Support - Physical Support,Community Support,MEDILINE NURSES AND CARERS LTD,388469,04/02/2020,3399282,"1,103.24",0.00,N/A,N/A
Physical Support,Community Support - Physical Support,Community Support,MEDILINE NURSES AND CARERS LTD,388469,04/02/2020,3399449,"1,387.68",0.00,N/A,N/A
Physical Support,Community Support - Physical Support,Community Support,MEDILINE NURSES AND CARERS LTD,388469,04/02/2020,3399455,606.46,0.00,N/A,N/A
Physical Support,Community Support - Physical Support,Community Support,MEDILINE NURSES AND CARERS LTD,388469,04/02/2020,3399164,618.68,0.00,N/A,N/A
Physical Support,Community Support - Physical Support,Community Support,MEDILINE NURSES AND CARERS LTD,388469,04/02/2020,3399302,539.96,0.00,N/A,N/A
Physical Support,Community Support - Physical Support,Community Support,MEDILINE NURSES AND CARERS LTD,388469,04/02/2020,3399628,765.96,0.00,N/A,N/A
Physical Support,Community Support - Physical Support,Community Support,MEDILINE NURSES AND CARERS LTD,388469,04/02/2020,3399303,762.28,0.00,N/A,N/A
Physical Support,Community Support - Physical Support,Community Support,MEDILINE NURSES AND CARERS LTD,388469,04/02/2020,3399306,925.28,0.00,N/A,N/A
Physical Support,Community Support - Physical Support,Community Support,MEDILINE NURSES AND CARERS LTD,388469,04/02/2020,3399307,"1,028.36",0.00,N/A,N/A
Physical Support,Community Support - Physical Support,Community Support,MEDILINE NURSES AND CARERS LTD,388469,04/02/2020,3399308,"1,028.36",0.00,N/A,N/A
Physical Support,Community Support - Physical Support,Community Support,MEDILINE NURSES AND CARERS LTD,388469,04/02/2020,3399309,"1,460.32",0.00,N/A,N/A
Physical Support,Community Support - Physical Support,Community Support,MEDILINE NURSES AND CARERS LTD,388469,04/02/2020,3399478,671.19,0.00,N/A,N/A
Sensory Support,Community Support - Sensory Support,Community Support,MEDILINE NURSES AND CARERS LTD,388469,04/02/2020,3399033,"1,103.24",0.00,N/A,N/A
Sensory Support,Community Support - Sensory Support,Community Support,MEDILINE NURSES AND CARERS LTD,388469,04/02/2020,3399235,957.36,0.00,N/A,N/A
Sensory Support,Community Support - Sensory Support,Community Support,MEDILINE NURSES AND CARERS LTD,388469,04/02/2020,3399236,"1,103.24",0.00,N/A,N/A
Sensory Support,Community Support - Sensory Support,Community Support,MEDILINE NURSES AND CARERS LTD,388469,04/02/2020,3399419,957.36,0.00,N/A,N/A
Support with Memory and Cognition,Community Support - Support with Memory and Cognition,Community Support,MEDILINE NURSES AND CARERS LTD,388469,04/02/2020,3399237,771.27,0.00,N/A,N/A
Support with Memory and Cognition,Community Support - Support with Memory and Cognition,Community Support,MEDILINE NURSES AND CARERS LTD,388469,04/02/2020,3399134,914.02,0.00,N/A,N/A
Support with Memory and Cognition,Community Support - Support with Memory and Cognition,Community Support,MEDILINE NURSES AND CARERS LTD,388469,04/02/2020,3399422,"1,092.33",0.00,N/A,N/A
Support with Memory and Cognition,Community Support - Support with Memory and Cognition,Community Support,MEDILINE NURSES AND CARERS LTD,388469,04/02/2020,3399423,"1,245.40",0.00,N/A,N/A
Mental Health Support,Mental Health - Mental Health Support,Mental Health,MEDILINE NURSES AND CARERS LTD,388469,04/02/2020,3399035,"1,103.24",0.00,N/A,N/A
Mental Health Support,Mental Health - Mental Health Support,Mental Health,MEDILINE NURSES AND CARERS LTD,388469,04/02/2020,3399036,980.40,0.00,N/A,N/A
Mental Health Support,Mental Health - Mental Health Support,Mental Health,MEDILINE NURSES AND CARERS LTD,388469,04/02/2020,3398928,"1,103.24",0.00,N/A,N/A
Mental Health Support,Mental Health - Mental Health Support,Mental Health,MEDILINE NURSES AND CARERS LTD,388469,04/02/2020,3399421,587.76,0.00,N/A,N/A
Mental Health Support,Mental Health - Mental Health Support,Mental Health,MEDILINE NURSES AND CARERS LTD,388469,04/02/2020,3399240,539.96,0.00,N/A,N/A
Physical Support,Community Support - Physical Support,Community Support,MELLOWCARE LTD,1153486,04/02/2020,3399515,827.43,0.00,N/A,N/A
Physical Support,Community Support - Physical Support,Community Support,MELLOWCARE LTD,1153486,04/02/2020,3399440,"1,266.56",0.00,N/A,N/A
Physical Support,Community Support - Physical Support,Community Support,MELLOWCARE LTD,1153486,04/02/2020,3399441,827.43,0.00,N/A,N/A
Non Delegated Schools Budget,Non Delegated School Expenditure,Schools Block,MICKLEOVER METHODIST PLAYGROUP,932487,04/02/2020,3401681,"9,715.86",0.00,N/A,N/A
General,Stores Road Depot & Fleet Management,"Strategic Partnerships, Planning & Streetpride",MIDLAND COUNTIES HEATING SERVICES,11546,04/02/2020,3398767,946.38,0.00,Communities & Place,Building and Construction Machinery and
Public Health,Sexual Health,Public Health,MIDLANDS PARTNERSHIP NHS FOUNDATION TRUST,833447,04/02/2020,3390827,888.60,0.00,N/A,N/A
Traffic & Transportation,Traffic & Transportation (inc Integrated Pass Transport),"Strategic Partnerships, Planning & Streetpride",NATIONAL EXPRESS LTD,904470,04/02/2020,3402008,"11,704.98",0.00,N/A,N/A
Libraries,Libraries,"Leisure, Culture and Tourism",NEWS TEAM GROUP LTD,882474,04/02/2020,3398685,893.00,0.00,N/A,N/A
Facilities Management,Cleaning & Caretaking,Strategic Services and Organisational Development,NILFISK LTD,1086468,04/02/2020,3401833,"2,088.00",0.00,N/A,N/A
Facilities Management,Cleaning & Caretaking,Strategic Services and Organisational Development,NILFISK LTD,1086468,04/02/2020,3401833,"2,088.00",0.00,N/A,N/A
Non Delegated Schools Budget,Non Delegated School Expenditure,Schools Block,OAK HOUSE NURSERY LTD,933492,04/02/2020,3401682,"14,666.04",0.00,N/A,N/A
Non Delegated Schools Budget,Non Delegated School Expenditure,Schools Block,OAK HOUSE NURSERY LTD,933492,04/02/2020,3402116,748.80,0.00,N/A,N/A
Non Delegated Schools Budget,Non Delegated School Expenditure,Schools Block,ODYSSEY COLLABORATIVE TRUST,1028478,04/02/2020,3401672,"12,227.04",0.00,N/A,N/A
Non Delegated Schools Budget,Non Delegated School Expenditure,Schools Block,ODYSSEY COLLABORATIVE TRUST DE21 6BT (INTERFACE),1082473,04/02/2020,3401550,"12,364.73",0.00,N/A,N/A
Non Delegated Schools Budget,Non Delegated School Expenditure,Schools Block,ODYSSEY COLLABORATIVE TRUST DE21 7PH (INTERFACE),1070469,04/02/2020,3401578,"14,489.11",0.00,N/A,N/A
Non Delegated Schools Budget,Non Delegated School Expenditure,Schools Block,ODYSSEY COLLABORATIVE TRUST DE21 7QW (INTERFACE),1082476,04/02/2020,3401551,"4,748.04",0.00,N/A,N/A
General,Stores Road Depot & Fleet Management,"Strategic Partnerships, Planning & Streetpride",PACE FUELCARE,474148,04/02/2020,3396789,560.00,0.00,N/A,N/A
Mental Health Support,Mental Health - Mental Health Support,Mental Health,PAMELA BAILEY,909471,04/02/2020,3400892,501.20,0.00,N/A,N/A
Learning Disability Support,Community Support - Learning Disability Support,Community Support,PARKLANDS VIEW EXTRA CARE DCS,471242,04/02/2020,3399016,"1,494.76",0.00,N/A,N/A
Learning Disability Support,Community Support - Learning Disability Support,Community Support,PARKLANDS VIEW EXTRA CARE DCS,471242,04/02/2020,3399685,"1,103.24",0.00,N/A,N/A
Learning Disability Support,Community Support - Learning Disability Support,Community Support,PARKLANDS VIEW EXTRA CARE DCS,471242,04/02/2020,3399216,775.00,0.00,N/A,N/A
Learning Disability Support,Community Support - Learning Disability Support,Community Support,PARKLANDS VIEW EXTRA CARE DCS,471242,04/02/2020,3399117,"1,254.52",0.00,N/A,N/A
Mental Health Support,Community Support - Mental Health Support,Community Support,PARKLANDS VIEW EXTRA CARE DCS,471242,04/02/2020,3399226,752.39,0.00,N/A,N/A
Physical Support,Community Support - Physical Support,Community Support,PARKLANDS VIEW EXTRA CARE DCS,471242,04/02/2020,3399007,815.89,0.00,N/A,N/A
Physical Support,Community Support - Physical Support,Community Support,PARKLANDS VIEW EXTRA CARE DCS,471242,04/02/2020,3399008,"1,130.12",0.00,N/A,N/A
Physical Support,Community Support - Physical Support,Community Support,PARKLANDS VIEW EXTRA CARE DCS,471242,04/02/2020,3399013,557.28,0.00,N/A,N/A
Physical Support,Community Support - Physical Support,Community Support,PARKLANDS VIEW EXTRA CARE DCS,471242,04/02/2020,3399014,"1,102.28",0.00,N/A,N/A
Physical Support,Community Support - Physical Support,Community Support,PARKLANDS VIEW EXTRA CARE DCS,471242,04/02/2020,3399015,"1,773.99",0.00,N/A,N/A
Physical Support,Community Support - Physical Support,Community Support,PARKLANDS VIEW EXTRA CARE DCS,471242,04/02/2020,3399487,845.83,0.00,N/A,N/A
Physical Support,Community Support - Physical Support,Community Support,PARKLANDS VIEW EXTRA CARE DCS,471242,04/02/2020,3399488,"1,272.68",0.00,N/A,N/A
Physical Support,Community Support - Physical Support,Community Support,PARKLANDS VIEW EXTRA CARE DCS,471242,04/02/2020,3399673,"1,126.68",0.00,N/A,N/A
Physical Support,Community Support - Physical Support,Community Support,PARKLANDS VIEW EXTRA CARE DCS,471242,04/02/2020,3399674,"1,275.04",0.00,N/A,N/A
Physical Support,Community Support - Physical Support,Community Support,PARKLANDS VIEW EXTRA CARE DCS,471242,04/02/2020,3399675,510.12,0.00,N/A,N/A
Physical Support,Community Support - Physical Support,Community Support,PARKLANDS VIEW EXTRA CARE DCS,471242,04/02/2020,3399676,652.76,0.00,N/A,N/A
Physical Support,Community Support - Physical Support,Community Support,PARKLANDS VIEW EXTRA CARE DCS,471242,04/02/2020,3399680,698.30,0.00,N/A,N/A
Physical Support,Community Support - Physical Support,Community Support,PARKLANDS VIEW EXTRA CARE DCS,471242,04/02/2020,3399681,766.08,0.00,N/A,N/A
Physical Support,Community Support - Physical Support,Community Support,PARKLANDS VIEW EXTRA CARE DCS,471242,04/02/2020,3399682,963.56,0.00,N/A,N/A
Physical Support,Community Support - Physical Support,Community Support,PARKLANDS VIEW EXTRA CARE DCS,471242,04/02/2020,3399683,"1,311.84",0.00,N/A,N/A
Physical Support,Community Support - Physical Support,Community Support,PARKLANDS VIEW EXTRA CARE DCS,471242,04/02/2020,3399684,"1,469.39",0.00,N/A,N/A
Physical Support,Community Support - Physical Support,Community Support,PARKLANDS VIEW EXTRA CARE DCS,471242,04/02/2020,3399212,"1,822.68",0.00,N/A,N/A
Physical Support,Community Support - Physical Support,Community Support,PARKLANDS VIEW EXTRA CARE DCS,471242,04/02/2020,3399213,752.28,0.00,N/A,N/A
Physical Support,Community Support - Physical Support,Community Support,PARKLANDS VIEW EXTRA CARE DCS,471242,04/02/2020,3399384,"1,103.24",0.00,N/A,N/A
Physical Support,Community Support - Physical Support,Community Support,PARKLANDS VIEW EXTRA CARE DCS,471242,04/02/2020,3399385,"2,638.44",0.00,N/A,N/A
Physical Support,Community Support - Physical Support,Community Support,PARKLANDS VIEW EXTRA CARE DCS,471242,04/02/2020,3399388,762.30,0.00,N/A,N/A
Physical Support,Community Support - Physical Support,Community Support,PARKLANDS VIEW EXTRA CARE DCS,471242,04/02/2020,3399389,"1,093.40",0.00,N/A,N/A
Physical Support,Community Support - Physical Support,Community Support,PARKLANDS VIEW EXTRA CARE DCS,471242,04/02/2020,3399390,"1,287.48",0.00,N/A,N/A
Physical Support,Community Support - Physical Support,Community Support,PARKLANDS VIEW EXTRA CARE DCS,471242,04/02/2020,3399107,"1,103.24",0.00,N/A,N/A
Physical Support,Community Support - Physical Support,Community Support,PARKLANDS VIEW EXTRA CARE DCS,471242,04/02/2020,3399108,"1,345.20",0.00,N/A,N/A
Physical Support,Community Support - Physical Support,Community Support,PARKLANDS VIEW EXTRA CARE DCS,471242,04/02/2020,3399115,816.70,0.00,N/A,N/A
Physical Support,Community Support - Physical Support,Community Support,PARKLANDS VIEW EXTRA CARE DCS,471242,04/02/2020,3399571,893.31,0.00,N/A,N/A
Physical Support,Community Support - Physical Support,Community Support,PARKLANDS VIEW EXTRA CARE DCS,471242,04/02/2020,3399304,"1,848.04",0.00,N/A,N/A
Physical Support,Community Support - Physical Support,Community Support,PARKLANDS VIEW EXTRA CARE DCS,471242,04/02/2020,3399479,572.00,0.00,N/A,N/A
Sensory Support,Community Support - Sensory Support,Community Support,PARKLANDS VIEW EXTRA CARE DCS,471242,04/02/2020,3399214,899.20,0.00,N/A,N/A
Sensory Support,Community Support - Sensory Support,Community Support,PARKLANDS VIEW EXTRA CARE DCS,471242,04/02/2020,3399215,"1,053.04",0.00,N/A,N/A
Support with Memory and Cognition,Community Support - Support with Memory and Cognition,Community Support,PARKLANDS VIEW EXTRA CARE DCS,471242,04/02/2020,3399027,553.68,0.00,N/A,N/A
Support with Memory and Cognition,Community Support - Support with Memory and Cognition,Community Support,PARKLANDS VIEW EXTRA CARE DCS,471242,04/02/2020,3399403,952.52,0.00,N/A,N/A
Support with Memory and Cognition,Community Support - Support with Memory and Cognition,Community Support,PARKLANDS VIEW EXTRA CARE DCS,471242,04/02/2020,3399404,821.16,0.00,N/A,N/A
Integrated Commissioning,Integrated Commissioning,Commissioning,PARKLANDS VIEW EXTRA CARE DCS,471242,04/02/2020,3399672,566.56,0.00,N/A,N/A
Mental Health Support,Mental Health - Mental Health Support,Mental Health,PARKLANDS VIEW EXTRA CARE DCS,471242,04/02/2020,3398996,515.52,0.00,N/A,N/A
Mental Health Support,Mental Health - Mental Health Support,Mental Health,PARKLANDS VIEW EXTRA CARE DCS,471242,04/02/2020,3398997,"1,385.60",0.00,N/A,N/A
Mental Health Support,Mental Health - Mental Health Support,Mental Health,PARKLANDS VIEW EXTRA CARE DCS,471242,04/02/2020,3399003,619.80,0.00,N/A,N/A
Mental Health Support,Mental Health - Mental Health Support,Mental Health,PARKLANDS VIEW EXTRA CARE DCS,471242,04/02/2020,3399091,"1,719.26",0.00,N/A,N/A
Mental Health Support,Mental Health - Mental Health Support,Mental Health,PARKLANDS VIEW EXTRA CARE DCS,471242,04/02/2020,3399665,516.50,0.00,N/A,N/A
Mental Health Support,Mental Health - Mental Health Support,Mental Health,PARKLANDS VIEW EXTRA CARE DCS,471242,04/02/2020,3399666,637.08,0.00,N/A,N/A
Mental Health Support,Mental Health - Mental Health Support,Mental Health,PARKLANDS VIEW EXTRA CARE DCS,471242,04/02/2020,3399200,"1,239.60",0.00,N/A,N/A
Mental Health Support,Mental Health - Mental Health Support,Mental Health,PARKLANDS VIEW EXTRA CARE DCS,471242,04/02/2020,3399372,"1,033.00",0.00,N/A,N/A
Mental Health Support,Mental Health - Mental Health Support,Mental Health,PARKLANDS VIEW EXTRA CARE DCS,471242,04/02/2020,3399378,"1,033.00",0.00,N/A,N/A
Mental Health Support,Mental Health - Mental Health Support,Mental Health,PARKLANDS VIEW EXTRA CARE DCS,471242,04/02/2020,3399561,583.22,0.00,N/A,N/A
Mental Health Support,Mental Health - Mental Health Support,Mental Health,PARKLANDS VIEW EXTRA CARE DCS,471242,04/02/2020,3399552,"2,135.52",0.00,N/A,N/A
Mental Health Support,Mental Health - Mental Health Support,Mental Health,PARKLANDS VIEW EXTRA CARE DCS,471242,04/02/2020,3399105,"2,548.32",0.00,N/A,N/A
Mental Health Support,Mental Health - Mental Health Support,Mental Health,PARKLANDS VIEW EXTRA CARE DCS,471242,04/02/2020,3399564,589.52,0.00,N/A,N/A
Mental Health Support,Mental Health - Mental Health Support,Mental Health,PARKLANDS VIEW EXTRA CARE DCS,471242,04/02/2020,3399569,"1,448.02",0.00,N/A,N/A
Mental Health Support,Mental Health - Mental Health Support,Mental Health,PARKLANDS VIEW EXTRA CARE DCS,471242,04/02/2020,3399284,691.14,0.00,N/A,N/A
Mental Health Support,Mental Health - Mental Health Support,Mental Health,PARKLANDS VIEW EXTRA CARE DCS,471242,04/02/2020,3399301,583.99,0.00,N/A,N/A
Mental Health Support,Mental Health - Mental Health Support,Mental Health,PARKLANDS VIEW EXTRA CARE DCS,471242,04/02/2020,3399466,"1,009.44",0.00,N/A,N/A
Mental Health Support,Mental Health - Mental Health Support,Mental Health,PARKLANDS VIEW EXTRA CARE DCS,471242,04/02/2020,3399475,530.90,0.00,N/A,N/A
Mental Health Support,Mental Health - Mental Health Support,Mental Health,PARKLANDS VIEW EXTRA CARE DCS,471242,04/02/2020,3399476,583.22,0.00,N/A,N/A
Mental Health Support,Mental Health - Mental Health Support,Mental Health,PARKLANDS VIEW EXTRA CARE DCS,471242,04/02/2020,3399482,"1,061.80",0.00,N/A,N/A
Customer Management,Welfare,Strategic Services and Organisational Development,PAYPOINT PAYMENT SERVICES LTD,1128473,04/02/2020,3402350,"1,963.30",0.00,N/A,N/A
Non Delegated Schools Budget,Non Delegated School Expenditure,Schools Block,PEAK MULTI ACADEMY TRUST,1135469,04/02/2020,3369950,"1,111.40",0.00,N/A,N/A
Non Delegated Schools Budget,Non Delegated School Expenditure,Schools Block,PEAK MULTI ACADEMY TRUST,1104472,04/02/2020,3401565,"12,324.44",0.00,N/A,N/A
Learning Disability Support,Transitions and Ordinary Lives - Learning Disability Support,Transitions and Ordinary Lives,PENNINE CAMPHILL COMMUNITY,70404,04/02/2020,3396537,"16,644.76",0.00,People Services - Adults and Health,Personal and Domestic Services
Integrated Services,Residential Children's Homes,Non-Schools,PEVERIL DECORATORS LTD,3936,04/02/2020,3398695,"2,224.00",0.00,People Services - Children & Young People,Building and Construction Machinery and
Integrated Services,Children's Quality Assurance,Non-Schools,PHEW DESIGN LIMITED,1226475,04/02/2020,3397604,"5,200.00",0.00,N/A,N/A
Early Help & Children�s Safeguarding,Children Centres Locality 2 Integrated Services,Non-Schools,PHS GROUP PLC,3958,04/02/2020,3391718,"1,749.60",0.00,People Services - Children & Young People,Cleaning Equipment and Supplies
Leisure,Leisure,"Leisure, Culture and Tourism",PHS GROUP PLC,3958,04/02/2020,3383513,504.26,0.00,Communities & Place,Cleaning Equipment and Supplies
Non Delegated Schools Budget,Non Delegated School Expenditure,Schools Block,PLAY CORNER DAY NURSERY,932532,04/02/2020,3401684,"2,402.79",0.00,N/A,N/A
Non Delegated Schools Budget,Non Delegated School Expenditure,Schools Block,PLAY CORNER DAY NURSERY,932532,04/02/2020,3402125,"1,622.40",0.00,N/A,N/A
Non Delegated Schools Budget,Non Delegated School Expenditure,Schools Block,PLAYDAYS OPPORTUNITIES GROUP,932515,04/02/2020,3401589,"11,147.76",0.00,N/A,N/A
Non Delegated Schools Budget,Non Delegated School Expenditure,Schools Block,PLAYDAYS OPPORTUNITIES GROUP,932515,04/02/2020,3402137,"3,744.00",0.00,N/A,N/A
Non Delegated Schools Budget,Non Delegated School Expenditure,Schools Block,POSITIVE STEPS DAYCARE,932523,04/02/2020,3401542,"17,580.60",0.00,N/A,N/A
Non Delegated Schools Budget,Non Delegated School Expenditure,Schools Block,POSITIVE STEPS DAYCARE,932523,04/02/2020,3402117,"4,414.80",0.00,N/A,N/A
"Information, Computing & Technology","Information, Computing & Technology",Digital Services,PRO DBA LTD,889471,04/02/2020,3401814,"5,234.42",0.00,N/A,N/A
General,Stores Road Depot & Fleet Management,"Strategic Partnerships, Planning & Streetpride",QPS PLASTICS,4357,04/02/2020,3398688,545.00,0.00,Communities & Place,Commercial and Military and Private Vehi
Early Help & Children�s Safeguarding,Children In Care,Non-Schools,REDACTED - PERSONAL DATA,425400,04/02/2020,3397993,614.05,0.00,N/A,N/A
Early Help & Children�s Safeguarding,Children In Care,Non-Schools,REDACTED - PERSONAL DATA,1210469,04/02/2020,3398267,506.40,0.00,N/A,N/A
Early Help & Children�s Safeguarding,Children In Care,Non-Schools,REDACTED - PERSONAL DATA,471148,04/02/2020,3397705,800.00,0.00,N/A,N/A
Early Help & Children�s Safeguarding,Children In Care,Non-Schools,REDACTED - PERSONAL DATA,982474,04/02/2020,3397943,"1,142.26",0.00,N/A,N/A
Learning Disability Support,Community Support - Learning Disability Support,Community Support,REDACTED - PERSONAL DATA,145356,04/02/2020,3400846,543.64,0.00,N/A,N/A
Learning Disability Support,Community Support - Learning Disability Support,Community Support,REDACTED - PERSONAL DATA,961486,04/02/2020,3401268,632.20,0.00,N/A,N/A
Learning Disability Support,Community Support - Learning Disability Support,Community Support,REDACTED - PERSONAL DATA,150330,04/02/2020,3401032,"1,144.84",0.00,N/A,N/A
Learning Disability Support,Community Support - Learning Disability Support,Community Support,REDACTED - PERSONAL DATA,386414,04/02/2020,3401187,"5,197.12",0.00,N/A,N/A
Learning Disability Support,Community Support - Learning Disability Support,Community Support,REDACTED - PERSONAL DATA,852455,04/02/2020,3400609,934.40,0.00,N/A,N/A
Learning Disability Support,Community Support - Learning Disability Support,Community Support,REDACTED - PERSONAL DATA,251428,04/02/2020,3401322,"1,464.04",0.00,N/A,N/A
Learning Disability Support,Community Support - Learning Disability Support,Community Support,REDACTED - PERSONAL DATA,170522,04/02/2020,3399965,860.00,0.00,N/A,N/A
Learning Disability Support,Community Support - Learning Disability Support,Community Support,REDACTED - PERSONAL DATA,1102485,04/02/2020,3400219,935.84,0.00,N/A,N/A
Learning Disability Support,Community Support - Learning Disability Support,Community Support,REDACTED - PERSONAL DATA,187806,04/02/2020,3400648,"1,334.04",0.00,N/A,N/A
Learning Disability Support,Community Support - Learning Disability Support,Community Support,REDACTED - PERSONAL DATA,961488,04/02/2020,3401270,968.04,0.00,N/A,N/A
Learning Disability Support,Community Support - Learning Disability Support,Community Support,REDACTED - PERSONAL DATA,124757,04/02/2020,3401192,"1,222.80",0.00,N/A,N/A
Learning Disability Support,Community Support - Learning Disability Support,Community Support,REDACTED - PERSONAL DATA,112608,04/02/2020,3401045,768.00,0.00,N/A,N/A
Learning Disability Support,Community Support - Learning Disability Support,Community Support,REDACTED - PERSONAL DATA,235398,04/02/2020,3401462,662.84,0.00,N/A,N/A
Learning Disability Support,Community Support - Learning Disability Support,Community Support,REDACTED - PERSONAL DATA,183349,04/02/2020,3400278,640.00,0.00,N/A,N/A
Learning Disability Support,Community Support - Learning Disability Support,Community Support,REDACTED - PERSONAL DATA,192393,04/02/2020,3400925,"6,196.04",0.00,N/A,N/A
Learning Disability Support,Community Support - Learning Disability Support,Community Support,REDACTED - PERSONAL DATA,386408,04/02/2020,3399978,"2,522.84",0.00,N/A,N/A
Learning Disability Support,Community Support - Learning Disability Support,Community Support,REDACTED - PERSONAL DATA,162332,04/02/2020,3401163,"2,226.04",0.00,N/A,N/A
Learning Disability Support,Community Support - Learning Disability Support,Community Support,REDACTED - PERSONAL DATA,992485,04/02/2020,3401378,"3,799.92",0.00,N/A,N/A
Learning Disability Support,Community Support - Learning Disability Support,Community Support,REDACTED - PERSONAL DATA,1031482,04/02/2020,3400215,"1,615.80",0.00,N/A,N/A
Learning Disability Support,Community Support - Learning Disability Support,Community Support,REDACTED - PERSONAL DATA,242418,04/02/2020,3401308,517.52,0.00,N/A,N/A
Learning Disability Support,Community Support - Learning Disability Support,Community Support,REDACTED - PERSONAL DATA,1041484,04/02/2020,3400370,514.44,0.00,N/A,N/A
Learning Disability Support,Community Support - Learning Disability Support,Community Support,REDACTED - PERSONAL DATA,525452,04/02/2020,3400442,631.60,0.00,N/A,N/A
Learning Disability Support,Community Support - Learning Disability Support,Community Support,REDACTED - PERSONAL DATA,521457,04/02/2020,3400708,636.88,0.00,N/A,N/A
Learning Disability Support,Community Support - Learning Disability Support,Community Support,REDACTED - PERSONAL DATA,170556,04/02/2020,3400841,"4,678.24",0.00,N/A,N/A
Learning Disability Support,Community Support - Learning Disability Support,Community Support,REDACTED - PERSONAL DATA,1196473,04/02/2020,3400644,"1,282.08",0.00,N/A,N/A
Learning Disability Support,Community Support - Learning Disability Support,Community Support,REDACTED - PERSONAL DATA,602452,04/02/2020,3400145,"2,535.00",0.00,N/A,N/A
Learning Disability Support,Community Support - Learning Disability Support,Community Support,REDACTED - PERSONAL DATA,185340,04/02/2020,3400805,"2,540.00",0.00,N/A,N/A
Learning Disability Support,Community Support - Learning Disability Support,Community Support,REDACTED - PERSONAL DATA,205400,04/02/2020,3401451,"2,813.64",0.00,N/A,N/A
Learning Disability Support,Community Support - Learning Disability Support,Community Support,REDACTED - PERSONAL DATA,247412,04/02/2020,3401119,"2,482.64",0.00,N/A,N/A
Learning Disability Support,Community Support - Learning Disability Support,Community Support,REDACTED - PERSONAL DATA,170440,04/02/2020,3401525,848.04,0.00,N/A,N/A
Learning Disability Support,Community Support - Learning Disability Support,Community Support,REDACTED - PERSONAL DATA,841459,04/02/2020,3400261,"3,205.28",0.00,N/A,N/A
Learning Disability Support,Community Support - Learning Disability Support,Community Support,REDACTED - PERSONAL DATA,188040,04/02/2020,3401428,853.04,0.00,N/A,N/A
Learning Disability Support,Community Support - Learning Disability Support,Community Support,REDACTED - PERSONAL DATA,255424,04/02/2020,3400133,"1,855.64",0.00,N/A,N/A
Learning Disability Support,Community Support - Learning Disability Support,Community Support,REDACTED - PERSONAL DATA,154380,04/02/2020,3401035,"1,852.40",0.00,N/A,N/A
Learning Disability Support,Community Support - Learning Disability Support,Community Support,REDACTED - PERSONAL DATA,1001491,04/02/2020,3400322,"1,207.24",0.00,N/A,N/A
Learning Disability Support,Community Support - Learning Disability Support,Community Support,REDACTED - PERSONAL DATA,1102489,04/02/2020,3401211,942.40,0.00,N/A,N/A
Learning Disability Support,Community Support - Learning Disability Support,Community Support,REDACTED - PERSONAL DATA,170402,04/02/2020,3401017,"3,303.24",0.00,N/A,N/A
Learning Disability Support,Community Support - Learning Disability Support,Community Support,REDACTED - PERSONAL DATA,799443,04/02/2020,3400010,"4,419.20",0.00,N/A,N/A
Learning Disability Support,Community Support - Learning Disability Support,Community Support,REDACTED - PERSONAL DATA,187404,04/02/2020,3400400,"2,535.00",0.00,N/A,N/A
Learning Disability Support,Community Support - Learning Disability Support,Community Support,REDACTED - PERSONAL DATA,389461,04/02/2020,3399968,623.36,0.00,N/A,N/A
Learning Disability Support,Community Support - Learning Disability Support,Community Support,REDACTED - PERSONAL DATA,186773,04/02/2020,3401080,"1,191.48",0.00,N/A,N/A
Learning Disability Support,Community Support - Learning Disability Support,Community Support,REDACTED - PERSONAL DATA,1196477,04/02/2020,3400065,"2,890.00",0.00,N/A,N/A
Learning Disability Support,Community Support - Learning Disability Support,Community Support,REDACTED - PERSONAL DATA,1029484,04/02/2020,3400847,781.52,0.00,N/A,N/A
Learning Disability Support,Community Support - Learning Disability Support,Community Support,REDACTED - PERSONAL DATA,674465,04/02/2020,3400159,847.24,0.00,N/A,N/A
Learning Disability Support,Community Support - Learning Disability Support,Community Support,REDACTED - PERSONAL DATA,170574,04/02/2020,3400194,"1,048.04",0.00,N/A,N/A
Learning Disability Support,Community Support - Learning Disability Support,Community Support,REDACTED - PERSONAL DATA,385486,04/02/2020,3399976,995.00,0.00,N/A,N/A
Learning Disability Support,Community Support - Learning Disability Support,Community Support,REDACTED - PERSONAL DATA,160335,04/02/2020,3401367,972.00,0.00,N/A,N/A
Learning Disability Support,Community Support - Learning Disability Support,Community Support,REDACTED - PERSONAL DATA,124592,04/02/2020,3400228,"5,347.72",0.00,N/A,N/A
Learning Disability Support,Community Support - Learning Disability Support,Community Support,REDACTED - PERSONAL DATA,126390,04/02/2020,3401423,548.28,0.00,N/A,N/A
Learning Disability Support,Community Support - Learning Disability Support,Community Support,REDACTED - PERSONAL DATA,175330,04/02/2020,3400090,"2,285.28",0.00,N/A,N/A
Learning Disability Support,Community Support - Learning Disability Support,Community Support,REDACTED - PERSONAL DATA,251440,04/02/2020,3400128,"1,463.44",0.00,N/A,N/A
Learning Disability Support,Community Support - Learning Disability Support,Community Support,REDACTED - PERSONAL DATA,125182,04/02/2020,3400851,"1,161.60",0.00,N/A,N/A
Learning Disability Support,Community Support - Learning Disability Support,Community Support,REDACTED - PERSONAL DATA,114029,04/02/2020,3400537,"5,059.04",0.00,N/A,N/A
Learning Disability Support,Community Support - Learning Disability Support,Community Support,REDACTED - PERSONAL DATA,182336,04/02/2020,3401241,"1,320.80",0.00,N/A,N/A
Learning Disability Support,Community Support - Learning Disability Support,Community Support,REDACTED - PERSONAL DATA,190414,04/02/2020,3400414,762.12,0.00,N/A,N/A
Learning Disability Support,Community Support - Learning Disability Support,Community Support,REDACTED - PERSONAL DATA,1188472,04/02/2020,3400642,724.12,0.00,N/A,N/A
Learning Disability Support,Community Support - Learning Disability Support,Community Support,REDACTED - PERSONAL DATA,124912,04/02/2020,3400535,737.60,0.00,N/A,N/A
Learning Disability Support,Community Support - Learning Disability Support,Community Support,REDACTED - PERSONAL DATA,155408,04/02/2020,3400768,"1,680.00",0.00,N/A,N/A
Learning Disability Support,Community Support - Learning Disability Support,Community Support,REDACTED - PERSONAL DATA,124980,04/02/2020,3401210,"1,876.24",0.00,N/A,N/A
Learning Disability Support,Community Support - Learning Disability Support,Community Support,REDACTED - PERSONAL DATA,118039,04/02/2020,3400538,637.60,0.00,N/A,N/A
Learning Disability Support,Community Support - Learning Disability Support,Community Support,REDACTED - PERSONAL DATA,1001493,04/02/2020,3400909,592.84,0.00,N/A,N/A
Learning Disability Support,Community Support - Learning Disability Support,Community Support,REDACTED - PERSONAL DATA,385477,04/02/2020,3400775,"2,077.72",0.00,N/A,N/A
Learning Disability Support,Community Support - Learning Disability Support,Community Support,REDACTED - PERSONAL DATA,125455,04/02/2020,3400826,"1,488.64",0.00,N/A,N/A
Learning Disability Support,Community Support - Learning Disability Support,Community Support,REDACTED - PERSONAL DATA,127280,04/02/2020,3400729,663.28,0.00,N/A,N/A
Learning Disability Support,Community Support - Learning Disability Support,Community Support,REDACTED - PERSONAL DATA,126219,04/02/2020,3400829,611.12,0.00,N/A,N/A
Learning Disability Support,Community Support - Learning Disability Support,Community Support,REDACTED - PERSONAL DATA,889482,04/02/2020,3400889,"2,908.04",0.00,N/A,N/A
Learning Disability Support,Community Support - Learning Disability Support,Community Support,REDACTED - PERSONAL DATA,125243,04/02/2020,3401412,"1,284.48",0.00,N/A,N/A
Learning Disability Support,Community Support - Learning Disability Support,Community Support,REDACTED - PERSONAL DATA,188152,04/02/2020,3400913,960.00,0.00,N/A,N/A
Learning Disability Support,Community Support - Learning Disability Support,Community Support,REDACTED - PERSONAL DATA,194370,04/02/2020,3400670,839.24,0.00,N/A,N/A
Learning Disability Support,Community Support - Learning Disability Support,Community Support,REDACTED - PERSONAL DATA,179395,04/02/2020,3400037,960.00,0.00,N/A,N/A
Learning Disability Support,Community Support - Learning Disability Support,Community Support,REDACTED - PERSONAL DATA,123775,04/02/2020,3401205,"1,656.72",0.00,N/A,N/A
Learning Disability Support,Community Support - Learning Disability Support,Community Support,REDACTED - PERSONAL DATA,192391,04/02/2020,3401107,"3,296.00",0.00,N/A,N/A
Learning Disability Support,Community Support - Learning Disability Support,Community Support,REDACTED - PERSONAL DATA,170536,04/02/2020,3401377,720.00,0.00,N/A,N/A
Learning Disability Support,Community Support - Learning Disability Support,Community Support,REDACTED - PERSONAL DATA,208369,04/02/2020,3401200,968.04,0.00,N/A,N/A
Learning Disability Support,Community Support - Learning Disability Support,Community Support,REDACTED - PERSONAL DATA,471134,04/02/2020,3400386,895.84,0.00,N/A,N/A
Learning Disability Support,Community Support - Learning Disability Support,Community Support,REDACTED - PERSONAL DATA,158333,04/02/2020,3400209,"2,098.64",0.00,N/A,N/A
Learning Disability Support,Community Support - Learning Disability Support,Community Support,REDACTED - PERSONAL DATA,157344,04/02/2020,3401199,"1,200.00",0.00,N/A,N/A
Learning Disability Support,Community Support - Learning Disability Support,Community Support,REDACTED - PERSONAL DATA,125185,04/02/2020,3401401,786.44,0.00,N/A,N/A
Learning Disability Support,Community Support - Learning Disability Support,Community Support,REDACTED - PERSONAL DATA,188046,04/02/2020,3400653,"1,997.08",0.00,N/A,N/A
Learning Disability Support,Community Support - Learning Disability Support,Community Support,REDACTED - PERSONAL DATA,153712,04/02/2020,3400520,"1,216.24",0.00,N/A,N/A
Learning Disability Support,Community Support - Learning Disability Support,Community Support,REDACTED - PERSONAL DATA,1188475,04/02/2020,3399828,"2,696.56",0.00,N/A,N/A
Learning Disability Support,Community Support - Learning Disability Support,Community Support,REDACTED - PERSONAL DATA,170576,04/02/2020,3401182,637.28,0.00,N/A,N/A
Learning Disability Support,Community Support - Learning Disability Support,Community Support,REDACTED - PERSONAL DATA,932474,04/02/2020,3400627,640.00,0.00,N/A,N/A
Learning Disability Support,Community Support - Learning Disability Support,Community Support,REDACTED - PERSONAL DATA,170404,04/02/2020,3400503,"3,493.80",0.00,N/A,N/A
Learning Disability Support,Community Support - Learning Disability Support,Community Support,REDACTED - PERSONAL DATA,1012486,04/02/2020,3399870,"7,266.96",0.00,N/A,N/A
Learning Disability Support,Community Support - Learning Disability Support,Community Support,REDACTED - PERSONAL DATA,125241,04/02/2020,3400231,508.04,0.00,N/A,N/A
Learning Disability Support,Community Support - Learning Disability Support,Community Support,REDACTED - PERSONAL DATA,158331,04/02/2020,3400769,616.84,0.00,N/A,N/A
Learning Disability Support,Community Support - Learning Disability Support,Community Support,REDACTED - PERSONAL DATA,170515,04/02/2020,3401018,"3,483.04",0.00,N/A,N/A
Learning Disability Support,Community Support - Learning Disability Support,Community Support,REDACTED - PERSONAL DATA,126931,04/02/2020,3400200,740.68,0.00,N/A,N/A
Learning Disability Support,Community Support - Learning Disability Support,Community Support,REDACTED - PERSONAL DATA,171341,04/02/2020,3400024,962.44,0.00,N/A,N/A
Learning Disability Support,Community Support - Learning Disability Support,Community Support,REDACTED - PERSONAL DATA,125725,04/02/2020,3400334,"1,386.00",0.00,N/A,N/A
Learning Disability Support,Community Support - Learning Disability Support,Community Support,REDACTED - PERSONAL DATA,124069,04/02/2020,3400581,"1,610.64",0.00,N/A,N/A
Learning Disability Support,Community Support - Learning Disability Support,Community Support,REDACTED - PERSONAL DATA,521455,04/02/2020,3400707,580.24,0.00,N/A,N/A
Learning Disability Support,Community Support - Learning Disability Support,Community Support,REDACTED - PERSONAL DATA,157348,04/02/2020,3399975,583.04,0.00,N/A,N/A
Learning Disability Support,Community Support - Learning Disability Support,Community Support,REDACTED - PERSONAL DATA,223394,04/02/2020,3399876,831.20,0.00,N/A,N/A
Learning Disability Support,Community Support - Learning Disability Support,Community Support,REDACTED - PERSONAL DATA,160337,04/02/2020,3400178,"1,725.20",0.00,N/A,N/A
Learning Disability Support,Community Support - Learning Disability Support,Community Support,REDACTED - PERSONAL DATA,385448,04/02/2020,3400566,684.28,0.00,N/A,N/A
Learning Disability Support,Community Support - Learning Disability Support,Community Support,REDACTED - PERSONAL DATA,158371,04/02/2020,3400740,671.04,0.00,N/A,N/A
Learning Disability Support,Community Support - Learning Disability Support,Community Support,REDACTED - PERSONAL DATA,160397,04/02/2020,3401203,"1,166.40",0.00,N/A,N/A
Learning Disability Support,Community Support - Learning Disability Support,Community Support,REDACTED - PERSONAL DATA,246418,04/02/2020,3399881,"2,066.64",0.00,N/A,N/A
Learning Disability Support,Community Support - Learning Disability Support,Community Support,REDACTED - PERSONAL DATA,897492,04/02/2020,3400273,588.00,0.00,N/A,N/A
Learning Disability Support,Community Support - Learning Disability Support,Community Support,REDACTED - PERSONAL DATA,471283,04/02/2020,3401026,"4,924.20",0.00,N/A,N/A
Learning Disability Support,Community Support - Learning Disability Support,Community Support,REDACTED - PERSONAL DATA,548456,04/02/2020,3401133,"1,440.00",0.00,N/A,N/A
Learning Disability Support,Community Support - Learning Disability Support,Community Support,REDACTED - PERSONAL DATA,125823,04/02/2020,3399993,"1,048.04",0.00,N/A,N/A
Learning Disability Support,Community Support - Learning Disability Support,Community Support,REDACTED - PERSONAL DATA,170524,04/02/2020,3400191,"1,208.04",0.00,N/A,N/A
Learning Disability Support,Community Support - Learning Disability Support,Community Support,REDACTED - PERSONAL DATA,153714,04/02/2020,3401196,727.24,0.00,N/A,N/A
Learning Disability Support,Community Support - Learning Disability Support,Community Support,REDACTED - PERSONAL DATA,158340,04/02/2020,3400179,684.56,0.00,N/A,N/A
Learning Disability Support,Community Support - Learning Disability Support,Community Support,REDACTED - PERSONAL DATA,170372,04/02/2020,3401005,"2,223.00",0.00,N/A,N/A
Learning Disability Support,Community Support - Learning Disability Support,Community Support,REDACTED - PERSONAL DATA,1183474,04/02/2020,3400585,554.40,0.00,N/A,N/A
Learning Disability Support,Community Support - Learning Disability Support,Community Support,REDACTED - PERSONAL DATA,223423,04/02/2020,3399979,"1,137.00",0.00,N/A,N/A
Learning Disability Support,Community Support - Learning Disability Support,Community Support,REDACTED - PERSONAL DATA,180594,04/02/2020,3401068,"1,641.28",0.00,N/A,N/A
Learning Disability Support,Community Support - Learning Disability Support,Community Support,REDACTED - PERSONAL DATA,127179,04/02/2020,3400344,"3,136.49",0.00,N/A,N/A
Learning Disability Support,Community Support - Learning Disability Support,Community Support,REDACTED - PERSONAL DATA,127179,04/02/2020,3400079,"4,161.67",0.00,N/A,N/A
Learning Disability Support,Community Support - Learning Disability Support,Community Support,REDACTED - PERSONAL DATA,112588,04/02/2020,3401404,"1,769.64",0.00,N/A,N/A
Learning Disability Support,Community Support - Learning Disability Support,Community Support,REDACTED - PERSONAL DATA,132330,04/02/2020,3400006,"4,354.00",0.00,N/A,N/A
Learning Disability Support,Community Support - Learning Disability Support,Community Support,REDACTED - PERSONAL DATA,125271,04/02/2020,3400839,"2,249.40",0.00,N/A,N/A
Learning Disability Support,Community Support - Learning Disability Support,Community Support,REDACTED - PERSONAL DATA,214457,04/02/2020,3401291,"3,274.64",0.00,N/A,N/A
Learning Disability Support,Community Support - Learning Disability Support,Community Support,REDACTED - PERSONAL DATA,170526,04/02/2020,3401527,"1,208.04",0.00,N/A,N/A
Learning Disability Support,Community Support - Learning Disability Support,Community Support,REDACTED - PERSONAL DATA,116068,04/02/2020,3399984,"3,267.24",0.00,N/A,N/A
Learning Disability Support,Community Support - Learning Disability Support,Community Support,REDACTED - PERSONAL DATA,386412,04/02/2020,3401040,631.08,0.00,N/A,N/A
Learning Disability Support,Community Support - Learning Disability Support,Community Support,REDACTED - PERSONAL DATA,126259,04/02/2020,3399998,"1,765.36",0.00,N/A,N/A
Learning Disability Support,Community Support - Learning Disability Support,Community Support,REDACTED - PERSONAL DATA,180533,04/02/2020,3401240,"2,451.60",0.00,N/A,N/A
Learning Disability Support,Community Support - Learning Disability Support,Community Support,REDACTED - PERSONAL DATA,255428,04/02/2020,3401324,"4,267.24",0.00,N/A,N/A
Learning Disability Support,Community Support - Learning Disability Support,Community Support,REDACTED - PERSONAL DATA,385521,04/02/2020,3401319,570.36,0.00,N/A,N/A
Learning Disability Support,Community Support - Learning Disability Support,Community Support,REDACTED - PERSONAL DATA,201375,04/02/2020,3400444,"4,012.04",0.00,N/A,N/A
Learning Disability Support,Community Support - Learning Disability Support,Community Support,REDACTED - PERSONAL DATA,385502,04/02/2020,3401505,"2,693.20",0.00,N/A,N/A
Learning Disability Support,Community Support - Learning Disability Support,Community Support,REDACTED - PERSONAL DATA,153496,04/02/2020,3400569,"1,048.04",0.00,N/A,N/A
Learning Disability Support,Community Support - Learning Disability Support,Community Support,REDACTED - PERSONAL DATA,178418,04/02/2020,3400367,"1,200.00",0.00,N/A,N/A
Learning Disability Support,Community Support - Learning Disability Support,Community Support,REDACTED - PERSONAL DATA,385508,04/02/2020,3400728,730.68,0.00,N/A,N/A
Learning Disability Support,Community Support - Learning Disability Support,Community Support,REDACTED - PERSONAL DATA,396399,04/02/2020,3400271,552.04,0.00,N/A,N/A
Learning Disability Support,Community Support - Learning Disability Support,Community Support,REDACTED - PERSONAL DATA,126257,04/02/2020,3401418,"1,200.00",0.00,N/A,N/A
Learning Disability Support,Community Support - Learning Disability Support,Community Support,REDACTED - PERSONAL DATA,188648,04/02/2020,3401439,931.04,0.00,N/A,N/A
Learning Disability Support,Community Support - Learning Disability Support,Community Support,REDACTED - PERSONAL DATA,255432,04/02/2020,3400452,"2,444.20",0.00,N/A,N/A
Learning Disability Support,Community Support - Learning Disability Support,Community Support,REDACTED - PERSONAL DATA,170381,04/02/2020,3400494,860.20,0.00,N/A,N/A
Learning Disability Support,Community Support - Learning Disability Support,Community Support,REDACTED - PERSONAL DATA,231399,04/02/2020,3400688,996.04,0.00,N/A,N/A
Learning Disability Support,Community Support - Learning Disability Support,Community Support,REDACTED - PERSONAL DATA,244426,04/02/2020,3400762,"1,464.08",0.00,N/A,N/A
Learning Disability Support,Community Support - Learning Disability Support,Community Support,REDACTED - PERSONAL DATA,535458,04/02/2020,3400950,520.00,0.00,N/A,N/A
Learning Disability Support,Community Support - Learning Disability Support,Community Support,REDACTED - PERSONAL DATA,185568,04/02/2020,3400056,"1,122.60",0.00,N/A,N/A
Learning Disability Support,Community Support - Learning Disability Support,Community Support,REDACTED - PERSONAL DATA,125532,04/02/2020,3400854,625.04,0.00,N/A,N/A
Learning Disability Support,Community Support - Learning Disability Support,Community Support,REDACTED - PERSONAL DATA,385504,04/02/2020,3400726,"1,320.00",0.00,N/A,N/A
Learning Disability Support,Community Support - Learning Disability Support,Community Support,REDACTED - PERSONAL DATA,207372,04/02/2020,3399864,"3,416.44",0.00,N/A,N/A
Learning Disability Support,Community Support - Learning Disability Support,Community Support,REDACTED - PERSONAL DATA,162338,04/02/2020,3400743,738.40,0.00,N/A,N/A
Learning Disability Support,Community Support - Learning Disability Support,Community Support,REDACTED - PERSONAL DATA,178361,04/02/2020,3400366,"1,100.00",0.00,N/A,N/A
Learning Disability Support,Community Support - Learning Disability Support,Community Support,REDACTED - PERSONAL DATA,175355,04/02/2020,3400619,660.00,0.00,N/A,N/A
Learning Disability Support,Community Support - Learning Disability Support,Community Support,REDACTED - PERSONAL DATA,194372,04/02/2020,3399853,968.04,0.00,N/A,N/A
Learning Disability Support,Community Support - Learning Disability Support,Community Support,REDACTED - PERSONAL DATA,170542,04/02/2020,3400505,"1,109.28",0.00,N/A,N/A
Learning Disability Support,Community Support - Learning Disability Support,Community Support,REDACTED - PERSONAL DATA,155392,04/02/2020,3399974,"1,827.72",0.00,N/A,N/A
Learning Disability Support,Community Support - Learning Disability Support,Community Support,REDACTED - PERSONAL DATA,195369,04/02/2020,3400673,502.04,0.00,N/A,N/A
Learning Disability Support,Community Support - Learning Disability Support,Community Support,REDACTED - PERSONAL DATA,170395,04/02/2020,3401179,"3,069.20",0.00,N/A,N/A
Learning Disability Support,Community Support - Learning Disability Support,Community Support,REDACTED - PERSONAL DATA,153710,04/02/2020,3400766,787.24,0.00,N/A,N/A
Learning Disability Support,Community Support - Learning Disability Support,Community Support,REDACTED - PERSONAL DATA,273416,04/02/2020,3401342,"1,222.00",0.00,N/A,N/A
Learning Disability Support,Community Support - Learning Disability Support,Community Support,REDACTED - PERSONAL DATA,977472,04/02/2020,3401076,803.08,0.00,N/A,N/A
Learning Disability Support,Community Support - Learning Disability Support,Community Support,REDACTED - PERSONAL DATA,399411,04/02/2020,3401206,819.12,0.00,N/A,N/A
Learning Disability Support,Community Support - Learning Disability Support,Community Support,REDACTED - PERSONAL DATA,188557,04/02/2020,3400302,597.80,0.00,N/A,N/A
Learning Disability Support,Community Support - Learning Disability Support,Community Support,REDACTED - PERSONAL DATA,1117469,04/02/2020,3401464,715.00,0.00,N/A,N/A
Learning Disability Support,Community Support - Learning Disability Support,Community Support,REDACTED - PERSONAL DATA,385488,04/02/2020,3401400,"1,782.32",0.00,N/A,N/A
Learning Disability Support,Community Support - Learning Disability Support,Community Support,REDACTED - PERSONAL DATA,127213,04/02/2020,3400345,"1,330.64",0.00,N/A,N/A
Learning Disability Support,Community Support - Learning Disability Support,Community Support,REDACTED - PERSONAL DATA,846443,04/02/2020,3401231,516.48,0.00,N/A,N/A
Learning Disability Support,Community Support - Learning Disability Support,Community Support,REDACTED - PERSONAL DATA,887474,04/02/2020,3400361,"1,039.48",0.00,N/A,N/A
Learning Disability Support,Community Support - Learning Disability Support,Community Support,REDACTED - PERSONAL DATA,126388,04/02/2020,3400075,"1,122.72",0.00,N/A,N/A
Learning Disability Support,Community Support - Learning Disability Support,Community Support,REDACTED - PERSONAL DATA,175357,04/02/2020,3400034,960.00,0.00,N/A,N/A
Learning Disability Support,Community Support - Learning Disability Support,Community Support,REDACTED - PERSONAL DATA,148353,04/02/2020,3400765,730.12,0.00,N/A,N/A
Learning Disability Support,Community Support - Learning Disability Support,Community Support,REDACTED - PERSONAL DATA,126679,04/02/2020,3400004,"2,280.00",0.00,N/A,N/A
Learning Disability Support,Community Support - Learning Disability Support,Community Support,REDACTED - PERSONAL DATA,124049,04/02/2020,3400580,"2,468.76",0.00,N/A,N/A
Learning Disability Support,Community Support - Learning Disability Support,Community Support,REDACTED - PERSONAL DATA,126755,04/02/2020,3400598,570.80,0.00,N/A,N/A
Learning Disability Support,Community Support - Learning Disability Support,Community Support,REDACTED - PERSONAL DATA,153538,04/02/2020,3400827,920.44,0.00,N/A,N/A
Learning Disability Support,Community Support - Learning Disability Support,Community Support,REDACTED - PERSONAL DATA,186649,04/02/2020,3400634,"1,130.32",0.00,N/A,N/A
Learning Disability Support,Community Support - Learning Disability Support,Community Support,REDACTED - PERSONAL DATA,157346,04/02/2020,3400572,"2,443.80",0.00,N/A,N/A
Learning Disability Support,Community Support - Learning Disability Support,Community Support,REDACTED - PERSONAL DATA,252407,04/02/2020,3400451,"5,231.24",0.00,N/A,N/A
Learning Disability Support,Community Support - Learning Disability Support,Community Support,REDACTED - PERSONAL DATA,125118,04/02/2020,3400332,"1,456.04",0.00,N/A,N/A
Learning Disability Support,Community Support - Learning Disability Support,Community Support,REDACTED - PERSONAL DATA,124947,04/02/2020,3401409,"1,497.76",0.00,N/A,N/A
Learning Disability Support,Community Support - Learning Disability Support,Community Support,REDACTED - PERSONAL DATA,170458,04/02/2020,3401176,"1,320.04",0.00,N/A,N/A
Learning Disability Support,Community Support - Learning Disability Support,Community Support,REDACTED - PERSONAL DATA,201395,04/02/2020,3399865,542.04,0.00,N/A,N/A
Learning Disability Support,Community Support - Learning Disability Support,Community Support,REDACTED - PERSONAL DATA,175343,04/02/2020,3400793,700.00,0.00,N/A,N/A
Learning Disability Support,Community Support - Learning Disability Support,Community Support,REDACTED - PERSONAL DATA,984469,04/02/2020,3400067,"1,395.28",0.00,N/A,N/A
Learning Disability Support,Community Support - Learning Disability Support,Community Support,REDACTED - PERSONAL DATA,188038,04/02/2020,3401260,"2,040.04",0.00,N/A,N/A
Learning Disability Support,Community Support - Learning Disability Support,Community Support,REDACTED - PERSONAL DATA,667457,04/02/2020,3401350,"2,647.60",0.00,N/A,N/A
Learning Disability Support,Community Support - Learning Disability Support,Community Support,REDACTED - PERSONAL DATA,170532,04/02/2020,3399953,"1,209.24",0.00,N/A,N/A
Learning Disability Support,Community Support - Learning Disability Support,Community Support,REDACTED - PERSONAL DATA,127174,04/02/2020,3400778,"1,444.80",0.00,N/A,N/A
Learning Disability Support,Community Support - Learning Disability Support,Community Support,REDACTED - PERSONAL DATA,1041487,04/02/2020,3401004,"1,352.00",0.00,N/A,N/A
Learning Disability Support,Community Support - Learning Disability Support,Community Support,REDACTED - PERSONAL DATA,118471,04/02/2020,3399967,955.68,0.00,N/A,N/A
Learning Disability Support,Community Support - Learning Disability Support,Community Support,REDACTED - PERSONAL DATA,179381,04/02/2020,3400802,"1,300.00",0.00,N/A,N/A
Learning Disability Support,Community Support - Learning Disability Support,Community Support,REDACTED - PERSONAL DATA,190396,04/02/2020,3400413,683.84,0.00,N/A,N/A
Learning Disability Support,Community Support - Learning Disability Support,Community Support,REDACTED - PERSONAL DATA,112149,04/02/2020,3401043,841.16,0.00,N/A,N/A
Learning Disability Support,Community Support - Learning Disability Support,Community Support,REDACTED - PERSONAL DATA,171347,04/02/2020,3400792,"1,300.64",0.00,N/A,N/A
Learning Disability Support,Community Support - Learning Disability Support,Community Support,REDACTED - PERSONAL DATA,163428,04/02/2020,3400180,"1,132.80",0.00,N/A,N/A
Learning Disability Support,Community Support - Learning Disability Support,Community Support,REDACTED - PERSONAL DATA,278410,04/02/2020,3400351,"1,230.04",0.00,N/A,N/A
Learning Disability Support,Community Support - Learning Disability Support,Community Support,REDACTED - PERSONAL DATA,266425,04/02/2020,3401145,826.36,0.00,N/A,N/A
Learning Disability Support,Community Support - Learning Disability Support,Community Support,REDACTED - PERSONAL DATA,180517,04/02/2020,3400804,"2,009.32",0.00,N/A,N/A
Learning Disability Support,Community Support - Learning Disability Support,Community Support,REDACTED - PERSONAL DATA,124904,04/02/2020,3400509,"1,175.72",0.00,N/A,N/A
Learning Disability Support,Community Support - Learning Disability Support,Community Support,REDACTED - PERSONAL DATA,190398,04/02/2020,3400303,832.00,0.00,N/A,N/A
Learning Disability Support,Community Support - Learning Disability Support,Community Support,REDACTED - PERSONAL DATA,124038,04/02/2020,3400840,914.40,0.00,N/A,N/A
Learning Disability Support,Community Support - Learning Disability Support,Community Support,REDACTED - PERSONAL DATA,170538,04/02/2020,3401529,"2,692.40",0.00,N/A,N/A
Learning Disability Support,Community Support - Learning Disability Support,Community Support,REDACTED - PERSONAL DATA,155406,04/02/2020,3400207,"1,200.00",0.00,N/A,N/A
Learning Disability Support,Community Support - Learning Disability Support,Community Support,REDACTED - PERSONAL DATA,608458,04/02/2020,3401337,700.00,0.00,N/A,N/A
Learning Disability Support,Community Support - Learning Disability Support,Community Support,REDACTED - PERSONAL DATA,123791,04/02/2020,3400225,792.68,0.00,N/A,N/A
Mental Health Support,Community Support - Mental Health Support,Community Support,REDACTED - PERSONAL DATA,188582,04/02/2020,3400411,"1,904.00",0.00,N/A,N/A
Mental Health Support,Community Support - Mental Health Support,Community Support,REDACTED - PERSONAL DATA,647470,04/02/2020,3400476,768.28,0.00,N/A,N/A
Mental Health Support,Community Support - Mental Health Support,Community Support,REDACTED - PERSONAL DATA,912490,04/02/2020,3401069,"1,240.08",0.00,N/A,N/A
Mental Health Support,Community Support - Mental Health Support,Community Support,REDACTED - PERSONAL DATA,547450,04/02/2020,3400136,"1,003.68",0.00,N/A,N/A
Mental Health Support,Community Support - Mental Health Support,Community Support,REDACTED - PERSONAL DATA,507434,04/02/2020,3399961,655.24,0.00,N/A,N/A
Mental Health Support,Community Support - Mental Health Support,Community Support,REDACTED - PERSONAL DATA,787448,04/02/2020,3400783,682.72,0.00,N/A,N/A
Mental Health Support,Community Support - Mental Health Support,Community Support,REDACTED - PERSONAL DATA,694456,04/02/2020,3400735,"5,722.36",0.00,N/A,N/A
Mental Health Support,Community Support - Mental Health Support,Community Support,REDACTED - PERSONAL DATA,178395,04/02/2020,3399956,"1,601.44",0.00,N/A,N/A
Mental Health Support,Community Support - Mental Health Support,Community Support,REDACTED - PERSONAL DATA,471318,04/02/2020,3399826,593.24,0.00,N/A,N/A
Mental Health Support,Community Support - Mental Health Support,Community Support,REDACTED - PERSONAL DATA,1031480,04/02/2020,3399871,900.00,0.00,N/A,N/A
Mental Health Support,Community Support - Mental Health Support,Community Support,REDACTED - PERSONAL DATA,385436,04/02/2020,3401023,767.40,0.00,N/A,N/A
Mental Health Support,Community Support - Mental Health Support,Community Support,REDACTED - PERSONAL DATA,515448,04/02/2020,3399885,900.80,0.00,N/A,N/A
Mental Health Support,Community Support - Mental Health Support,Community Support,REDACTED - PERSONAL DATA,803446,04/02/2020,3400259,"1,580.60",0.00,N/A,N/A
Mental Health Support,Community Support - Mental Health Support,Community Support,REDACTED - PERSONAL DATA,643452,04/02/2020,3401390,751.28,0.00,N/A,N/A
Mental Health Support,Community Support - Mental Health Support,Community Support,REDACTED - PERSONAL DATA,992481,04/02/2020,3400410,579.12,0.00,N/A,N/A
Mental Health Support,Community Support - Mental Health Support,Community Support,REDACTED - PERSONAL DATA,249586,04/02/2020,3400124,517.48,0.00,N/A,N/A
Mental Health Support,Community Support - Mental Health Support,Community Support,REDACTED - PERSONAL DATA,792453,04/02/2020,3400252,"1,005.96",0.00,N/A,N/A
Physical Support,Community Support - Physical Support,Community Support,REDACTED - PERSONAL DATA,123939,04/02/2020,3400540,"1,142.12",0.00,N/A,N/A
Physical Support,Community Support - Physical Support,Community Support,REDACTED - PERSONAL DATA,385453,04/02/2020,3400837,663.64,0.00,N/A,N/A
Physical Support,Community Support - Physical Support,Community Support,REDACTED - PERSONAL DATA,175332,04/02/2020,3400266,684.36,0.00,N/A,N/A
Physical Support,Community Support - Physical Support,Community Support,REDACTED - PERSONAL DATA,385546,04/02/2020,3399958,920.00,0.00,N/A,N/A
Physical Support,Community Support - Physical Support,Community Support,REDACTED - PERSONAL DATA,473627,04/02/2020,3400404,971.00,0.00,N/A,N/A
Physical Support,Community Support - Physical Support,Community Support,REDACTED - PERSONAL DATA,201370,04/02/2020,3401111,"7,078.44",0.00,N/A,N/A
Physical Support,Community Support - Physical Support,Community Support,REDACTED - PERSONAL DATA,385532,04/02/2020,3400127,976.32,0.00,N/A,N/A
Physical Support,Community Support - Physical Support,Community Support,REDACTED - PERSONAL DATA,389423,04/02/2020,3401061,705.52,0.00,N/A,N/A
Physical Support,Community Support - Physical Support,Community Support,REDACTED - PERSONAL DATA,386416,04/02/2020,3400202,"6,934.68",0.00,N/A,N/A
Physical Support,Community Support - Physical Support,Community Support,REDACTED - PERSONAL DATA,387507,04/02/2020,3400421,575.32,0.00,N/A,N/A
Physical Support,Community Support - Physical Support,Community Support,REDACTED - PERSONAL DATA,155401,04/02/2020,3400767,530.00,0.00,N/A,N/A
Physical Support,Community Support - Physical Support,Community Support,REDACTED - PERSONAL DATA,194360,04/02/2020,3400308,"1,774.20",0.00,N/A,N/A
Physical Support,Community Support - Physical Support,Community Support,REDACTED - PERSONAL DATA,124968,04/02/2020,3401449,"1,553.64",0.00,N/A,N/A
Physical Support,Community Support - Physical Support,Community Support,REDACTED - PERSONAL DATA,170383,04/02/2020,3401166,543.80,0.00,N/A,N/A
Physical Support,Community Support - Physical Support,Community Support,REDACTED - PERSONAL DATA,642457,04/02/2020,3401492,549.60,0.00,N/A,N/A
Physical Support,Community Support - Physical Support,Community Support,REDACTED - PERSONAL DATA,1239499,04/02/2020,3400600,672.80,0.00,N/A,N/A
Physical Support,Community Support - Physical Support,Community Support,REDACTED - PERSONAL DATA,1040478,04/02/2020,3401485,"1,068.96",0.00,N/A,N/A
Physical Support,Community Support - Physical Support,Community Support,REDACTED - PERSONAL DATA,841461,04/02/2020,3401230,"1,072.40",0.00,N/A,N/A
Physical Support,Community Support - Physical Support,Community Support,REDACTED - PERSONAL DATA,445398,04/02/2020,3400373,867.76,0.00,N/A,N/A
Physical Support,Community Support - Physical Support,Community Support,REDACTED - PERSONAL DATA,385468,04/02/2020,3400573,"2,403.04",0.00,N/A,N/A
Physical Support,Community Support - Physical Support,Community Support,REDACTED - PERSONAL DATA,476425,04/02/2020,3399840,784.60,0.00,N/A,N/A
Physical Support,Community Support - Physical Support,Community Support,REDACTED - PERSONAL DATA,660460,04/02/2020,3401502,517.24,0.00,N/A,N/A
Physical Support,Community Support - Physical Support,Community Support,REDACTED - PERSONAL DATA,773456,04/02/2020,3400868,"1,246.40",0.00,N/A,N/A
Physical Support,Community Support - Physical Support,Community Support,REDACTED - PERSONAL DATA,473434,04/02/2020,3400817,"1,453.60",0.00,N/A,N/A
Physical Support,Community Support - Physical Support,Community Support,REDACTED - PERSONAL DATA,652460,04/02/2020,3400987,"2,519.00",0.00,N/A,N/A
Physical Support,Community Support - Physical Support,Community Support,REDACTED - PERSONAL DATA,879454,04/02/2020,3400524,752.36,0.00,N/A,N/A
Physical Support,Community Support - Physical Support,Community Support,REDACTED - PERSONAL DATA,385421,04/02/2020,3400831,826.88,0.00,N/A,N/A
Physical Support,Community Support - Physical Support,Community Support,REDACTED - PERSONAL DATA,194449,04/02/2020,3400672,"1,024.24",0.00,N/A,N/A
Physical Support,Community Support - Physical Support,Community Support,REDACTED - PERSONAL DATA,992473,04/02/2020,3400911,"1,173.32",0.00,N/A,N/A
Physical Support,Community Support - Physical Support,Community Support,REDACTED - PERSONAL DATA,473859,04/02/2020,3399836,645.60,0.00,N/A,N/A
Physical Support,Community Support - Physical Support,Community Support,REDACTED - PERSONAL DATA,1041489,04/02/2020,3399912,675.28,0.00,N/A,N/A
Physical Support,Community Support - Physical Support,Community Support,REDACTED - PERSONAL DATA,879451,04/02/2020,3401063,604.40,0.00,N/A,N/A
Physical Support,Community Support - Physical Support,Community Support,REDACTED - PERSONAL DATA,667449,04/02/2020,3401155,"1,780.40",0.00,N/A,N/A
Physical Support,Community Support - Physical Support,Community Support,REDACTED - PERSONAL DATA,385429,04/02/2020,3400833,"2,418.08",0.00,N/A,N/A
Physical Support,Community Support - Physical Support,Community Support,REDACTED - PERSONAL DATA,1056478,04/02/2020,3400060,"1,345.40",0.00,N/A,N/A
Physical Support,Community Support - Physical Support,Community Support,REDACTED - PERSONAL DATA,124978,04/02/2020,3400845,652.48,0.00,N/A,N/A
Physical Support,Community Support - Physical Support,Community Support,REDACTED - PERSONAL DATA,172337,04/02/2020,3399980,792.44,0.00,N/A,N/A
Physical Support,Community Support - Physical Support,Community Support,REDACTED - PERSONAL DATA,187419,04/02/2020,3400822,"1,970.04",0.00,N/A,N/A
Physical Support,Community Support - Physical Support,Community Support,REDACTED - PERSONAL DATA,1168481,04/02/2020,3401393,964.68,0.00,N/A,N/A
Physical Support,Community Support - Physical Support,Community Support,REDACTED - PERSONAL DATA,387510,04/02/2020,3400562,"1,955.12",0.00,N/A,N/A
Physical Support,Community Support - Physical Support,Community Support,REDACTED - PERSONAL DATA,1147477,04/02/2020,3400943,864.84,0.00,N/A,N/A
Physical Support,Community Support - Physical Support,Community Support,REDACTED - PERSONAL DATA,124351,04/02/2020,3401191,"1,201.56",0.00,N/A,N/A
Physical Support,Community Support - Physical Support,Community Support,REDACTED - PERSONAL DATA,476449,04/02/2020,3401431,"1,045.60",0.00,N/A,N/A
Physical Support,Community Support - Physical Support,Community Support,REDACTED - PERSONAL DATA,921486,04/02/2020,3401070,637.12,0.00,N/A,N/A
Physical Support,Community Support - Physical Support,Community Support,REDACTED - PERSONAL DATA,124329,04/02/2020,3401407,628.96,0.00,N/A,N/A
Physical Support,Community Support - Physical Support,Community Support,REDACTED - PERSONAL DATA,264397,04/02/2020,3400559,881.08,0.00,N/A,N/A
Physical Support,Community Support - Physical Support,Community Support,REDACTED - PERSONAL DATA,1022488,04/02/2020,3402360,828.00,0.00,N/A,N/A
Physical Support,Community Support - Physical Support,Community Support,REDACTED - PERSONAL DATA,1022488,04/02/2020,3402362,828.00,0.00,N/A,N/A
Physical Support,Community Support - Physical Support,Community Support,REDACTED - PERSONAL DATA,1022488,04/02/2020,3402363,828.00,0.00,N/A,N/A
Physical Support,Community Support - Physical Support,Community Support,REDACTED - PERSONAL DATA,1022488,04/02/2020,3402366,828.00,0.00,N/A,N/A
Physical Support,Community Support - Physical Support,Community Support,REDACTED - PERSONAL DATA,1151471,04/02/2020,3399916,824.81,0.00,N/A,N/A
Physical Support,Community Support - Physical Support,Community Support,REDACTED - PERSONAL DATA,1151471,04/02/2020,3399917,855.36,0.00,N/A,N/A
Physical Support,Community Support - Physical Support,Community Support,REDACTED - PERSONAL DATA,992477,04/02/2020,3401101,"1,065.36",0.00,N/A,N/A
Physical Support,Community Support - Physical Support,Community Support,REDACTED - PERSONAL DATA,889478,04/02/2020,3400888,889.20,0.00,N/A,N/A
Physical Support,Community Support - Physical Support,Community Support,REDACTED - PERSONAL DATA,1119474,04/02/2020,3400696,982.76,0.00,N/A,N/A
Physical Support,Community Support - Physical Support,Community Support,REDACTED - PERSONAL DATA,153667,04/02/2020,3400530,778.60,0.00,N/A,N/A
Physical Support,Community Support - Physical Support,Community Support,REDACTED - PERSONAL DATA,187595,04/02/2020,3401259,"1,777.04",0.00,N/A,N/A
Physical Support,Community Support - Physical Support,Community Support,REDACTED - PERSONAL DATA,473463,04/02/2020,3400061,699.60,0.00,N/A,N/A
Physical Support,Community Support - Physical Support,Community Support,REDACTED - PERSONAL DATA,555454,04/02/2020,3400962,"2,340.92",0.00,N/A,N/A
Physical Support,Community Support - Physical Support,Community Support,REDACTED - PERSONAL DATA,1168491,04/02/2020,3401394,651.16,0.00,N/A,N/A
Physical Support,Community Support - Physical Support,Community Support,REDACTED - PERSONAL DATA,602448,04/02/2020,3400463,525.60,0.00,N/A,N/A
Physical Support,Community Support - Physical Support,Community Support,REDACTED - PERSONAL DATA,521450,04/02/2020,3400706,642.32,0.00,N/A,N/A
Physical Support,Community Support - Physical Support,Community Support,REDACTED - PERSONAL DATA,473579,04/02/2020,3400819,"2,816.04",0.00,N/A,N/A
Physical Support,Community Support - Physical Support,Community Support,REDACTED - PERSONAL DATA,928480,04/02/2020,3400283,950.68,0.00,N/A,N/A
Physical Support,Community Support - Physical Support,Community Support,REDACTED - PERSONAL DATA,385446,04/02/2020,3399960,616.88,0.00,N/A,N/A
Physical Support,Community Support - Physical Support,Community Support,REDACTED - PERSONAL DATA,941498,04/02/2020,3401078,"4,760.00",0.00,N/A,N/A
Physical Support,Community Support - Physical Support,Community Support,REDACTED - PERSONAL DATA,705449,04/02/2020,3400737,"1,446.56",0.00,N/A,N/A
Physical Support,Community Support - Physical Support,Community Support,REDACTED - PERSONAL DATA,158373,04/02/2020,3401366,"1,146.44",0.00,N/A,N/A
Physical Support,Community Support - Physical Support,Community Support,REDACTED - PERSONAL DATA,448412,04/02/2020,3400374,"7,631.12",0.00,N/A,N/A
Physical Support,Community Support - Physical Support,Community Support,REDACTED - PERSONAL DATA,382458,04/02/2020,3400267,"1,569.44",0.00,N/A,N/A
Physical Support,Community Support - Physical Support,Community Support,REDACTED - PERSONAL DATA,1149474,04/02/2020,3400702,940.00,0.00,N/A,N/A
Physical Support,Community Support - Physical Support,Community Support,REDACTED - PERSONAL DATA,214416,04/02/2020,3400095,612.00,0.00,N/A,N/A
Physical Support,Community Support - Physical Support,Community Support,REDACTED - PERSONAL DATA,411405,04/02/2020,3401236,659.48,0.00,N/A,N/A
Physical Support,Community Support - Physical Support,Community Support,REDACTED - PERSONAL DATA,1190477,04/02/2020,3400393,"1,346.64",0.00,N/A,N/A
Physical Support,Community Support - Physical Support,Community Support,REDACTED - PERSONAL DATA,153513,04/02/2020,3400482,"1,797.68",0.00,N/A,N/A
Physical Support,Community Support - Physical Support,Community Support,REDACTED - PERSONAL DATA,1102487,04/02/2020,3401278,619.04,0.00,N/A,N/A
Physical Support,Community Support - Physical Support,Community Support,REDACTED - PERSONAL DATA,315397,04/02/2020,3400085,"1,039.80",0.00,N/A,N/A
Physical Support,Community Support - Physical Support,Community Support,REDACTED - PERSONAL DATA,820448,04/02/2020,3400879,511.48,0.00,N/A,N/A
Physical Support,Community Support - Physical Support,Community Support,REDACTED - PERSONAL DATA,185512,04/02/2020,3400632,"1,594.04",0.00,N/A,N/A
Physical Support,Community Support - Physical Support,Community Support,REDACTED - PERSONAL DATA,231436,04/02/2020,3401460,887.80,0.00,N/A,N/A
Physical Support,Community Support - Physical Support,Community Support,REDACTED - PERSONAL DATA,387511,04/02/2020,3399860,780.00,0.00,N/A,N/A
Physical Support,Community Support - Physical Support,Community Support,REDACTED - PERSONAL DATA,283399,04/02/2020,3400257,586.80,0.00,N/A,N/A
Physical Support,Community Support - Physical Support,Community Support,REDACTED - PERSONAL DATA,470782,04/02/2020,3400049,"1,666.28",0.00,N/A,N/A
Physical Support,Community Support - Physical Support,Community Support,REDACTED - PERSONAL DATA,846462,04/02/2020,3401162,"2,341.28",0.00,N/A,N/A
Physical Support,Community Support - Physical Support,Community Support,REDACTED - PERSONAL DATA,602486,04/02/2020,3400975,"1,901.48",0.00,N/A,N/A
Physical Support,Community Support - Physical Support,Community Support,REDACTED - PERSONAL DATA,543462,04/02/2020,3401132,595.36,0.00,N/A,N/A
Physical Support,Community Support - Physical Support,Community Support,REDACTED - PERSONAL DATA,471138,04/02/2020,3400288,650.36,0.00,N/A,N/A
Physical Support,Community Support - Physical Support,Community Support,REDACTED - PERSONAL DATA,992471,04/02/2020,3399842,895.08,0.00,N/A,N/A
Physical Support,Community Support - Physical Support,Community Support,REDACTED - PERSONAL DATA,186759,04/02/2020,3400286,553.20,0.00,N/A,N/A
Physical Support,Community Support - Physical Support,Community Support,REDACTED - PERSONAL DATA,384440,04/02/2020,3401233,864.00,0.00,N/A,N/A
Physical Support,Community Support - Physical Support,Community Support,REDACTED - PERSONAL DATA,937537,04/02/2020,3400052,808.48,0.00,N/A,N/A
Physical Support,Community Support - Physical Support,Community Support,REDACTED - PERSONAL DATA,629447,04/02/2020,3399914,981.60,0.00,N/A,N/A
Physical Support,Community Support - Physical Support,Community Support,REDACTED - PERSONAL DATA,473524,04/02/2020,3400818,664.88,0.00,N/A,N/A
Physical Support,Community Support - Physical Support,Community Support,REDACTED - PERSONAL DATA,385490,04/02/2020,3400532,928.36,0.00,N/A,N/A
Physical Support,Community Support - Physical Support,Community Support,REDACTED - PERSONAL DATA,587445,04/02/2020,3401490,"2,503.20",0.00,N/A,N/A
Physical Support,Community Support - Physical Support,Community Support,REDACTED - PERSONAL DATA,126026,04/02/2020,3400233,567.12,0.00,N/A,N/A
Physical Support,Community Support - Physical Support,Community Support,REDACTED - PERSONAL DATA,850459,04/02/2020,3401408,714.36,0.00,N/A,N/A
Physical Support,Community Support - Physical Support,Community Support,REDACTED - PERSONAL DATA,975486,04/02/2020,3400406,831.88,0.00,N/A,N/A
Physical Support,Community Support - Physical Support,Community Support,REDACTED - PERSONAL DATA,757453,04/02/2020,3400782,"2,114.88",0.00,N/A,N/A
Physical Support,Community Support - Physical Support,Community Support,REDACTED - PERSONAL DATA,543451,04/02/2020,3400454,586.72,0.00,N/A,N/A
Physical Support,Community Support - Physical Support,Community Support,REDACTED - PERSONAL DATA,385471,04/02/2020,3400525,896.00,0.00,N/A,N/A
Physical Support,Community Support - Physical Support,Community Support,REDACTED - PERSONAL DATA,471412,04/02/2020,3401252,742.40,0.00,N/A,N/A
Physical Support,Community Support - Physical Support,Community Support,REDACTED - PERSONAL DATA,186837,04/02/2020,3400287,"2,635.32",0.00,N/A,N/A
Physical Support,Community Support - Physical Support,Community Support,REDACTED - PERSONAL DATA,256447,04/02/2020,3400958,"2,471.64",0.00,N/A,N/A
Physical Support,Community Support - Physical Support,Community Support,REDACTED - PERSONAL DATA,1029475,04/02/2020,3400103,562.04,0.00,N/A,N/A
Physical Support,Community Support - Physical Support,Community Support,REDACTED - PERSONAL DATA,385469,04/02/2020,3400523,"1,098.36",0.00,N/A,N/A
Physical Support,Community Support - Physical Support,Community Support,REDACTED - PERSONAL DATA,432417,04/02/2020,3400893,"1,524.08",0.00,N/A,N/A
Physical Support,Community Support - Physical Support,Community Support,REDACTED - PERSONAL DATA,153731,04/02/2020,3400484,522.84,0.00,N/A,N/A
Physical Support,Community Support - Physical Support,Community Support,REDACTED - PERSONAL DATA,647446,04/02/2020,3400467,929.96,0.00,N/A,N/A
Physical Support,Community Support - Physical Support,Community Support,REDACTED - PERSONAL DATA,1041480,04/02/2020,3400561,651.24,0.00,N/A,N/A
Physical Support,Community Support - Physical Support,Community Support,REDACTED - PERSONAL DATA,171337,04/02/2020,3400754,673.16,0.00,N/A,N/A
Physical Support,Community Support - Physical Support,Community Support,REDACTED - PERSONAL DATA,386409,04/02/2020,3400771,"1,365.36",0.00,N/A,N/A
Physical Support,Community Support - Physical Support,Community Support,REDACTED - PERSONAL DATA,162330,04/02/2020,3401518,"1,327.60",0.00,N/A,N/A
Physical Support,Community Support - Physical Support,Community Support,REDACTED - PERSONAL DATA,170489,04/02/2020,3400528,"5,040.36",0.00,N/A,N/A
Physical Support,Community Support - Physical Support,Community Support,REDACTED - PERSONAL DATA,628443,04/02/2020,3401491,529.56,0.00,N/A,N/A
Physical Support,Community Support - Physical Support,Community Support,REDACTED - PERSONAL DATA,1217468,04/02/2020,3400397,616.16,0.00,N/A,N/A
Physical Support,Community Support - Physical Support,Community Support,REDACTED - PERSONAL DATA,398434,04/02/2020,3400883,"2,349.36",0.00,N/A,N/A
Physical Support,Community Support - Physical Support,Community Support,REDACTED - PERSONAL DATA,471083,04/02/2020,3400385,690.36,0.00,N/A,N/A
Physical Support,Community Support - Physical Support,Community Support,REDACTED - PERSONAL DATA,618453,04/02/2020,3401338,927.36,0.00,N/A,N/A
Physical Support,Community Support - Physical Support,Community Support,REDACTED - PERSONAL DATA,696466,04/02/2020,3400996,"4,430.12",0.00,N/A,N/A
Physical Support,Community Support - Physical Support,Community Support,REDACTED - PERSONAL DATA,585445,04/02/2020,3400462,619.32,0.00,N/A,N/A
Physical Support,Community Support - Physical Support,Community Support,REDACTED - PERSONAL DATA,386418,04/02/2020,3400527,"2,134.48",0.00,N/A,N/A
Physical Support,Community Support - Physical Support,Community Support,REDACTED - PERSONAL DATA,387513,04/02/2020,3400315,"1,400.84",0.00,N/A,N/A
Physical Support,Community Support - Physical Support,Community Support,REDACTED - PERSONAL DATA,148363,04/02/2020,3400838,532.88,0.00,N/A,N/A
Physical Support,Community Support - Physical Support,Community Support,REDACTED - PERSONAL DATA,748455,04/02/2020,3400867,814.12,0.00,N/A,N/A
Physical Support,Community Support - Physical Support,Community Support,REDACTED - PERSONAL DATA,614452,04/02/2020,3400976,"1,593.92",0.00,N/A,N/A
Physical Support,Community Support - Physical Support,Community Support,REDACTED - PERSONAL DATA,628465,04/02/2020,3399913,720.00,0.00,N/A,N/A
Physical Support,Community Support - Physical Support,Community Support,REDACTED - PERSONAL DATA,170528,04/02/2020,3401528,660.00,0.00,N/A,N/A
Physical Support,Community Support - Physical Support,Community Support,REDACTED - PERSONAL DATA,179397,04/02/2020,3401067,"1,100.00",0.00,N/A,N/A
Physical Support,Community Support - Physical Support,Community Support,REDACTED - PERSONAL DATA,154385,04/02/2020,3399973,588.44,0.00,N/A,N/A
Physical Support,Community Support - Physical Support,Community Support,REDACTED - PERSONAL DATA,642446,04/02/2020,3401147,606.16,0.00,N/A,N/A
Physical Support,Community Support - Physical Support,Community Support,REDACTED - PERSONAL DATA,1012484,04/02/2020,3401454,501.88,0.00,N/A,N/A
Physical Support,Community Support - Physical Support,Community Support,REDACTED - PERSONAL DATA,257440,04/02/2020,3400134,"1,064.48",0.00,N/A,N/A
Physical Support,Community Support - Physical Support,Community Support,REDACTED - PERSONAL DATA,124910,04/02/2020,3400211,777.60,0.00,N/A,N/A
Physical Support,Community Support - Physical Support,Community Support,REDACTED - PERSONAL DATA,570471,04/02/2020,3400717,"2,076.32",0.00,N/A,N/A
Physical Support,Community Support - Physical Support,Community Support,REDACTED - PERSONAL DATA,1149476,04/02/2020,3401493,619.68,0.00,N/A,N/A
Physical Support,Community Support - Physical Support,Community Support,REDACTED - PERSONAL DATA,452416,04/02/2020,3400042,634.40,0.00,N/A,N/A
Physical Support,Community Support - Physical Support,Community Support,REDACTED - PERSONAL DATA,125292,04/02/2020,3400852,"1,026.76",0.00,N/A,N/A
Physical Support,Community Support - Physical Support,Community Support,REDACTED - PERSONAL DATA,385528,04/02/2020,3400952,"3,062.08",0.00,N/A,N/A
Physical Support,Community Support - Physical Support,Community Support,REDACTED - PERSONAL DATA,114128,04/02/2020,3401353,837.84,0.00,N/A,N/A
Physical Support,Community Support - Physical Support,Community Support,REDACTED - PERSONAL DATA,475421,04/02/2020,3400657,808.16,0.00,N/A,N/A
Physical Support,Community Support - Physical Support,Community Support,REDACTED - PERSONAL DATA,888471,04/02/2020,3400887,999.96,0.00,N/A,N/A
Physical Support,Community Support - Physical Support,Community Support,REDACTED - PERSONAL DATA,385531,04/02/2020,3399890,581.88,0.00,N/A,N/A
Physical Support,Community Support - Physical Support,Community Support,REDACTED - PERSONAL DATA,387502,04/02/2020,3399861,642.12,0.00,N/A,N/A
Physical Support,Community Support - Physical Support,Community Support,REDACTED - PERSONAL DATA,471195,04/02/2020,3399930,774.72,0.00,N/A,N/A
Physical Support,Community Support - Physical Support,Community Support,REDACTED - PERSONAL DATA,385538,04/02/2020,3399955,"1,003.08",0.00,N/A,N/A
Physical Support,Community Support - Physical Support,Community Support,REDACTED - PERSONAL DATA,395476,04/02/2020,3400954,"2,463.96",0.00,N/A,N/A
Physical Support,Community Support - Physical Support,Community Support,REDACTED - PERSONAL DATA,385515,04/02/2020,3400731,"4,171.76",0.00,N/A,N/A
Physical Support,Community Support - Physical Support,Community Support,REDACTED - PERSONAL DATA,385500,04/02/2020,3401352,"7,085.24",0.00,N/A,N/A
Physical Support,Community Support - Physical Support,Community Support,REDACTED - PERSONAL DATA,257445,04/02/2020,3400453,"4,203.72",0.00,N/A,N/A
Physical Support,Community Support - Physical Support,Community Support,REDACTED - PERSONAL DATA,997474,04/02/2020,3401123,"2,439.60",0.00,N/A,N/A
Physical Support,Community Support - Physical Support,Community Support,REDACTED - PERSONAL DATA,255425,04/02/2020,3400132,"2,848.44",0.00,N/A,N/A
Physical Support,Community Support - Physical Support,Community Support,REDACTED - PERSONAL DATA,153779,04/02/2020,3400198,"1,825.00",0.00,N/A,N/A
Physical Support,Community Support - Physical Support,Community Support,REDACTED - PERSONAL DATA,694453,04/02/2020,3400757,"1,323.20",0.00,N/A,N/A
Physical Support,Community Support - Physical Support,Community Support,REDACTED - PERSONAL DATA,118290,04/02/2020,3401506,"1,421.88",0.00,N/A,N/A
Physical Support,Community Support - Physical Support,Community Support,REDACTED - PERSONAL DATA,385533,04/02/2020,3400448,"4,412.16",0.00,N/A,N/A
Physical Support,Community Support - Physical Support,Community Support,REDACTED - PERSONAL DATA,385509,04/02/2020,3401159,845.00,0.00,N/A,N/A
Physical Support,Community Support - Physical Support,Community Support,REDACTED - PERSONAL DATA,385540,04/02/2020,3401184,"4,868.16",0.00,N/A,N/A
Physical Support,Community Support - Physical Support,Community Support,REDACTED - PERSONAL DATA,385428,04/02/2020,3400763,"3,046.56",0.00,N/A,N/A
Physical Support,Community Support - Physical Support,Community Support,REDACTED - PERSONAL DATA,3177,04/02/2020,3400953,528.72,0.00,N/A,N/A
Physical Support,Community Support - Physical Support,Community Support,REDACTED - PERSONAL DATA,385523,04/02/2020,3400126,945.20,0.00,N/A,N/A
Physical Support,Community Support - Physical Support,Community Support,REDACTED - PERSONAL DATA,124906,04/02/2020,3400162,"1,244.16",0.00,N/A,N/A
Physical Support,Community Support - Physical Support,Community Support,REDACTED - PERSONAL DATA,273458,04/02/2020,3399946,529.88,0.00,N/A,N/A
Physical Support,Community Support - Physical Support,Community Support,REDACTED - PERSONAL DATA,1041491,04/02/2020,3401476,"2,693.76",0.00,N/A,N/A
Physical Support,Community Support - Physical Support,Community Support,REDACTED - PERSONAL DATA,1053475,04/02/2020,3399899,810.84,0.00,N/A,N/A
Physical Support,Community Support - Physical Support,Community Support,REDACTED - PERSONAL DATA,385506,04/02/2020,3399929,"2,369.00",0.00,N/A,N/A
Physical Support,Community Support - Physical Support,Community Support,REDACTED - PERSONAL DATA,125760,04/02/2020,3400125,"2,316.32",0.00,N/A,N/A
Physical Support,Community Support - Physical Support,Community Support,REDACTED - PERSONAL DATA,385427,04/02/2020,3400832,855.76,0.00,N/A,N/A
Physical Support,Community Support - Physical Support,Community Support,REDACTED - PERSONAL DATA,387508,04/02/2020,3399862,"1,101.52",0.00,N/A,N/A
Physical Support,Community Support - Physical Support,Community Support,REDACTED - PERSONAL DATA,667455,04/02/2020,3400988,832.20,0.00,N/A,N/A
Physical Support,Community Support - Physical Support,Community Support,REDACTED - PERSONAL DATA,945497,04/02/2020,3401321,580.52,0.00,N/A,N/A
Physical Support,Community Support - Physical Support,Community Support,REDACTED - PERSONAL DATA,595452,04/02/2020,3400973,769.20,0.00,N/A,N/A
Physical Support,Community Support - Physical Support,Community Support,REDACTED - PERSONAL DATA,124072,04/02/2020,3401213,924.68,0.00,N/A,N/A
Physical Support,Community Support - Physical Support,Community Support,REDACTED - PERSONAL DATA,841446,04/02/2020,3400354,677.44,0.00,N/A,N/A
Physical Support,Community Support - Physical Support,Community Support,REDACTED - PERSONAL DATA,113809,04/02/2020,3401405,"1,464.16",0.00,N/A,N/A
Physical Support,Community Support - Physical Support,Community Support,REDACTED - PERSONAL DATA,905474,04/02/2020,3400800,"2,287.28",0.00,N/A,N/A
Physical Support,Community Support - Physical Support,Community Support,REDACTED - PERSONAL DATA,125101,04/02/2020,3400204,"2,824.64",0.00,N/A,N/A
Physical Support,Community Support - Physical Support,Community Support,REDACTED - PERSONAL DATA,195361,04/02/2020,3399855,"3,370.28",0.00,N/A,N/A
Physical Support,Community Support - Physical Support,Community Support,REDACTED - PERSONAL DATA,1037478,04/02/2020,3400139,866.04,0.00,N/A,N/A
Physical Support,Community Support - Physical Support,Community Support,REDACTED - PERSONAL DATA,1140473,04/02/2020,3401305,845.00,0.00,N/A,N/A
Physical Support,Community Support - Physical Support,Community Support,REDACTED - PERSONAL DATA,643443,04/02/2020,3401340,"1,142.32",0.00,N/A,N/A
Physical Support,Community Support - Physical Support,Community Support,REDACTED - PERSONAL DATA,124920,04/02/2020,3400834,952.88,0.00,N/A,N/A
Physical Support,Community Support - Physical Support,Community Support,REDACTED - PERSONAL DATA,254461,04/02/2020,3400714,616.00,0.00,N/A,N/A
Physical Support,Community Support - Physical Support,Community Support,REDACTED - PERSONAL DATA,178434,04/02/2020,3400620,760.48,0.00,N/A,N/A
Physical Support,Community Support - Physical Support,Community Support,REDACTED - PERSONAL DATA,170530,04/02/2020,3401019,880.00,0.00,N/A,N/A
Physical Support,Community Support - Physical Support,Community Support,REDACTED - PERSONAL DATA,471466,04/02/2020,3399827,605.68,0.00,N/A,N/A
Physical Support,Community Support - Physical Support,Community Support,REDACTED - PERSONAL DATA,532451,04/02/2020,3401474,"1,880.12",0.00,N/A,N/A
Physical Support,Community Support - Physical Support,Community Support,REDACTED - PERSONAL DATA,385535,04/02/2020,3400711,"2,755.96",0.00,N/A,N/A
Physical Support,Community Support - Physical Support,Community Support,REDACTED - PERSONAL DATA,269434,04/02/2020,3400719,624.56,0.00,N/A,N/A
Physical Support,Community Support - Physical Support,Community Support,REDACTED - PERSONAL DATA,537447,04/02/2020,3400951,792.84,0.00,N/A,N/A
Physical Support,Community Support - Physical Support,Community Support,REDACTED - PERSONAL DATA,123174,04/02/2020,3400222,830.64,0.00,N/A,N/A
Physical Support,Community Support - Physical Support,Community Support,REDACTED - PERSONAL DATA,1029473,04/02/2020,3400102,930.44,0.00,N/A,N/A
Physical Support,Community Support - Physical Support,Community Support,REDACTED - PERSONAL DATA,1236474,04/02/2020,3401115,652.64,0.00,N/A,N/A
Physical Support,Community Support - Physical Support,Community Support,REDACTED - PERSONAL DATA,249588,04/02/2020,3400199,642.52,0.00,N/A,N/A
Physical Support,Community Support - Physical Support,Community Support,REDACTED - PERSONAL DATA,470555,04/02/2020,3400896,"1,395.52",0.00,N/A,N/A
Physical Support,Community Support - Physical Support,Community Support,REDACTED - PERSONAL DATA,1204474,04/02/2020,3400645,"1,467.20",0.00,N/A,N/A
Physical Support,Community Support - Physical Support,Community Support,REDACTED - PERSONAL DATA,928472,04/02/2020,3400051,555.88,0.00,N/A,N/A
Physical Support,Community Support - Physical Support,Community Support,REDACTED - PERSONAL DATA,385536,04/02/2020,3400196,576.32,0.00,N/A,N/A
Physical Support,Community Support - Physical Support,Community Support,REDACTED - PERSONAL DATA,385439,04/02/2020,3400201,784.76,0.00,N/A,N/A
Physical Support,Community Support - Physical Support,Community Support,REDACTED - PERSONAL DATA,481402,04/02/2020,3400693,687.84,0.00,N/A,N/A
Physical Support,Community Support - Physical Support,Community Support,REDACTED - PERSONAL DATA,385496,04/02/2020,3399983,669.20,0.00,N/A,N/A
Physical Support,Community Support - Physical Support,Community Support,REDACTED - PERSONAL DATA,473905,04/02/2020,3400656,"1,158.56",0.00,N/A,N/A
Physical Support,Community Support - Physical Support,Community Support,REDACTED - PERSONAL DATA,471294,04/02/2020,3401082,"3,099.80",0.00,N/A,N/A
Physical Support,Community Support - Physical Support,Community Support,REDACTED - PERSONAL DATA,448419,04/02/2020,3401242,687.96,0.00,N/A,N/A
Physical Support,Community Support - Physical Support,Community Support,REDACTED - PERSONAL DATA,385505,04/02/2020,3400727,"1,524.00",0.00,N/A,N/A
Physical Support,Community Support - Physical Support,Community Support,REDACTED - PERSONAL DATA,385420,04/02/2020,3399962,801.16,0.00,N/A,N/A
Physical Support,Community Support - Physical Support,Community Support,REDACTED - PERSONAL DATA,888469,04/02/2020,3400272,"1,007.56",0.00,N/A,N/A
Physical Support,Community Support - Physical Support,Community Support,REDACTED - PERSONAL DATA,975488,04/02/2020,3400407,990.12,0.00,N/A,N/A
Physical Support,Community Support - Physical Support,Community Support,REDACTED - PERSONAL DATA,476435,04/02/2020,3401430,710.20,0.00,N/A,N/A
Physical Support,Community Support - Physical Support,Community Support,REDACTED - PERSONAL DATA,124893,04/02/2020,3400830,775.28,0.00,N/A,N/A
Physical Support,Community Support - Physical Support,Community Support,REDACTED - PERSONAL DATA,122809,04/02/2020,3399987,569.04,0.00,N/A,N/A
Physical Support,Community Support - Physical Support,Community Support,REDACTED - PERSONAL DATA,1225474,04/02/2020,3400419,"1,006.92",0.00,N/A,N/A
Physical Support,Community Support - Physical Support,Community Support,REDACTED - PERSONAL DATA,170517,04/02/2020,3401177,880.00,0.00,N/A,N/A
Physical Support,Community Support - Physical Support,Community Support,REDACTED - PERSONAL DATA,124132,04/02/2020,3400329,520.08,0.00,N/A,N/A
Physical Support,Community Support - Physical Support,Community Support,REDACTED - PERSONAL DATA,385518,04/02/2020,3401318,"3,236.36",0.00,N/A,N/A
Physical Support,Community Support - Physical Support,Community Support,REDACTED - PERSONAL DATA,385472,04/02/2020,3401039,"1,321.92",0.00,N/A,N/A
Physical Support,Community Support - Physical Support,Community Support,REDACTED - PERSONAL DATA,975484,04/02/2020,3400907,573.84,0.00,N/A,N/A
Physical Support,Community Support - Physical Support,Community Support,REDACTED - PERSONAL DATA,124496,04/02/2020,3399964,884.52,0.00,N/A,N/A
Physical Support,Community Support - Physical Support,Community Support,REDACTED - PERSONAL DATA,243449,04/02/2020,3400118,"1,049.00",0.00,N/A,N/A
Physical Support,Community Support - Physical Support,Community Support,REDACTED - PERSONAL DATA,385541,04/02/2020,3401185,"3,514.04",0.00,N/A,N/A
Physical Support,Community Support - Physical Support,Community Support,REDACTED - PERSONAL DATA,890471,04/02/2020,3400789,676.88,0.00,N/A,N/A
Physical Support,Community Support - Physical Support,Community Support,REDACTED - PERSONAL DATA,273447,04/02/2020,3400153,"1,217.00",0.00,N/A,N/A
Physical Support,Community Support - Physical Support,Community Support,REDACTED - PERSONAL DATA,273447,04/02/2020,3400154,"1,217.00",0.00,N/A,N/A
Physical Support,Community Support - Physical Support,Community Support,REDACTED - PERSONAL DATA,273447,04/02/2020,3400166,"1,217.00",0.00,N/A,N/A
Physical Support,Community Support - Physical Support,Community Support,REDACTED - PERSONAL DATA,273447,04/02/2020,3400169,"1,217.00",0.00,N/A,N/A
Physical Support,Community Support - Physical Support,Community Support,REDACTED - PERSONAL DATA,273447,04/02/2020,3400170,"1,217.00",0.00,N/A,N/A
Physical Support,Community Support - Physical Support,Community Support,REDACTED - PERSONAL DATA,273447,04/02/2020,3400183,"1,217.00",0.00,N/A,N/A
Physical Support,Community Support - Physical Support,Community Support,REDACTED - PERSONAL DATA,273447,04/02/2020,3400184,"1,217.00",0.00,N/A,N/A
Physical Support,Community Support - Physical Support,Community Support,REDACTED - PERSONAL DATA,273447,04/02/2020,3399922,"1,217.00",0.00,N/A,N/A
Physical Support,Community Support - Physical Support,Community Support,REDACTED - PERSONAL DATA,273447,04/02/2020,3399933,"1,217.00",0.00,N/A,N/A
Physical Support,Community Support - Physical Support,Community Support,REDACTED - PERSONAL DATA,273447,04/02/2020,3399935,"1,217.00",0.00,N/A,N/A
Physical Support,Community Support - Physical Support,Community Support,REDACTED - PERSONAL DATA,273447,04/02/2020,3399937,"1,217.00",0.00,N/A,N/A
Physical Support,Community Support - Physical Support,Community Support,REDACTED - PERSONAL DATA,273447,04/02/2020,3399942,912.75,0.00,N/A,N/A
Physical Support,Community Support - Physical Support,Community Support,REDACTED - PERSONAL DATA,273447,04/02/2020,3399944,"1,217.00",0.00,N/A,N/A
Physical Support,Community Support - Physical Support,Community Support,REDACTED - PERSONAL DATA,273447,04/02/2020,3399945,"1,217.00",0.00,N/A,N/A
Physical Support,Community Support - Physical Support,Community Support,REDACTED - PERSONAL DATA,273447,04/02/2020,3400474,"1,217.00",0.00,N/A,N/A
Physical Support,Community Support - Physical Support,Community Support,REDACTED - PERSONAL DATA,273447,04/02/2020,3400485,"1,217.00",0.00,N/A,N/A
Physical Support,Community Support - Physical Support,Community Support,REDACTED - PERSONAL DATA,273447,04/02/2020,3400487,"1,217.00",0.00,N/A,N/A
Physical Support,Community Support - Physical Support,Community Support,REDACTED - PERSONAL DATA,273447,04/02/2020,3400489,"1,217.00",0.00,N/A,N/A
Physical Support,Community Support - Physical Support,Community Support,REDACTED - PERSONAL DATA,273447,04/02/2020,3400746,"1,217.00",0.00,N/A,N/A
Physical Support,Community Support - Physical Support,Community Support,REDACTED - PERSONAL DATA,273447,04/02/2020,3400747,"1,217.00",0.00,N/A,N/A
Physical Support,Community Support - Physical Support,Community Support,REDACTED - PERSONAL DATA,273447,04/02/2020,3400985,"1,217.00",0.00,N/A,N/A
Physical Support,Community Support - Physical Support,Community Support,REDACTED - PERSONAL DATA,273447,04/02/2020,3400986,"1,217.00",0.00,N/A,N/A
Physical Support,Community Support - Physical Support,Community Support,REDACTED - PERSONAL DATA,273447,04/02/2020,3400994,869.29,0.00,N/A,N/A
Physical Support,Community Support - Physical Support,Community Support,REDACTED - PERSONAL DATA,273447,04/02/2020,3400995,"1,217.00",0.00,N/A,N/A
Physical Support,Community Support - Physical Support,Community Support,REDACTED - PERSONAL DATA,273447,04/02/2020,3401007,"1,217.00",0.00,N/A,N/A
Physical Support,Community Support - Physical Support,Community Support,REDACTED - PERSONAL DATA,273447,04/02/2020,3401009,"1,217.00",0.00,N/A,N/A
Physical Support,Community Support - Physical Support,Community Support,REDACTED - PERSONAL DATA,273447,04/02/2020,3401012,"1,217.00",0.00,N/A,N/A
Physical Support,Community Support - Physical Support,Community Support,REDACTED - PERSONAL DATA,273447,04/02/2020,3401154,"1,217.00",0.00,N/A,N/A
Physical Support,Community Support - Physical Support,Community Support,REDACTED - PERSONAL DATA,273447,04/02/2020,3401167,"1,217.00",0.00,N/A,N/A
Physical Support,Community Support - Physical Support,Community Support,REDACTED - PERSONAL DATA,273447,04/02/2020,3401168,"1,217.00",0.00,N/A,N/A
Physical Support,Community Support - Physical Support,Community Support,REDACTED - PERSONAL DATA,273447,04/02/2020,3401171,"1,217.00",0.00,N/A,N/A
Physical Support,Community Support - Physical Support,Community Support,REDACTED - PERSONAL DATA,273447,04/02/2020,3401500,825.82,0.00,N/A,N/A
Physical Support,Community Support - Physical Support,Community Support,REDACTED - PERSONAL DATA,273447,04/02/2020,3401510,"1,217.00",0.00,N/A,N/A
Physical Support,Community Support - Physical Support,Community Support,REDACTED - PERSONAL DATA,273447,04/02/2020,3401345,"1,217.00",0.00,N/A,N/A
Physical Support,Community Support - Physical Support,Community Support,REDACTED - PERSONAL DATA,273447,04/02/2020,3401347,"1,217.00",0.00,N/A,N/A
Physical Support,Community Support - Physical Support,Community Support,REDACTED - PERSONAL DATA,273447,04/02/2020,3401348,"1,217.00",0.00,N/A,N/A
Physical Support,Community Support - Physical Support,Community Support,REDACTED - PERSONAL DATA,273447,04/02/2020,3401357,"1,217.00",0.00,N/A,N/A
Physical Support,Community Support - Physical Support,Community Support,REDACTED - PERSONAL DATA,273447,04/02/2020,3401360,"1,217.00",0.00,N/A,N/A
Physical Support,Community Support - Physical Support,Community Support,REDACTED - PERSONAL DATA,273447,04/02/2020,3401372,"1,217.00",0.00,N/A,N/A
Physical Support,Community Support - Physical Support,Community Support,REDACTED - PERSONAL DATA,498426,04/02/2020,3401312,531.36,0.00,N/A,N/A
Physical Support,Community Support - Physical Support,Community Support,REDACTED - PERSONAL DATA,153598,04/02/2020,3400570,734.00,0.00,N/A,N/A
Physical Support,Community Support - Physical Support,Community Support,REDACTED - PERSONAL DATA,186813,04/02/2020,3400383,639.80,0.00,N/A,N/A
Physical Support,Community Support - Physical Support,Community Support,REDACTED - PERSONAL DATA,194450,04/02/2020,3400311,"1,917.20",0.00,N/A,N/A
Physical Support,Community Support - Physical Support,Community Support,REDACTED - PERSONAL DATA,385503,04/02/2020,3399928,"1,035.00",0.00,N/A,N/A
Physical Support,Community Support - Physical Support,Community Support,REDACTED - PERSONAL DATA,532459,04/02/2020,3400443,"1,869.16",0.00,N/A,N/A
Physical Support,Community Support - Physical Support,Community Support,REDACTED - PERSONAL DATA,246422,04/02/2020,3400437,759.44,0.00,N/A,N/A
Physical Support,Community Support - Physical Support,Community Support,REDACTED - PERSONAL DATA,256437,04/02/2020,3399959,"1,197.12",0.00,N/A,N/A
Physical Support,Community Support - Physical Support,Community Support,REDACTED - PERSONAL DATA,1092471,04/02/2020,3400921,616.88,0.00,N/A,N/A
Physical Support,Community Support - Physical Support,Community Support,REDACTED - PERSONAL DATA,385475,04/02/2020,3400574,524.88,0.00,N/A,N/A
Physical Support,Community Support - Physical Support,Community Support,REDACTED - PERSONAL DATA,123689,04/02/2020,3400224,634.40,0.00,N/A,N/A
Physical Support,Community Support - Physical Support,Community Support,REDACTED - PERSONAL DATA,1210479,04/02/2020,3400066,"1,138.16",0.00,N/A,N/A
Physical Support,Community Support - Physical Support,Community Support,REDACTED - PERSONAL DATA,605453,04/02/2020,3400464,"2,305.20",0.00,N/A,N/A
Physical Support,Community Support - Physical Support,Community Support,REDACTED - PERSONAL DATA,160341,04/02/2020,3400742,764.00,0.00,N/A,N/A
Sensory Support,Community Support - Sensory Support,Community Support,REDACTED - PERSONAL DATA,1217476,04/02/2020,3400576,"7,824.00",0.00,N/A,N/A
Sensory Support,Community Support - Sensory Support,Community Support,REDACTED - PERSONAL DATA,790444,04/02/2020,3400251,"1,800.00",0.00,N/A,N/A
Sensory Support,Community Support - Sensory Support,Community Support,REDACTED - PERSONAL DATA,559455,04/02/2020,3399895,770.72,0.00,N/A,N/A
Sensory Support,Community Support - Sensory Support,Community Support,REDACTED - PERSONAL DATA,215417,04/02/2020,3400426,872.56,0.00,N/A,N/A
Sensory Support,Community Support - Sensory Support,Community Support,REDACTED - PERSONAL DATA,170568,04/02/2020,3401403,583.40,0.00,N/A,N/A
Sensory Support,Community Support - Sensory Support,Community Support,REDACTED - PERSONAL DATA,473586,04/02/2020,3400290,740.32,0.00,N/A,N/A
Sensory Support,Community Support - Sensory Support,Community Support,REDACTED - PERSONAL DATA,274424,04/02/2020,3400350,"1,219.04",0.00,N/A,N/A
Sensory Support,Community Support - Sensory Support,Community Support,REDACTED - PERSONAL DATA,274424,04/02/2020,3400013,"1,219.04",0.00,N/A,N/A
Sensory Support,Community Support - Sensory Support,Community Support,REDACTED - PERSONAL DATA,274424,04/02/2020,3400785,"1,219.04",0.00,N/A,N/A
Sensory Support,Community Support - Sensory Support,Community Support,REDACTED - PERSONAL DATA,274424,04/02/2020,3400877,"1,219.04",0.00,N/A,N/A
Sensory Support,Community Support - Sensory Support,Community Support,REDACTED - PERSONAL DATA,274424,04/02/2020,3401225,914.28,0.00,N/A,N/A
Sensory Support,Community Support - Sensory Support,Community Support,REDACTED - PERSONAL DATA,472479,04/02/2020,3401083,"1,025.96",0.00,N/A,N/A
Sensory Support,Community Support - Sensory Support,Community Support,REDACTED - PERSONAL DATA,992475,04/02/2020,3400912,779.56,0.00,N/A,N/A
Sensory Support,Community Support - Sensory Support,Community Support,REDACTED - PERSONAL DATA,225413,04/02/2020,3400684,"1,786.68",0.00,N/A,N/A
Sensory Support,Community Support - Sensory Support,Community Support,REDACTED - PERSONAL DATA,225413,04/02/2020,3399802,"1,786.68",0.00,N/A,N/A
Sensory Support,Community Support - Sensory Support,Community Support,REDACTED - PERSONAL DATA,225413,04/02/2020,3399804,"1,786.68",0.00,N/A,N/A
Sensory Support,Community Support - Sensory Support,Community Support,REDACTED - PERSONAL DATA,225413,04/02/2020,3399805,"1,786.68",0.00,N/A,N/A
Sensory Support,Community Support - Sensory Support,Community Support,REDACTED - PERSONAL DATA,225413,04/02/2020,3399810,"1,786.68",0.00,N/A,N/A
Sensory Support,Community Support - Sensory Support,Community Support,REDACTED - PERSONAL DATA,225413,04/02/2020,3399814,"1,786.68",0.00,N/A,N/A
Sensory Support,Community Support - Sensory Support,Community Support,REDACTED - PERSONAL DATA,225413,04/02/2020,3399815,"1,786.68",0.00,N/A,N/A
Sensory Support,Community Support - Sensory Support,Community Support,REDACTED - PERSONAL DATA,225413,04/02/2020,3399817,"1,786.68",0.00,N/A,N/A
Sensory Support,Community Support - Sensory Support,Community Support,REDACTED - PERSONAL DATA,897490,04/02/2020,3400891,803.36,0.00,N/A,N/A
Sensory Support,Community Support - Sensory Support,Community Support,REDACTED - PERSONAL DATA,1041497,04/02/2020,3400346,"2,541.28",0.00,N/A,N/A
Sensory Support,Community Support - Sensory Support,Community Support,REDACTED - PERSONAL DATA,385424,04/02/2020,3400205,"2,173.24",0.00,N/A,N/A
Sensory Support,Community Support - Sensory Support,Community Support,REDACTED - PERSONAL DATA,470925,04/02/2020,3400897,"1,381.96",0.00,N/A,N/A
Sensory Support,Community Support - Sensory Support,Community Support,REDACTED - PERSONAL DATA,174335,04/02/2020,3400265,824.20,0.00,N/A,N/A
Sensory Support,Community Support - Sensory Support,Community Support,REDACTED - PERSONAL DATA,992469,04/02/2020,3400910,892.00,0.00,N/A,N/A
Sensory Support,Community Support - Sensory Support,Community Support,REDACTED - PERSONAL DATA,507436,04/02/2020,3401314,"1,256.56",0.00,N/A,N/A
Sensory Support,Community Support - Sensory Support,Community Support,REDACTED - PERSONAL DATA,235399,04/02/2020,3400691,679.40,0.00,N/A,N/A
Sensory Support,Community Support - Sensory Support,Community Support,REDACTED - PERSONAL DATA,188581,04/02/2020,3401437,875.44,0.00,N/A,N/A
Sensory Support,Community Support - Sensory Support,Community Support,REDACTED - PERSONAL DATA,864448,04/02/2020,3400355,768.04,0.00,N/A,N/A
Sensory Support,Community Support - Sensory Support,Community Support,REDACTED - PERSONAL DATA,385525,04/02/2020,3399888,"1,848.00",0.00,N/A,N/A
Sensory Support,Community Support - Sensory Support,Community Support,REDACTED - PERSONAL DATA,123067,04/02/2020,3400514,612.64,0.00,N/A,N/A
Sensory Support,Community Support - Sensory Support,Community Support,REDACTED - PERSONAL DATA,387506,04/02/2020,3401157,"7,066.40",0.00,N/A,N/A
Sensory Support,Community Support - Sensory Support,Community Support,REDACTED - PERSONAL DATA,147350,04/02/2020,3401031,"2,155.72",0.00,N/A,N/A
Sensory Support,Community Support - Sensory Support,Community Support,REDACTED - PERSONAL DATA,498424,04/02/2020,3400948,"2,043.92",0.00,N/A,N/A
Sensory Support,Community Support - Sensory Support,Community Support,REDACTED - PERSONAL DATA,125068,04/02/2020,3400586,"1,021.52",0.00,N/A,N/A
Sensory Support,Community Support - Sensory Support,Community Support,REDACTED - PERSONAL DATA,825444,04/02/2020,3400019,"1,296.00",0.00,N/A,N/A
Social Care Activities,Community Support - Social Care Activities,Community Support,REDACTED - PERSONAL DATA,12,04/02/2020,3397710,"1,375.14",0.00,N/A,N/A
Social Care Activities,Community Support - Social Care Activities,Community Support,REDACTED - PERSONAL DATA,12,04/02/2020,3397711,570.02,0.00,N/A,N/A
Social Care Activities,Community Support - Social Care Activities,Community Support,REDACTED - PERSONAL DATA,12,04/02/2020,3397208,"1,048.44",0.00,N/A,N/A
Support with Memory and Cognition,Community Support - Support with Memory and Cognition,Community Support,REDACTED - PERSONAL DATA,579447,04/02/2020,3401136,540.32,0.00,N/A,N/A
Support with Memory and Cognition,Community Support - Support with Memory and Cognition,Community Support,REDACTED - PERSONAL DATA,1130475,04/02/2020,3400668,703.44,0.00,N/A,N/A
Support with Memory and Cognition,Community Support - Support with Memory and Cognition,Community Support,REDACTED - PERSONAL DATA,517451,04/02/2020,3401472,702.52,0.00,N/A,N/A
Support with Memory and Cognition,Community Support - Support with Memory and Cognition,Community Support,REDACTED - PERSONAL DATA,517453,04/02/2020,3400949,679.68,0.00,N/A,N/A
Support with Memory and Cognition,Community Support - Support with Memory and Cognition,Community Support,REDACTED - PERSONAL DATA,961474,04/02/2020,3400900,664.56,0.00,N/A,N/A
Support with Memory and Cognition,Community Support - Support with Memory and Cognition,Community Support,REDACTED - PERSONAL DATA,480403,04/02/2020,3401098,996.00,0.00,N/A,N/A
Support with Memory and Cognition,Community Support - Support with Memory and Cognition,Community Support,REDACTED - PERSONAL DATA,1151469,04/02/2020,3401494,591.84,0.00,N/A,N/A
Integrated Services,Fostering,Non-Schools,REDACTED - PERSONAL DATA,249446,04/02/2020,3397890,"1,000.00",0.00,N/A,N/A
Integrated Services,Fostering,Non-Schools,REDACTED - PERSONAL DATA,580444,04/02/2020,3397907,600.00,0.00,N/A,N/A
Grounds Maintenance & Cleansing,Grounds Maintenance,"Strategic Partnerships, Planning & Streetpride",REDACTED - PERSONAL DATA,1785,04/02/2020,3398722,"10,230.00",0.00,Communities & Place,Farming Fishing Forestry and Wildlife Co
Grounds Maintenance & Cleansing,Grounds Maintenance,"Strategic Partnerships, Planning & Streetpride",REDACTED - PERSONAL DATA,1785,04/02/2020,3398724,"12,700.00",0.00,Communities & Place,Farming Fishing Forestry and Wildlife Co
Grounds Maintenance & Cleansing,Grounds Maintenance,"Strategic Partnerships, Planning & Streetpride",REDACTED - PERSONAL DATA,1785,04/02/2020,3398725,"1,650.00",0.00,Communities & Place,Farming Fishing Forestry and Wildlife Co
Grounds Maintenance & Cleansing,Grounds Maintenance,"Strategic Partnerships, Planning & Streetpride",REDACTED - PERSONAL DATA,1785,04/02/2020,3398725,"2,650.00",0.00,Communities & Place,Farming Fishing Forestry and Wildlife Co
Grounds Maintenance & Cleansing,Grounds Maintenance,"Strategic Partnerships, Planning & Streetpride",REDACTED - PERSONAL DATA,1785,04/02/2020,3398727,"1,800.00",0.00,Communities & Place,Farming Fishing Forestry and Wildlife Co
Grounds Maintenance & Cleansing,Grounds Maintenance,"Strategic Partnerships, Planning & Streetpride",REDACTED - PERSONAL DATA,1785,04/02/2020,3398728,"9,500.00",0.00,Communities & Place,Farming Fishing Forestry and Wildlife Co
Grounds Maintenance & Cleansing,Grounds Maintenance,"Strategic Partnerships, Planning & Streetpride",REDACTED - PERSONAL DATA,1785,04/02/2020,3398738,"18,200.00",0.00,Communities & Place,Farming Fishing Forestry and Wildlife Co
Early Help & Children�s Safeguarding,Integrated and Safeguarding Services Locality 2,Non-Schools,REDACTED - PERSONAL DATA,382396,04/02/2020,3397580,630.00,0.00,N/A,N/A
Early Help & Children�s Safeguarding,Integrated and Safeguarding Services Locality 2,Non-Schools,REDACTED - PERSONAL DATA,585442,04/02/2020,3397584,"1,150.00",0.00,N/A,N/A
Early Help & Children�s Safeguarding,Integrated and Safeguarding Services Locality 2,Non-Schools,REDACTED - PERSONAL DATA,882483,04/02/2020,3397582,"1,150.00",0.00,N/A,N/A
Integrated Commissioning,Integrated Commissioning,Commissioning,REDACTED - PERSONAL DATA,124978,04/02/2020,3400577,560.00,0.00,N/A,N/A
Integrated Commissioning,Integrated Commissioning,Commissioning,REDACTED - PERSONAL DATA,961478,04/02/2020,3401075,"1,268.56",0.00,N/A,N/A
Integrated Services,Integrated Disabled Children's Service,Non-Schools,REDACTED - PERSONAL DATA,385551,04/02/2020,3397821,558.00,0.00,N/A,N/A
Integrated Services,Integrated Disabled Children's Service,Non-Schools,REDACTED - PERSONAL DATA,385551,04/02/2020,3397821,558.00,0.00,N/A,N/A
Integrated Services,Integrated Disabled Children's Service,Non-Schools,REDACTED - PERSONAL DATA,844472,04/02/2020,3397837,583.20,0.00,N/A,N/A
Integrated Services,Integrated Disabled Children's Service,Non-Schools,REDACTED - PERSONAL DATA,385565,04/02/2020,3397828,777.60,0.00,N/A,N/A
Integrated Services,Integrated Disabled Children's Service,Non-Schools,REDACTED - PERSONAL DATA,932511,04/02/2020,3397840,777.60,0.00,N/A,N/A
"Environmental Protection, Licensing, Housing",Licensing,"Communities, Environment & Regulatory Services",REDACTED - PERSONAL DATA,318396,04/02/2020,3397581,"1,250.00",0.00,N/A,N/A
Mental Health Support,Mental Health - Mental Health Support,Mental Health,REDACTED - PERSONAL DATA,126359,04/02/2020,3400001,672.04,0.00,N/A,N/A
Mental Health Support,Mental Health - Mental Health Support,Mental Health,REDACTED - PERSONAL DATA,385547,04/02/2020,3400758,900.00,0.00,N/A,N/A
Mental Health Support,Mental Health - Mental Health Support,Mental Health,REDACTED - PERSONAL DATA,125708,04/02/2020,3401058,840.44,0.00,N/A,N/A
Mental Health Support,Mental Health - Mental Health Support,Mental Health,REDACTED - PERSONAL DATA,126365,04/02/2020,3400241,526.44,0.00,N/A,N/A
Mental Health Support,Mental Health - Mental Health Support,Mental Health,REDACTED - PERSONAL DATA,125225,04/02/2020,3400542,712.52,0.00,N/A,N/A
Mental Health Support,Mental Health - Mental Health Support,Mental Health,REDACTED - PERSONAL DATA,187953,04/02/2020,3401427,758.44,0.00,N/A,N/A
Mental Health Support,Mental Health - Mental Health Support,Mental Health,REDACTED - PERSONAL DATA,231434,04/02/2020,3401299,770.56,0.00,N/A,N/A
Mental Health Support,Mental Health - Mental Health Support,Mental Health,REDACTED - PERSONAL DATA,1217480,04/02/2020,3401284,618.24,0.00,N/A,N/A
Mental Health Support,Mental Health - Mental Health Support,Mental Health,REDACTED - PERSONAL DATA,515443,04/02/2020,3399884,"1,342.16",0.00,N/A,N/A
Mental Health Support,Mental Health - Mental Health Support,Mental Health,REDACTED - PERSONAL DATA,1225473,04/02/2020,3401446,527.88,0.00,N/A,N/A
Mental Health Support,Mental Health - Mental Health Support,Mental Health,REDACTED - PERSONAL DATA,1011469,04/02/2020,3400734,596.56,0.00,N/A,N/A
Mental Health Support,Mental Health - Mental Health Support,Mental Health,REDACTED - PERSONAL DATA,126110,04/02/2020,3400543,582.44,0.00,N/A,N/A
Mental Health Support,Mental Health - Mental Health Support,Mental Health,REDACTED - PERSONAL DATA,385466,04/02/2020,3399977,922.96,0.00,N/A,N/A
Mental Health Support,Mental Health - Mental Health Support,Mental Health,REDACTED - PERSONAL DATA,231460,04/02/2020,3400108,905.80,0.00,N/A,N/A
Mental Health Support,Mental Health - Mental Health Support,Mental Health,REDACTED - PERSONAL DATA,1040473,04/02/2020,3401327,833.24,0.00,N/A,N/A
Mental Health Support,Mental Health - Mental Health Support,Mental Health,REDACTED - PERSONAL DATA,126249,04/02/2020,3401417,548.04,0.00,N/A,N/A
Mental Health Support,Mental Health - Mental Health Support,Mental Health,REDACTED - PERSONAL DATA,126273,04/02/2020,3400858,561.44,0.00,N/A,N/A
Mental Health Support,Mental Health - Mental Health Support,Mental Health,REDACTED - PERSONAL DATA,385438,04/02/2020,3400511,831.04,0.00,N/A,N/A
Mental Health Support,Mental Health - Mental Health Support,Mental Health,REDACTED - PERSONAL DATA,113970,04/02/2020,3401047,636.00,0.00,N/A,N/A
Mental Health Support,Mental Health - Mental Health Support,Mental Health,REDACTED - PERSONAL DATA,126645,04/02/2020,3400508,964.48,0.00,N/A,N/A
Mental Health Support,Mental Health - Mental Health Support,Mental Health,REDACTED - PERSONAL DATA,554449,04/02/2020,3400716,"1,050.68",0.00,N/A,N/A
Mental Health Support,Mental Health - Mental Health Support,Mental Health,REDACTED - PERSONAL DATA,1178473,04/02/2020,3401152,819.76,0.00,N/A,N/A
Mental Health Support,Mental Health - Mental Health Support,Mental Health,REDACTED - PERSONAL DATA,1102475,04/02/2020,3401105,840.96,0.00,N/A,N/A
Mental Health Support,Mental Health - Mental Health Support,Mental Health,REDACTED - PERSONAL DATA,407403,04/02/2020,3401062,737.60,0.00,N/A,N/A
Mental Health Support,Mental Health - Mental Health Support,Mental Health,REDACTED - PERSONAL DATA,126571,04/02/2020,3401425,"1,026.00",0.00,N/A,N/A
Mental Health Support,Mental Health - Mental Health Support,Mental Health,REDACTED - PERSONAL DATA,583460,04/02/2020,3399911,980.04,0.00,N/A,N/A
Mental Health Support,Mental Health - Mental Health Support,Mental Health,REDACTED - PERSONAL DATA,125135,04/02/2020,3401041,"1,000.00",0.00,N/A,N/A
Mental Health Support,Mental Health - Mental Health Support,Mental Health,REDACTED - PERSONAL DATA,284398,04/02/2020,3400607,"1,087.44",0.00,N/A,N/A
Mental Health Support,Mental Health - Mental Health Support,Mental Health,REDACTED - PERSONAL DATA,126138,04/02/2020,3400856,648.00,0.00,N/A,N/A
Mental Health Support,Mental Health - Mental Health Support,Mental Health,REDACTED - PERSONAL DATA,126199,04/02/2020,3400070,696.04,0.00,N/A,N/A
Mental Health Support,Mental Health - Mental Health Support,Mental Health,REDACTED - PERSONAL DATA,171369,04/02/2020,3400027,"1,108.08",0.00,N/A,N/A
Mental Health Support,Mental Health - Mental Health Support,Mental Health,REDACTED - PERSONAL DATA,1097474,04/02/2020,3401148,"2,690.52",0.00,N/A,N/A
Mental Health Support,Mental Health - Mental Health Support,Mental Health,REDACTED - PERSONAL DATA,126318,04/02/2020,3400339,792.04,0.00,N/A,N/A
Mental Health Support,Mental Health - Mental Health Support,Mental Health,REDACTED - PERSONAL DATA,126589,04/02/2020,3400557,568.56,0.00,N/A,N/A
Mental Health Support,Mental Health - Mental Health Support,Mental Health,REDACTED - PERSONAL DATA,126429,04/02/2020,3400244,885.52,0.00,N/A,N/A
Mental Health Support,Mental Health - Mental Health Support,Mental Health,REDACTED - PERSONAL DATA,112208,04/02/2020,3401402,660.00,0.00,N/A,N/A
Mental Health Support,Mental Health - Mental Health Support,Mental Health,REDACTED - PERSONAL DATA,186840,04/02/2020,3401249,542.44,0.00,N/A,N/A
Mental Health Support,Mental Health - Mental Health Support,Mental Health,REDACTED - PERSONAL DATA,139381,04/02/2020,3400866,847.24,0.00,N/A,N/A
Mental Health Support,Mental Health - Mental Health Support,Mental Health,REDACTED - PERSONAL DATA,1116483,04/02/2020,3400695,563.96,0.00,N/A,N/A
Mental Health Support,Mental Health - Mental Health Support,Mental Health,REDACTED - PERSONAL DATA,215419,04/02/2020,3401292,662.48,0.00,N/A,N/A
Mental Health Support,Mental Health - Mental Health Support,Mental Health,REDACTED - PERSONAL DATA,126345,04/02/2020,3400000,"1,681.64",0.00,N/A,N/A
Mental Health Support,Mental Health - Mental Health Support,Mental Health,REDACTED - PERSONAL DATA,126511,04/02/2020,3400860,870.44,0.00,N/A,N/A
Mental Health Support,Mental Health - Mental Health Support,Mental Health,REDACTED - PERSONAL DATA,178388,04/02/2020,3400275,816.36,0.00,N/A,N/A
Mental Health Support,Mental Health - Mental Health Support,Mental Health,REDACTED - PERSONAL DATA,386434,04/02/2020,3400270,945.24,0.00,N/A,N/A
Mental Health Support,Mental Health - Mental Health Support,Mental Health,REDACTED - PERSONAL DATA,126601,04/02/2020,3400862,951.84,0.00,N/A,N/A
Mental Health Support,Mental Health - Mental Health Support,Mental Health,REDACTED - PERSONAL DATA,201379,04/02/2020,3400424,"1,681.64",0.00,N/A,N/A
Mental Health Support,Mental Health - Mental Health Support,Mental Health,REDACTED - PERSONAL DATA,201379,04/02/2020,3401285,"1,681.64",0.00,N/A,N/A
Mental Health Support,Mental Health - Mental Health Support,Mental Health,REDACTED - PERSONAL DATA,126323,04/02/2020,3400547,856.04,0.00,N/A,N/A
Mental Health Support,Mental Health - Mental Health Support,Mental Health,REDACTED - PERSONAL DATA,179393,04/02/2020,3400036,704.24,0.00,N/A,N/A
Mental Health Support,Mental Health - Mental Health Support,Mental Health,REDACTED - PERSONAL DATA,126275,04/02/2020,3401420,553.64,0.00,N/A,N/A
Mental Health Support,Mental Health - Mental Health Support,Mental Health,REDACTED - PERSONAL DATA,1011471,04/02/2020,3400002,"1,144.76",0.00,N/A,N/A
Mental Health Support,Mental Health - Mental Health Support,Mental Health,REDACTED - PERSONAL DATA,1041493,04/02/2020,3400536,672.00,0.00,N/A,N/A
Mental Health Support,Mental Health - Mental Health Support,Mental Health,REDACTED - PERSONAL DATA,470404,04/02/2020,3401244,931.92,0.00,N/A,N/A
Mental Health Support,Mental Health - Mental Health Support,Mental Health,REDACTED - PERSONAL DATA,185603,04/02/2020,3400901,"1,083.64",0.00,N/A,N/A
Mental Health Support,Mental Health - Mental Health Support,Mental Health,REDACTED - PERSONAL DATA,413406,04/02/2020,3401245,664.96,0.00,N/A,N/A
Mental Health Support,Mental Health - Mental Health Support,Mental Health,REDACTED - PERSONAL DATA,424408,04/02/2020,3400372,"5,257.48",0.00,N/A,N/A
Mental Health Support,Mental Health - Mental Health Support,Mental Health,REDACTED - PERSONAL DATA,188457,04/02/2020,3400915,658.36,0.00,N/A,N/A
Mental Health Support,Mental Health - Mental Health Support,Mental Health,REDACTED - PERSONAL DATA,814445,04/02/2020,3400018,570.00,0.00,N/A,N/A
Mental Health Support,Mental Health - Mental Health Support,Mental Health,REDACTED - PERSONAL DATA,387487,04/02/2020,3400357,"1,031.24",0.00,N/A,N/A
Mental Health Support,Mental Health - Mental Health Support,Mental Health,REDACTED - PERSONAL DATA,126251,04/02/2020,3400072,656.44,0.00,N/A,N/A
Mental Health Support,Mental Health - Mental Health Support,Mental Health,REDACTED - PERSONAL DATA,1092469,04/02/2020,3400306,616.32,0.00,N/A,N/A
Mental Health Support,Mental Health - Mental Health Support,Mental Health,REDACTED - PERSONAL DATA,937535,04/02/2020,3400592,792.04,0.00,N/A,N/A
Mental Health Support,Mental Health - Mental Health Support,Mental Health,REDACTED - PERSONAL DATA,170398,04/02/2020,3400502,850.00,0.00,N/A,N/A
Mental Health Support,Mental Health - Mental Health Support,Mental Health,REDACTED - PERSONAL DATA,629453,04/02/2020,3400146,"1,060.56",0.00,N/A,N/A
Mental Health Support,Mental Health - Mental Health Support,Mental Health,REDACTED - PERSONAL DATA,214407,04/02/2020,3400094,758.44,0.00,N/A,N/A
Mental Health Support,Mental Health - Mental Health Support,Mental Health,REDACTED - PERSONAL DATA,125597,04/02/2020,3400588,"1,575.24",0.00,N/A,N/A
Mental Health Support,Mental Health - Mental Health Support,Mental Health,REDACTED - PERSONAL DATA,125583,04/02/2020,3399992,904.04,0.00,N/A,N/A
Mental Health Support,Mental Health - Mental Health Support,Mental Health,REDACTED - PERSONAL DATA,125590,04/02/2020,3401056,"1,054.56",0.00,N/A,N/A
Mental Health Support,Mental Health - Mental Health Support,Mental Health,REDACTED - PERSONAL DATA,164338,04/02/2020,3400206,646.48,0.00,N/A,N/A
Mental Health Support,Mental Health - Mental Health Support,Mental Health,REDACTED - PERSONAL DATA,853458,04/02/2020,3400021,526.56,0.00,N/A,N/A
Mental Health Support,Mental Health - Mental Health Support,Mental Health,REDACTED - PERSONAL DATA,126432,04/02/2020,3400549,670.44,0.00,N/A,N/A
Mental Health Support,Mental Health - Mental Health Support,Mental Health,REDACTED - PERSONAL DATA,126434,04/02/2020,3400594,700.00,0.00,N/A,N/A
Mental Health Support,Mental Health - Mental Health Support,Mental Health,REDACTED - PERSONAL DATA,267406,04/02/2020,3401388,"1,888.32",0.00,N/A,N/A
Mental Health Support,Mental Health - Mental Health Support,Mental Health,REDACTED - PERSONAL DATA,1041495,04/02/2020,3401237,"5,608.56",0.00,N/A,N/A
Mental Health Support,Mental Health - Mental Health Support,Mental Health,REDACTED - PERSONAL DATA,957488,04/02/2020,3400285,"1,365.36",0.00,N/A,N/A
Mental Health Support,Mental Health - Mental Health Support,Mental Health,REDACTED - PERSONAL DATA,1036471,04/02/2020,3400458,544.84,0.00,N/A,N/A
Mental Health Support,Mental Health - Mental Health Support,Mental Health,REDACTED - PERSONAL DATA,773458,04/02/2020,3401223,810.64,0.00,N/A,N/A
Mental Health Support,Mental Health - Mental Health Support,Mental Health,REDACTED - PERSONAL DATA,237425,04/02/2020,3401306,"1,366.92",0.00,N/A,N/A
Mental Health Support,Mental Health - Mental Health Support,Mental Health,REDACTED - PERSONAL DATA,186831,04/02/2020,3400635,518.48,0.00,N/A,N/A
Mental Health Support,Mental Health - Mental Health Support,Mental Health,REDACTED - PERSONAL DATA,261402,04/02/2020,3399907,766.56,0.00,N/A,N/A
Mental Health Support,Mental Health - Mental Health Support,Mental Health,REDACTED - PERSONAL DATA,126140,04/02/2020,3400337,644.00,0.00,N/A,N/A
Mental Health Support,Mental Health - Mental Health Support,Mental Health,REDACTED - PERSONAL DATA,188610,04/02/2020,3401438,545.64,0.00,N/A,N/A
Mental Health Support,Mental Health - Mental Health Support,Mental Health,REDACTED - PERSONAL DATA,248489,04/02/2020,3401311,"1,368.92",0.00,N/A,N/A
Mental Health Support,Mental Health - Mental Health Support,Mental Health,REDACTED - PERSONAL DATA,126208,04/02/2020,3399996,512.44,0.00,N/A,N/A
Mental Health Support,Mental Health - Mental Health Support,Mental Health,REDACTED - PERSONAL DATA,1024473,04/02/2020,3400682,527.88,0.00,N/A,N/A
Mental Health Support,Mental Health - Mental Health Support,Mental Health,REDACTED - PERSONAL DATA,1189479,04/02/2020,3401087,622.04,0.00,N/A,N/A
Mental Health Support,Mental Health - Mental Health Support,Mental Health,REDACTED - PERSONAL DATA,126339,04/02/2020,3400340,848.04,0.00,N/A,N/A
Mental Health Support,Mental Health - Mental Health Support,Mental Health,REDACTED - PERSONAL DATA,799448,04/02/2020,3400011,"1,264.36",0.00,N/A,N/A
Mental Health Support,Mental Health - Mental Health Support,Mental Health,REDACTED - PERSONAL DATA,231458,04/02/2020,3399875,788.04,0.00,N/A,N/A
Mental Health Support,Mental Health - Mental Health Support,Mental Health,REDACTED - PERSONAL DATA,492407,04/02/2020,3401121,"1,148.56",0.00,N/A,N/A
Mental Health Support,Mental Health - Mental Health Support,Mental Health,REDACTED - PERSONAL DATA,487402,04/02/2020,3400941,826.40,0.00,N/A,N/A
Mental Health Support,Mental Health - Mental Health Support,Mental Health,REDACTED - PERSONAL DATA,127059,04/02/2020,3401217,990.00,0.00,N/A,N/A
Mental Health Support,Mental Health - Mental Health Support,Mental Health,REDACTED - PERSONAL DATA,1053477,04/02/2020,3401328,844.44,0.00,N/A,N/A
Mental Health Support,Mental Health - Mental Health Support,Mental Health,REDACTED - PERSONAL DATA,880474,04/02/2020,3400886,867.04,0.00,N/A,N/A
Mental Health Support,Mental Health - Mental Health Support,Mental Health,REDACTED - PERSONAL DATA,192403,04/02/2020,3400927,900.00,0.00,N/A,N/A
Mental Health Support,Mental Health - Mental Health Support,Mental Health,REDACTED - PERSONAL DATA,126543,04/02/2020,3400246,"1,408.04",0.00,N/A,N/A
Mental Health Support,Mental Health - Mental Health Support,Mental Health,REDACTED - PERSONAL DATA,1160474,04/02/2020,3399918,819.24,0.00,N/A,N/A
Mental Health Support,Mental Health - Mental Health Support,Mental Health,REDACTED - PERSONAL DATA,470529,04/02/2020,3399981,"1,095.04",0.00,N/A,N/A
Mental Health Support,Mental Health - Mental Health Support,Mental Health,REDACTED - PERSONAL DATA,131352,04/02/2020,3400779,900.00,0.00,N/A,N/A
Mental Health Support,Mental Health - Mental Health Support,Mental Health,REDACTED - PERSONAL DATA,1025470,04/02/2020,3401295,"2,614.04",0.00,N/A,N/A
Mental Health Support,Mental Health - Mental Health Support,Mental Health,REDACTED - PERSONAL DATA,914481,04/02/2020,3400050,875.16,0.00,N/A,N/A
Mental Health Support,Mental Health - Mental Health Support,Mental Health,REDACTED - PERSONAL DATA,126130,04/02/2020,3400335,726.44,0.00,N/A,N/A
Mental Health Support,Mental Health - Mental Health Support,Mental Health,REDACTED - PERSONAL DATA,170431,04/02/2020,3399952,614.76,0.00,N/A,N/A
Mental Health Support,Mental Health - Mental Health Support,Mental Health,REDACTED - PERSONAL DATA,125245,04/02/2020,3400774,629.04,0.00,N/A,N/A
Mental Health Support,Mental Health - Mental Health Support,Mental Health,REDACTED - PERSONAL DATA,799450,04/02/2020,3400874,"1,689.48",0.00,N/A,N/A
Mental Health Support,Mental Health - Mental Health Support,Mental Health,REDACTED - PERSONAL DATA,703443,04/02/2020,3401363,"1,012.24",0.00,N/A,N/A
Mental Health Support,Mental Health - Mental Health Support,Mental Health,REDACTED - PERSONAL DATA,535460,04/02/2020,3401317,594.00,0.00,N/A,N/A
Mental Health Support,Mental Health - Mental Health Support,Mental Health,REDACTED - PERSONAL DATA,212429,04/02/2020,3400093,528.04,0.00,N/A,N/A
Mental Health Support,Mental Health - Mental Health Support,Mental Health,REDACTED - PERSONAL DATA,126133,04/02/2020,3400336,756.00,0.00,N/A,N/A
Mental Health Support,Mental Health - Mental Health Support,Mental Health,REDACTED - PERSONAL DATA,1005471,04/02/2020,3400937,"2,031.28",0.00,N/A,N/A
Non Delegated Schools Budget,Non Delegated School Expenditure,Schools Block,REDACTED - PERSONAL DATA,932525,04/02/2020,3401543,"5,396.40",0.00,N/A,N/A
Non Delegated Schools Budget,Non Delegated School Expenditure,Schools Block,REDACTED - PERSONAL DATA,933482,04/02/2020,3401593,"2,545.88",0.00,N/A,N/A
Non Delegated Schools Budget,Non Delegated School Expenditure,Schools Block,REDACTED - PERSONAL DATA,932548,04/02/2020,3401585,502.52,0.00,N/A,N/A
Non Delegated Schools Budget,Non Delegated School Expenditure,Schools Block,REDACTED - PERSONAL DATA,932548,04/02/2020,3402160,936.00,0.00,N/A,N/A
Non Delegated Schools Budget,Non Delegated School Expenditure,Schools Block,REDACTED - PERSONAL DATA,936534,04/02/2020,3401640,700.49,0.00,N/A,N/A
